Workbook

Sheet Pres & Prop Rev
J3: TRANSPORT
A4: WORK PAPER | D4: GEN SERVICE | E4: LRG GEN SVC | F4: EX LRG GEN SVC | G4: INTERRUPTIBLE | H4: TRANSPORT | I4: TRANSPORT | J4: SCH 148 - WSU
A5: REFERENCE | C5: TOTAL | D5: SCH. 101 & 102 | E5: SCH. 111&112 | F5: SCH. 121&122 | G5: SCH. 131&132 | H5: SCHEDULE 146 | I5: SCHEDULE 148 | J5: ANN. MINIMUM | Q5: Print Header for all printed pages on this worksheet:
B6: PRESENT BILL DETERMINANTS | M6: Calculate all revenue exhibits using ____ rates: | Q6: ="AVISTA UTILITIES WASHINGTON NATURAL GAS PRO FORMA REVENUE UNDER PRESENT AND PROPOSED "&O9&" RATES 12 MONTHS ENDED DECEMBER 31, 2016" -> AVISTA UTILITIES WASHINGTON NATURAL GAS PRO FORMA REVENUE UNDER PRESENT AND PROPOSED BASE TARIFF RATES 12 MONTHS ENDED DECEMBER 31, 2016
B7: THERMS | L7: 1) | M7: BASE TARIFF
A8: PDE-G-8 | B8: BLOCK 1 | D8: ='Bill Determ'!E7 -> 70235874.57 | E8: ='Bill Determ'!B12 -> 5785416.185 | F8: ='Bill Determ'!B23 -> 135552.6267 | G8: ='Bill Determ'!B30 -> 239134 | H8: ='Bill Determ'!B34 -> 8323425 | I8: ='Bill Determ'!B40 -> 22950008 | J8: ='Bill Determ'!B46 -> 9620298 | M8: or | O8: 1
A9: PDE-G-8 | B9: BLOCK 2 | D9: ='Bill Determ'!F7 -> 35679396.76 | E9: ='Bill Determ'!C12 -> 14299408.7 | F9: ='Bill Determ'!C23 -> 135552.8844 | G9: ='Bill Determ'!C30 -> 304419 | H9: ='Bill Determ'!C34 -> 7106130 | I9: ='Bill Determ'!B41 -> 6615705 | L9: 2) | M9: BILLING | O9: =CHOOSE(Base1_Billing2,M7,M9) -> BASE TARIFF
A10: PDE-G-8 | B10: BLOCK 3 | E10: ='Bill Determ'!D12 -> 23171234.6 | F10: ='Bill Determ'!D23 -> 2127459.995 | G10: ='Bill Determ'!D30 -> 295331 | H10: ='Bill Determ'!D34 -> 10674881 | I10: ='Bill Determ'!B42 -> 1996121 | O10: =CHOOSE(Base1_Billing2,"Base","Billing") -> Base
A11: PDE-G-8 | B11: BLOCK 4 | F11: ='Bill Determ'!E23 -> 953143.4416 | G11: ='Bill Determ'!E30 -> 62383 | H11: ='Bill Determ'!E34 -> 2733574 | I11: ='Bill Determ'!B43 -> 5723840
A12: PDE-G-8 | B12: BLOCK 5 | F12: ='Bill Determ'!F23 -> 586571.8038 | H12: ='Bill Determ'!F34 -> 1881519 | I12: ='Bill Determ'!B37 -> 2101247
B14: SUBTOTAL | C14: =SUM(D14:J14) -> 233737626.6 | D14: =SUM(D8:D12) -> 105915271.3 | E14: 43256059.48 | F14: 3938280.751 | G14: 901267 | H14: =SUM(H8:H12) -> 30719529 | I14: =SUM(I8:I12) -> 39386921 | J14: 9620298
B15: LOAD ADJUSTMENT
B17: SUBTOTAL | C17: =SUM(D17:J17) -> 233737626.6 | D17: =D14+D15 -> 105915271.3 | E17: 43256059.48 | F17: 3938280.751 | G17: 901267 | H17: =H14+H15 -> 30719529 | I17: 39386921 | J17: 9620298
B18: ADJUSTMENT TO ACTUAL | C18: =SUM(D18:J18) -> 0 | D18: ='Bill Determ'!G9 -> 0 | E18: ='Bill Determ'!E17 -> 0
B20: TOTAL BEFORE ADJUSTMENT | C20: =SUM(D20:J20) -> 233737626.6 | D20: =D17+D18 -> 105915271.3 | E20: 43256059.48 | F20: 3938280.751 | G20: 901267 | H20: =H17+I18 -> 30719529 | I20: =I17+I18 -> 39386921 | J20: 9620298
A21: PDE-G-3 | B21: WEATHER & UNBILLED REV. ADJ. | C21: =SUM(D21:J21) -> 18404057 | D21: =D134+D137 -> 13531346 | E21: =E134+E137 -> 4695661 | F21: 177050 | G21: 0 | H21: =H134+H137 -> 0 | I21: 0 | J21: 0
B23: TOTAL PROFORMA THERMS | C23: =IF(ROUND(SUM(C20:C21),3)<>ROUND(SUM(D23:J23),3),#VALUE!,SUM(D23:J23)) -> 252141683.6 | D23: =SUM(D20:D21) -> 119446617.3 | E23: =SUM(E20:E21) -> 47951720.48 | F23: 4115330.751 | G23: 901267 | H23: =SUM(H20:H21) -> 30719529 | I23: 39386921 | J23: 9620298
A25: PDE-G-8 | B25: TOTAL BILLS | D25: ='Bill Determ'!C7 -> 1847462 | G25: ='Bill Determ'!G30 -> 24 | H25: ='Bill Determ'!H34 -> 480 | I25: ='Bill Determ'!C44 -> 48 | J25: ='Bill Determ'!C46 -> 12
A26: PDE-G-8 | B26: TOTAL MINIMUM BILLS | E26: ='Bill Determ'!F16 -> 32983 | F26: ='Bill Determ'!H23 -> 273
B29: PROPOSED BILL DETERMINANTS
B30: THERMS
B31: BLOCK 1 | D31: ='Bill Determ'!E7 -> 70235874.57 | E31: =E8 -> 5785416.185 | F31: 135552.6267 | G31: 239134 | H31: 8323425 | I31: 22950008 | J31: 9620298
B32: BLOCK 2 | D32: ='Bill Determ'!F7 -> 35679396.76 | E32: =E9 -> 14299408.7 | F32: 135552.8844 | G32: 304419 | H32: 7106130 | I32: 6615705 | J32: 0
B33: BLOCK 3 | D33: =D10 -> 0 | E33: =E10 -> 23171234.6 | F33: 2127459.995 | G33: 295331 | H33: 10674881 | I33: 1996121 | J33: 0
B34: BLOCK 4 | D34: =D11 -> 0 | E34: =E11 -> 0 | F34: 953143.4416 | G34: 62383 | H34: 2733574 | I34: 5723840 | J34: 0
B35: BLOCK 5 | D35: =D12 -> 0 | E35: =E12 -> 0 | F35: 586571.8038 | G35: 0 | H35: 1881519 | I35: 2101247 | J35: 0
B37: SUBTOTAL | C37: =SUM(D37:J37) -> 233737626.6 | D37: =SUM(D31:D35) -> 105915271.3 | E37: 43256059.48 | F37: 3938280.751 | G37: 901267 | H37: =SUM(H31:H35) -> 30719529 | I37: =SUM(I31:I35) -> 39386921 | J37: 9620298
B38: NET SHIFTING ADJUSTMENT | C38: =SUM(D38:J38) -> 0 | D38: =D15 -> 0 | E38: 0 | F38: 0 | G38: 0 | H38: =H15 -> 0 | I38: 0 | J38: 0
B40: SUBTOTAL | C40: =SUM(D40:J40) -> 233737626.6 | D40: =D37+D38 -> 105915271.3 | E40: 43256059.48 | F40: 3938280.751 | G40: 901267 | H40: =H37+H38 -> 30719529 | I40: 39386921 | J40: 9620298
B41: ADJUSTMENT TO ACTUAL | C41: =SUM(D41:J41) -> 0 | D41: =D18 -> 0 | E41: 0 | F41: 0 | G41: 0 | H41: 0 | I41: 0 | J41: 0
B43: TOTAL BEFORE ADJUSTMENT | C43: =SUM(D43:J43) -> 233737626.6 | D43: =D40+D41 -> 105915271.3 | E43: 43256059.48 | F43: 3938280.751 | G43: 901267 | H43: =H40+H41 -> 30719529 | I43: =I40+I41 -> 39386921 | J43: 9620298
B44: WEATHER & UNBILLED REV. ADJ. | C44: =SUM(D44:J44) -> 18404057 | D44: =D21 -> 13531346 | E44: 4695661 | F44: 177050 | G44: 0 | H44: =H21 -> 0 | I44: 0 | J44: 0
B46: TOTAL PROFORMA THERMS | C46: =IF(ROUND(SUM(C43:C44),3)<>ROUND(SUM(D46:J46),3),#VALUE!,SUM(D46:J46)) -> 252141683.6 | D46: =D43+D44 -> 119446617.3 | E46: 47951720.48 | F46: 4115330.751 | G46: 901267 | H46: =H43+H44 -> 30719529 | I46: 39386921 | J46: 9620298
B48: TOTAL BILLS | D48: =D25 -> 1847462 | E48: 0 | F48: 0 | G48: =G25 -> 24 | H48: =H25 -> 480 | I48: =I25 -> 48 | J48: =J25 -> 12
B49: TOTAL MINIMUM BILLS | D49: 0 | E49: 32983 | F49: 273
E50: 2 | F50: 3 | G50: 4 | H50: 5 | I50: 6 | J50: 7
J52: TRANSPORT
A53: WORK PAPER | D53: GEN SERVICE | E53: LRG GEN SVC | F53: EX LRG GEN SVC | G53: INTERRUPTIBLE | H53: TRANSPORT | I53: TRANSPORT | J53: SCH 148 - WSU | M53: ="selected in cell "&CELL("address",Base1_Billing2)&":" -> selected in cell $O$8:
A54: REFERENCE | C54: TOTAL | D54: SCHEDULE 101 | E54: SCHEDULE 111 | F54: SCHEDULE 121 | G54: SCHEDULE 131 | H54: SCHEDULE 146 | I54: SCHEDULE 148 | J54: ANN. MINIMUM | M54: =O10 -> Base
B55: PRESENT RATES | I55: -1 | J55: -2 | M55: ="Rates_"&$M$54&"_Present" -> Rates_Base_Present | O55: - range name where Present Rates table can be found
A56: PDE-G-13/14 | B56: BASIC CHARGE | D56: =INDEX(INDIRECT($M$55),$K56,D$50) -> 9 | E56: =INDEX(INDIRECT($M$55),$K56,E$50) -> 0 | F56: 0 | G56: 0 | H56: 525 | I56: 200 | J56: 26332 | K56: 1 | M56: ="Rates_"&$M$54&"_Proposed" -> Rates_Base_Proposed | O56: - range name where Proposed Rates table can be found
A57: PDE-G-13/14 | B57: MONTHLY/ANNUAL MINIMUM | D57: 0 | E57: 101.44 | F57: 252.28 | G57: 0 | I57: 0 | J57: 0 | K57: 2
A59: PDE-G-13/14 | B59: BLOCK 1 PER THERM | D59: =INDEX(INDIRECT($M$55),$K59,D$50) -> 38.685 | E59: =INDEX(INDIRECT($M$55),$K59,E$50) -> 0 | F59: 0 | G59: 25.277 | H59: 10.009 | I59: 2.8 | J59: 1 | K59: 3
A60: PDE-G-13/14 | B60: BLOCK 2 PER THERM | D60: 50.279 | E60: 34.034 | F60: 35.67 | G60: 20.291 | H60: 8.905 | I60: 4.5 | J60: 0 | K60: 4
A61: PDE-G-13/14 | B61: BLOCK 3 PER THERM | D61: 0 | E61: 25.943 | F61: 27.397 | G61: 19.067 | H61: 8.03 | I61: 3.168 | J61: 0 | K61: 5
A62: PDE-G-13/14 | B62: BLOCK 4 PER THERM | D62: 0 | E62: 0 | F62: 22.202 | G62: 18.662 | H62: 7.426 | I62: 2.5 | J62: 0 | K62: 6
A63: PDE-G-13/14 | B63: BLOCK 5 PER THERM | D63: 0 | E63: 0 | F63: 14.725 | G63: 0 | H63: 5.581 | I63: 2.091 | J63: 0 | K63: 7
B65: ADJUST TO ACTUAL PER THERM | D65: =(D118-D106-D107)/D17*100 -> 42.59064006 | E65: =(E118-E106-E107)/E17*100 -> 25.14786201 | F65: =(F118-F106-F107)/F17*100 -> 23.59409064 | G65: =(G118-G106-G107)/G17*100 -> 21.10010019
B73: PROPOSED RATES
B74: BASIC CHARGE | D74: =INDEX(INDIRECT($M$56),$K74,D$50) -> 9.5 | E74: =INDEX(INDIRECT($M$56),$K74,E$50) -> 0 | F74: 0 | G74: 0 | H74: 550 | I74: 200 | J74: 26332 | K74: 1
B75: MONTHLY MINIMUM | D75: 0 | E75: 97.25 | F75: 240.44 | G75: 0 | H75: 0 | I75: 0 | J75: 0 | K75: 2
B77: BLOCK 1 PER THERM | D77: =INDEX(INDIRECT($M$56),$K77,D$50) -> 36.723 | E77: =INDEX(INDIRECT($M$56),$K77,E$50) -> 0 | F77: 0 | G77: 24.655 | H77: 9.69 | I77: 2.8 | J77: 1 | K77: 3
B78: BLOCK 2 PER THERM | D78: =INDEX(INDIRECT($M$56),$K78,D$50) -> 47.729 | E78: 33.354 | F78: 34.85 | G78: 19.792 | H78: 8.621 | I78: 4.5 | J78: 0 | K78: 4
B79: BLOCK 3 PER THERM | D79: 0 | E79: 25.424 | F79: 26.767 | G79: 18.598 | H79: 7.774 | I79: 3.168 | J79: 0 | K79: 5
B80: BLOCK 4 PER THERM | D80: 0 | E80: 0 | F80: 21.692 | G80: 18.203 | H80: 7.189 | I80: 2.5 | J80: 0 | K80: 6
B81: BLOCK 5 PER THERM | D81: 0 | E81: 0 | F81: 14.387 | G81: 0 | H81: 5.403 | I81: 2.091 | J81: 0 | K81: 7
B83: ADJUST TO ACTUAL PER THERM | D83: =(D167-D155-D156)/D40*100 -> 40.43056206 | E83: =(E167-E155-E156)/E40*100 -> 24.64505456 | F83: =(F167-F155-F156)/F40*100 -> 23.05176871 | G83: =(G167-G155-G156)/G40*100 -> 20.58106421
B87: (1) Block 1 - Kaiser-Trentwood - workpaper PDE-G-19
B88: Block 2 - Lamb-Weston - workpaper PDE-G-21
B89: Block 3 - Mutual Materials - workpaper PDE-G-25
B90: Block 4 - Washington Potato - workpaper PDE-G-23
B91: Block 5 - Avista Electric generating facilities billed at 2.091 cents/therm (Sch. 148 floor)
B93: (2) Monthly minimum / rate per therm - workpaper PDE-G-27
B97: ="Note: Rates exclude Sch. 150 (Purch. Gas Cost Adj.)"&IF(Base1_Billing2=2,"Sch. 150 (Purch. Gas Cost Adj.), Sch. 155 (Gas Rate Adj.), and Sch. 191 (Public Purp. Rider Adj.)","") -> Note: Rates exclude Sch. 150 (Purch. Gas Cost Adj.)
J101: TRANSPORT
A102: WORK PAPER | D102: GEN SERVICE | E102: LRG GEN SVC | F102: EX LRG GEN SVC | G102: INTERRUPTIBLE | H102: TRANSPORT | I102: TRANSPORT | J102: SCH 148 - WSU
A103: REFERENCE | C103: TOTAL | D103: SCHEDULE 101 | E103: SCHEDULE 111 | F103: SCHEDULE 121 | G103: SCHEDULE 131 | H103: SCHEDULE 146 | I103: SCHEDULE 148 | J103: ANN. MINIMUM
B104: PRESENT REVENUE
B105: =UPPER(CHOOSE(Base1_Billing2,$O$9,$O$10))&" REVENUE" -> BASE TARIFF REVENUE
B106: BASIC CHARGE | C106: =SUM(D106:J106) -> 17204742 | D106: =D25*D56 -> 16627158 | E106: 0 | F106: 0 | G106: 0 | H106: =H25*H56 -> 252000 | I106: =I25*I56 -> 9600 | J106: 315984
B107: MONTHLY/ANNUAL MINIMUM | C107: 3452165.935 | D107: =D26*D57 -> 0 | E107: =E26*E57 -> 3345795.52 | F107: =F26*F57 -> 68872.44 | G107: =G26*G57 -> 0 | H107: ='Big Schedules'!W48 -> 37497.97545 | I107: =I26*I57 -> 0 | J107: =J26*J57 -> 0
B108: BLOCK 1 | C108: 28803088.79 | D108: =ROUND(D8*D59/100,2) -> 27170748.08 | E108: =ROUND(E8*E59/100,2) -> 0 | F108: 0 | G108: 60445.9 | H108: 833091.61 | I108: =ROUND(I8*I59/100,2) -> 642600.22 | J108: =ROUND(J8*J59/100,2) -> 96202.98
B109: BLOCK 2 | C109: 23846533.64 | D109: 17939243.9 | E109: 4866660.76 | F109: 48351.71 | G109: 61769.66 | H109: 632800.88 | I109: 297706.73 | J109: 0
B110: BLOCK 3 | C110: 7570914.41 | D110: 0 | E110: 6011313.39 | F110: 582860.21 | G110: 56310.76 | H110: 857192.94 | I110: =ROUND(I10*I61/100,2) -> 63237.11 | J110: 0
B111: BLOCK 4 | C111: 569350.04 | D111: =ROUND(D11*D62/100,2) -> 0 | E111: 0 | F111: 211616.91 | G111: 11641.92 | H111: 202995.21 | I111: 143096 | J111: 0
B112: BLOCK 5 | C112: 235317.35 | D112: =ROUND(D12*D63/100,2) -> 0 | E112: 0 | F112: 86372.7 | G112: 0 | H112: 105007.58 | I112: 43937.07 | J112: 0
B113: ANNUAL MINIMUM | C113: 0 | J113: =BFG!F11 -> 0
B115: SUBTOTAL | C115: =IF(ROUND(SUM(D115:J115),3)<>ROUND(SUM(C106:C113),3),#VALUE!,SUM(D115:J115)) -> 81682112.17 | D115: =SUM(D106:D113) -> 61737149.98 | E115: 14223769.67 | F115: 998073.97 | G115: 190168.24 | H115: =SUM(H106:H113) -> 2920586.195 | I115: 1200177.13 | J115: =SUM(J106:J113) -> 412186.98
B116: NET SHIFTING ADJUSTMENT
B118: SUBTOTAL | C118: =SUM(D118:J118) -> 81682112.17 | D118: =D115+D116 -> 61737149.98 | E118: 14223769.67 | F118: 998073.97 | G118: 190168.24 | H118: =H115+H116 -> 2920586.195 | I118: 1200177.13 | J118: 412186.98
B119: ADJUST TO ACTUAL | C119: =SUM(D119:J119) -> 0 | D119: =ROUND(D18*D65/100,2) -> 0 | E119: 0 | F119: 0 | G119: 0 | H119: 0 | I119: 0 | J119: 0
B121: ="TOTAL "&UPPER(CHOOSE(Base1_Billing2,$O$9,$O$10))&" REVENUE" -> TOTAL BASE TARIFF REVENUE | C121: =IF(ROUND(C118+C119,3)<>ROUND(SUM(D121:J121),3),#VALUE!,SUM(D121:J121)) -> 81682112.17 | D121: =D118+D119 -> 61737149.98 | E121: 14223769.67 | F121: 998073.97 | G121: 190168.24 | H121: =H118+H119 -> 2920586.195 | I121: 1200177.13 | J121: 412186.98
M122: Sch 101 | Q122: Sch 111 | T122: Sch 121
M123: =D8/$D$14 -> 0.6631326501 | O123: =$D$126*M123 -> 1910428.799 | P123: =O123*(D59/100) -> 739049.3808 | Q123: =E8/($E$14) -> 0.1337481096 | R123: =$E$126*Q123 -> 174306.1538 | S123: =R123*(E59/100) -> 0 | T123: =F8/$F$14 -> 0.03441923908 | U123: =$F$126*T123 -> -2119.089292 | V123: =U123*(F59/100) -> 0
B124: ADJUSTMENT REVENUE | M124: =D9/$D$14 -> 0.3368673499 | O124: =$D$126*M124 -> 970486.2012 | P124: =O124*(D60/100) -> 487950.7571 | Q124: =E9/($E$14) -> 0.3305758516 | R124: =$E$126*Q124 -> 430820.334 | S124: =R124*(E60/100) -> 146625.3925 | T124: =F9/$F$14 -> 0.03441930451 | U124: =$F$126*T124 -> -2119.093321 | V124: =U124*(F60/100) -> -755.8805876
B125: UNBILLED REVENUE ADJUSTMENT | M125: =D10/$D$14 -> 0 | O125: =$D$126*M125 -> 0 | P125: =O125*(D61/100) -> 0 | Q125: =E10/($E$14) -> 0.5356760388 | R125: =$E$126*Q125 -> 698115.5122 | S125: =R125*(E61/100) -> 181112.1073 | T125: =F10/$F$14 -> 0.5402001861 | U125: =$F$126*T125 -> -33258.50486 | V125: =U125*(F61/100) -> -9111.832576
A126: PDE-G-15 | B126: UNBILLED LOAD THERMS | C126: =SUM(D126:J126) -> 4122590 | D126: ='12MEDEC16'!P185 -> 2880915 | E126: ='12MEDEC16'!P186 -> 1303242 | F126: ='12MEDEC16'!P187 -> -61567 | M126: =D11/$D$14 -> 0 | O126: =$D$126*M126 -> 0 | P126: =O126*(D62/100) -> 0 | T126: =F11/$F$14 -> 0.2420201864 | U126: =$F$126*T126 -> -14900.45682 | V126: =U126*(F62/100) -> -3308.199423
A127: PDE-G-2/5/6 | B127: UNBILLED LOAD RATE | D127: =D65 -> 42.59064006 | E127: =E65 -> 25.14786201 | F127: =F65 -> 23.59409064 | M127: =D12/$D$14 -> 0 | O127: =$D$126*M127 -> 0 | P127: =O127*(D63/100) -> 0 | T127: =F12/$F$14 -> 0.1489410839 | U127: =$F$126*T127 -> -9169.855712 | V127: =U127*(F63/100) -> -1350.261254
B128: UNBILLED LOAD REVENUE | C128: =SUM(D128:J128) -> 1540211.47 | D128: =ROUND(D126*D127/100,2) -> 1227000.14 | E128: =ROUND(E126*E127/100,2) -> 327737.5 | F128: =ROUND(F126*F127/100,2) -> -14526.17 | O128: =SUM(O123:O127) -> 2880915 | P128: =SUM(P123:P127) -> 1227000.138 | R128: =SUM(R123:R127) -> 1303242 | S128: =SUM(S123:S127) -> 327737.4998 | U128: =SUM(U123:U127) -> -61567 | V128: =SUM(V123:V127) -> -14526.17384
A130: PDE-G-14 | B130: WEATHER-SENSITIVE THERMS | C130: =SUM(D130:J130) -> 0 | D130: 0 | E130: 0
A131: PDE-G-2/5 | B131: WEATHER-SENSITIVE RATE | D131: =D59 -> 38.685 | E131: =I230 -> 26.84317998
B132: WEATHER-SENSITIVE REVENUE | C132: =SUM(D132:J132) -> 0 | D132: =ROUND(D130*D131/100,2) -> 0 | E132: =ROUND(E130*E131/100,2) -> 0
B134: TOTAL UNBILLED THERM ADJ | C134: =IF(ROUND(SUM(D134:J134),3)<>ROUND(C126+C130,3),#VALUE!,SUM(D134:J134)) -> 4122590 | D134: =D126+D130 -> 2880915 | E134: =E126+E130 -> 1303242 | F134: =F126+F130 -> -61567
B135: TOTAL UNBILLED REVENUE ADJ | C135: =IF(ROUND(SUM(D135:J135),3)<>ROUND(C128+C132,3),#VALUE!,SUM(D135:J135)) -> 1540211.47 | D135: =D128+D132 -> 1227000.14 | E135: =E128+E132 -> 327737.5 | F135: =F128+F132 -> -14526.17
B136: WEATHER NORMALIZATION ADJ | M136: Sch 101 | Q136: Sch 111
A137: PDE-G-17 | B137: WEATHER-SENSITIVE THERMS | C137: =SUM(D137:J137) -> 14281467 | D137: 10650431 | E137: 3392419 | F137: 238617 | M137: =H204/$H$207 -> 0.5643449026 | O137: =$D$137*M137 -> 6010516.445 | P137: =O137*(C204/100) -> 2325168.287 | Q137: =H225/$H$229 -> 0 | R137: =$E$137*Q137 -> 0 | S137: =R137*(C225/100) -> 0 | T137: =H251/$H$257 -> 0 | U137: =$F$137*T137 -> 0 | V137: =U137*(C251/100) -> 0
A138: PDE-G-2/5/6 | B138: WEATHER-SENSITIVE RATE | D138: =I208 -> 43.7359852 | E138: =I230 -> 26.84317998 | F138: =I258 -> 17.02791988 | M138: =H205/$H$207 -> 0.4356550974 | O138: =$D$137*M138 -> 4639914.555 | P138: =O138*(C205/100) -> 2332902.639 | Q138: =H226/$H$229 -> 0.1112569491 | R138: =$E$137*Q138 -> 377430.188 | S138: =R138*(C226/100) -> 128454.5902 | T138: =H252/$H$257 -> 0 | U138: =$F$137*T138 -> 0 | V138: =U138*(C252/100) -> 0
B139: WEATHER-SENSITIVE REVENUE | C139: =SUM(D139:J139) -> 5609335.58 | D139: =ROUND(D137*D138/100,2) -> 4658070.93 | E139: =ROUND(E137*E138/100,2) -> 910633.14 | F139: =ROUND(F137*F138/100,2) -> 40631.51 | Q139: =H227/$H$229 -> 0.8887430509 | R139: =$E$137*Q139 -> 3014988.812 | S139: =R139*(C227/100) -> 782178.5475 | T139: =H253/$H$257 -> 0 | U139: =$F$137*T139 -> 0 | V139: =U139*(C253/100) -> 0
B140: OTHER ADJUSTMENTS | T140: =H254/$H$257 -> 0.308000519 | U140: =$F$137*T140 -> 73494.15985 | V140: =U140*(C254/100) -> 16317.17337
T141: =H255/$H$257 -> 0.691999481 | U141: =$F$137*T141 -> 165122.8402 | V141: =U141*(C255/100) -> 24314.33821
B142: TOTAL ADJUSTMENT REVENUE | C142: =IF(ROUND(SUM(D142:J142),3)<>ROUND(C135+C139+C140,3),#VALUE!,SUM(D142:J142)) -> 7149547.05 | D142: =D135+D139+D140 -> 5885071.07 | E142: =E135+E139+E140 -> 1238370.64 | F142: =F135+F139+F140 -> 26105.34 | G142: 0 | H142: 0 | I142: 0 | J142: 0 | O142: =SUM(O137:O141) -> 10650431 | P142: =SUM(P137:P141) -> 4658070.926 | R142: =SUM(R137:R141) -> 3392419 | S142: =SUM(S137:S141) -> 910633.1377 | U142: =SUM(U137:U141) -> 238617 | V142: =SUM(V137:V141) -> 40631.51158
B143: =B121 -> TOTAL BASE TARIFF REVENUE | C143: =SUM(D143:J143) -> 81682112.17 | D143: =D121 -> 61737149.98 | E143: 14223769.67 | F143: 998073.97 | G143: 190168.24 | H143: =H121 -> 2920586.195 | I143: 1200177.13 | J143: 412186.98
B145: TOTAL PRESENT REVENUE | C145: =IF(ROUND(SUM(D145:J145),3)<>ROUND(C142+C143,3),#VALUE!,SUM(D145:J145)) -> 88831659.22 | D145: =D142+D143 -> 67622221.05 | E145: 15462140.31 | F145: =F142+F143 -> 1024179.31 | G145: 190168.24 | H145: =H142+H143 -> 2920586.195 | I145: 1200177.13 | J145: 412186.98
J150: TRANSPORT
A151: WORK PAPER | D151: GEN SERVICE | E151: LRG GEN SVC | F151: EX LRG GEN SVC | G151: INTERRUPTIBLE | H151: TRANSPORT | I151: TRANSPORT | J151: SCH 148 - WSU
A152: REFERENCE | C152: TOTAL | D152: SCHEDULE 101 | E152: SCHEDULE 111 | F152: SCHEDULE 121 | G152: SCHEDULE 131 | H152: SCHEDULE 146 | I152: SCHEDULE 148 | J152: ANN. MINIMUM
B153: PROPOSED REVENUE
B154: =UPPER(CHOOSE(Base1_Billing2,$O$9,$O$10))&" REVENUE" -> BASE TARIFF REVENUE
B155: BASIC CHARGE | C155: =SUM(D155:J155) -> 18140473 | D155: =D48*D74 -> 17550889 | E155: =E48*E74 -> 0 | F155: 0 | G155: 0 | H155: 264000 | I155: 9600 | J155: 315984
B156: MONTHLY/ANNUAL MINIMUM | C156: 3310734.845 | D156: =D49*D75 -> 0 | E156: 3207596.75 | F156: 65640.12 | G156: 0 | H156: ='Big Schedules'!X48 -> 37497.97545 | I156: 0 | J156: 0
B157: BLOCK 1 | C157: 27397021.79 | D157: =ROUND(D31*D77/100,2) -> 25792720.22 | E157: =ROUND(E31*E77/100,2) -> 0 | F157: 0 | G157: 58958.49 | H157: 806539.88 | I157: 642600.22 | J157: 96202.98
B158: BLOCK 2 | C158: 22816661.05 | D158: =ROUND(D32*D78/100,2) -> 17029419.28 | E158: 4769424.78 | F158: 47240.18 | G158: 60250.61 | H158: 612619.47 | I158: 297706.73 | J158: 0
B159: BLOCK 3 | C159: 7408539.92 | D159: 0 | E159: 5891054.68 | F159: 569457.22 | G159: 54925.66 | H159: 829865.25 | I159: 63237.11 | J159: 0
B160: BLOCK 4 | C160: 557724.09 | D160: 0 | E160: 0 | F160: 206755.88 | G160: 11355.58 | H160: 196516.63 | I160: 143096 | J160: 0
B161: BLOCK 5 | C161: 229985.63 | D161: 0 | E161: 0 | F161: 84390.09 | G161: 0 | H161: 101658.47 | I161: 43937.07 | J161: 0
B162: ANNUAL MINIMUM | C162: 0 | J162: =BFG!F11 -> 0
B164: SUBTOTAL | C164: =IF(ROUND(SUM(D164:J164),3)<>ROUND(SUM(C155:C162),3),#VALUE!,SUM(D164:J164)) -> 79861140.33 | D164: =SUM(D155:D163) -> 60373028.5 | E164: 13868076.21 | F164: 973483.49 | G164: 185490.34 | H164: =SUM(H155:H163) -> 2848697.675 | I164: 1200177.13 | J164: 412186.98
B165: NET SHIFTING ADJUSTMENT
B167: SUBTOTAL | C167: =SUM(D167:J167) -> 79861140.33 | D167: =D164+D165 -> 60373028.5 | E167: 13868076.21 | F167: 973483.49 | G167: 185490.34 | H167: =H164+H165 -> 2848697.675 | I167: 1200177.13 | J167: 412186.98
B168: ADJUST TO ACTUAL | C168: =SUM(D168:J168) -> 0 | D168: =ROUND(D41*D83/100,2) -> 0 | E168: =ROUND(E41*E83/100,2) -> 0 | F168: 0 | G168: 0 | H168: 0 | I168: 0 | J168: 0
B170: ="TOTAL "&UPPER(CHOOSE(Base1_Billing2,$O$9,$O$10))&" REVENUE" -> TOTAL BASE TARIFF REVENUE | C170: =IF(ROUND(SUM(D170:J170),3)<>ROUND(C167+C168,3),#VALUE!,SUM(D170:J170)) -> 79861140.33 | D170: =D167+D168 -> 60373028.5 | E170: 13868076.21 | F170: 973483.49 | G170: 185490.34 | H170: =H167+H168 -> 2848697.675 | I170: 1200177.13 | J170: 412186.98
B172: ADJUSTMENT REVENUE
B173: UNBILLED REVENUE ADJUSTMENT
B174: BASE LOAD THERMS | C174: =SUM(D174:J174) -> 4122590 | D174: =D126 -> 2880915 | E174: =E126 -> 1303242 | F174: =F126 -> -61567
A175: PDE-G-2/5/6 | B175: BASE LOAD RATE | D175: =D83 -> 40.43056206 | E175: =E83 -> 24.64505456 | F175: =F83 -> 23.05176871
B176: BASE LOAD REVENUE | C176: =SUM(D176:J176) -> 1471762.55 | D176: =ROUND(D174*D175/100,2) -> 1164770.13 | E176: =ROUND(E174*E175/100,2) -> 321184.7 | F176: =ROUND(F174*F175/100,2) -> -14192.28
B178: WEATHER-SENSITIVE THERMS | C178: =SUM(D178:J178) -> 0 | D178: =D130 -> 0 | E178: =E130 -> 0 | F178: =F130 -> 0
A179: PDE-G-2/5 | B179: WEATHER-SENSITIVE RATE | D179: =D77 -> 36.723 | E179: =I240 -> 26.30626761 | F179: =F83 -> 23.05176871
B180: WEATHER-SENSITIVE REVENUE | C180: =SUM(D180:J180) -> 0 | D180: =ROUND(D178*D179/100,2) -> 0 | E180: =ROUND(E178*E179/100,2) -> 0 | F180: =ROUND(F178*F179/100,2) -> 0
B182: TOTAL UNBILLED THERM ADJ | C182: =C174+C178 -> 4122590 | D182: =D174+D178 -> 2880915 | E182: =E174+E178 -> 1303242 | F182: =F174+F178 -> -61567
B183: TOTAL UNBILLED REVENUE ADJ | C183: =C176+C180 -> 1471762.55 | D183: =D176+D180 -> 1164770.13 | E183: =E176+E180 -> 321184.7 | F183: =F176+F180 -> -14192.28
B184: WEATHER NORMALIZATION ADJ
B185: WEATHER-SENSITIVE THERMS | C185: =SUM(D185:J185) -> 14281467 | D185: =D137 -> 10650431 | E185: =E137 -> 3392419 | F185: =F137 -> 238617
A186: PDE-G-2/5/6 | B186: WEATHER-SENSITIVE RATE | D186: =I217 -> 41.51782 | E186: =I240 -> 26.30626761 | F186: =I270 -> 16.63694379
B187: WEATHER-SENSITIVE REVENUE | C187: =SUM(D187:J187) -> 5353944.17 | D187: =ROUND(D185*D186/100,2) -> 4421826.77 | E187: =ROUND(E185*E186/100,2) -> 892418.82 | F187: =ROUND(F185*F186/100,2) -> 39698.58
B188: OTHER ADJUSTMENTS
B190: TOTAL ADJUSTMENT REVENUE | C190: =SUM(D190:J190) -> 6825706.72 | D190: =D187+D183 -> 5586596.9 | E190: 1213603.52 | F190: 25506.3 | G190: 0 | H190: =H187+H183 -> 0 | I190: 0 | J190: 0
B191: =B170 -> TOTAL BASE TARIFF REVENUE | C191: =SUM(D191:J191) -> 79861140.33 | D191: =D170 -> 60373028.5 | E191: 13868076.21 | F191: 973483.49 | G191: 185490.34 | H191: =H170 -> 2848697.675 | I191: 1200177.13 | J191: 412186.98
B192: TOTAL PROPOSED REVENUE | C192: =SUM(D192:J192) -> 86686847.05 | D192: =D190+D191 -> 65959625.4 | E192: 15081679.73 | F192: 998989.79 | G192: 185490.34 | H192: =H190+H191 -> 2848697.675 | I192: 1200177.13 | J192: 412186.98
B193: TOTAL PRESENT REVENUE | C193: =SUM(D193:J193) -> 88831659.22 | D193: =D145 -> 67622221.05 | E193: 15462140.31 | F193: 1024179.31 | G193: 190168.24 | H193: =H145 -> 2920586.195 | I193: 1200177.13 | J193: 412186.98
B195: TOTAL INCREASED REVENUE | C195: =SUM(D195:J195) -> -2144812.17 | D195: =D192-D193 -> -1662595.65 | E195: =E192-E193 -> -380460.58 | F195: -25189.52 | G195: -4677.9 | H195: =H192-H193 -> -71888.52 | I195: 0 | J195: 0
B196: PERCENT REVENUE INCREASE | C196: =C195/C193 -> -0.02414468208 | D196: =D195/D193 -> -0.02458652828 | E196: -0.02460594538 | F196: =F195/F193 -> -0.02459483389 | G196: -0.02459874477 | H196: -0.02461441477 | I196: 0 | J196: 0
A200: WORK PAPER | D200: TOTAL | E200: TOTAL | F200: BASE LOAD | G200: BASE LOAD | H200: WTHR-SENS. | I200: WTHR-SENS.
A201: REFERENCE | C201: RATES | D201: THERMS | E201: REVENUE | F201: THERMS(1) | G201: REVENUE | H201: THERMS | I201: REVENUE
B202: PRESENT BASELOAD AND WEATHER-SENSITIVE RATE
B203: SCHEDULE 101
B204: 0-70 THERMS | C204: =D59 -> 38.685 | D204: =D8 -> 70235874.57 | E204: =C204*D204/100 -> 27170748.08 | F204: =MIN(D204,F207) -> 24017006 | G204: =F204*C204/100 -> 9290978.771 | H204: =D204-F204 -> 46218868.57 | I204: =H204*C204/100 -> 17879769.3 | K204: =H204/H207 -> 0.5643449026
B205: OVER 70 THERMS | C205: =D60 -> 50.279 | D205: =D9 -> 35679396.76 | E205: =C205*D205/100 -> 17939243.9 | F205: =MIN(F207-F204,D205) -> 0 | G205: =F205*C205/100 -> 0 | H205: =D205-F205 -> 35679396.76 | I205: =H205*C205/100 -> 17939243.9 | K205: =H205/H207 -> 0.4356550974
B207: TOTAL | D207: =D204+D205 -> 105915271.3 | E207: =E204+E205 -> 45109991.97 | F207: =13*D25 -> 24017006 | G207: =G204+G205 -> 9290978.771 | H207: =H204+H205 -> 81898265.33 | I207: =I204+I205 -> 35819013.2
B208: AVERAGE RATE | E208: =E207/D207*100 -> 42.59064005 | G208: =G207/F207*100 -> 38.685 | I208: =I207/H207*100 -> 43.7359852
B211: PROPOSED BASELOAD AND WEATHER-SENSITIVE RATE
B212: SCHEDULE 101
B213: 0-70 THERMS | C213: =D77 -> 36.723 | D213: =D8 -> 70235874.57 | E213: =C213*D213/100 -> 25792720.22 | F213: =MIN(D213,F216) -> 24017006 | G213: =F213*C213/100 -> 8819765.113 | H213: =D213-F213 -> 46218868.57 | I213: =H213*C213/100 -> 16972955.1
B214: OVER 70 THERMS | C214: =D78 -> 47.729 | D214: =D9 -> 35679396.76 | E214: =C214*D214/100 -> 17029419.28 | F214: =MIN(F216-F213,D214) -> 0 | G214: =F214*C214/100 -> 0 | H214: =D214-F214 -> 35679396.76 | I214: =H214*C214/100 -> 17029419.28
B216: TOTAL | D216: =D213+D214 -> 105915271.3 | E216: =E213+E214 -> 42822139.5 | F216: =F207 -> 24017006 | G216: =G213+G214 -> 8819765.113 | H216: =H213+H214 -> 81898265.33 | I216: =I212+I213+I214 -> 34002374.38
B217: AVERAGE RATE | E217: =E216/D216*100 -> 40.43056205 | G217: =G216/F216*100 -> 36.723 | I217: =I216/H216*100 -> 41.51782
B220: (1) Base load per bill for Schedule 101 is shown on workpaper PDE-G-18 multiplied by total billings from PDE-G-1, or
B221: ="10 X "&TEXT(D25,"#,##0")&" = "&TEXT(F207,"#,##0") -> 10 X 1,847,462 = 24,017,006
B223: PRESENT BASELOAD AND WEATHER-SENSITIVE RATE
B224: SCHEDULE 111
B225: 0-200 THERMS | C225: =E59 -> 0 | D225: =E8 -> 5785416.185 | E225: =C225*D225/100 -> 0 | F225: =MIN(D225,F229) -> 5785416.185 | G225: =F225*C225/100 -> 0 | H225: =D225-F225 -> 0 | I225: =H225*C225/100 -> 0 | K225: =H225/H229 -> 0
B226: 201-1,000 THERMS | C226: =E60 -> 34.034 | D226: =E9 -> 14299408.7 | E226: =C226*D226/100 -> 4866660.757 | F226: =MIN(F229-F225,D226) -> 11398726.82 | G226: =F226*C226/100 -> 3879442.684 | H226: =D226-F226 -> 2900681.885 | I226: =H226*C226/100 -> 987218.0727 | K226: =H226/H229 -> 0.1112569491
B227: OVER 1,000 THERMS | C227: =E61 -> 25.943 | D227: =E10 -> 23171234.6 | E227: =C227*D227/100 -> 6011313.392 | F227: =MIN(F229-F225-F226,D227) -> 0 | G227: =F227*C227/100 -> 0 | H227: =D227-F227 -> 23171234.6 | I227: =H227*C227/100 -> 6011313.392 | K227: =H227/H229 -> 0.8887430509
B229: TOTAL | D229: =D225+D226+D227 -> 43256059.48 | E229: =E225+E226+E227 -> 10877974.15 | F229: =521*E26 -> 17184143 | G229: =G225+G226+G227 -> 3879442.684 | H229: =H225+H226+H227 -> 26071916.48 | I229: =I225+I226+I227 -> 6998531.465
B230: AVERAGE RATE | E230: =E229/D229*100 -> 25.14786201 | G230: =G229/F229*100 -> 22.5757123 | I230: =I229/H229*100 -> 26.84317998
B233: PROPOSED BASELOAD AND WEATHER-SENSITIVE RATE
B234: SCHEDULE 111
B235: 0-200 THERMS | C235: =E77 -> 0 | D235: =E31 -> 5785416.185 | E235: =C235*D235/100 -> 0 | F235: =MIN(D235,F239) -> 5785416.185 | G235: =F235*C235/100 -> 0 | H235: =D235-F235 -> 0 | I235: =H235*C235/100 -> 0
B236: 201-1,000 THERMS | C236: =E78 -> 33.354 | D236: =E32 -> 14299408.7 | E236: =C236*D236/100 -> 4769424.778 | F236: =MIN(F239-F235,D236) -> 11398726.82 | G236: =F236*C236/100 -> 3801931.342 | H236: =D236-F236 -> 2900681.885 | I236: =H236*C236/100 -> 967493.4358
B237: OVER 1,000 THERMS | C237: =E79 -> 25.424 | D237: =E33 -> 23171234.6 | E237: =C237*D237/100 -> 5891054.684 | F237: =MIN(F239-F235-F236,D237) -> 0 | G237: =F237*C237/100 -> 0 | H237: =D237-F237 -> 23171234.6 | I237: =H237*C237/100 -> 5891054.684
B239: TOTAL | D239: =D235+D236+D237 -> 43256059.48 | E239: =E235+E236+E237 -> 10660479.46 | F239: =F229 -> 17184143 | G239: =G235+G236+G237 -> 3801931.342 | H239: =H235+H236+H237 -> 26071916.48 | I239: =I234+I235+I236+I237 -> 6858548.12
B240: AVERAGE RATE | E240: =E239/D239*100 -> 24.64505456 | G240: =G239/F239*100 -> 22.12464911 | I240: =I239/H239*100 -> 26.30626761
B243: (1) Base load per bill for Schedule 111 is shown on workpaper PDE-G-18 multiplied by total billings from PDE-G-1, or
B244: ="527 X "&TEXT(E26,"#,##0")&" = "&TEXT(F229,"#,##0") -> 527 X 32,983 = 17,184,143
A246: WORK PAPER | D246: TOTAL | E246: TOTAL | F246: BASE LOAD | G246: BASE LOAD | H246: WTHR-SENS. | I246: WTHR-SENS.
A247: REFERENCE | C247: RATES | D247: THERMS | E247: REVENUE | F247: THERMS(1) | G247: REVENUE | H247: THERMS | I247: REVENUE
B249: PRESENT BASELOAD AND WEATHER-SENSITIVE RATE
B250: SCHEDULE 121
B251: 0-500 THERMS | C251: =F59 -> 0 | D251: =F31 -> 135552.6267 | E251: =C251*D251/100 -> 0 | F251: =MIN(D251,F257) -> 135552.6267 | G251: =F251*C251/100 -> 0 | H251: =D251-F251 -> 0 | I251: =H251*C251/100 -> 0
B252: 501-1,000 THERMS | C252: =F60 -> 35.67 | D252: =F32 -> 135552.8844 | E252: =C252*D252/100 -> 48351.71387 | F252: =MIN(F257-F251,D252) -> 135552.8844 | G252: =F252*C252/100 -> 48351.71387 | H252: =D252-F252 -> 0 | I252: =H252*C252/100 -> 0
B253: 1001-10,000 THERMS | C253: =F61 -> 27.397 | D253: =F33 -> 2127459.995 | E253: =C253*D253/100 -> 582860.2147 | F253: =MIN(F257-F251-F252,D253) -> 2127459.995 | G253: =F253*C253/100 -> 582860.2147 | H253: =D253-F253 -> 0 | I253: =H253*C253/100 -> 0
B254: 10,001-25,000 THERMS | C254: =F62 -> 22.202 | D254: =F34 -> 953143.4416 | E254: =C254*D254/100 -> 211616.9069 | F254: =MIN(F257-F251-F252-F253,D254) -> 692067.4943 | G254: =F254*C254/100 -> 153652.8251 | H254: =D254-F254 -> 261075.9473 | I254: =H254*C254/100 -> 57964.08181
B255: OVER 25,000 THERMS | C255: =F63 -> 14.725 | D255: =F35 -> 586571.8038 | E255: =C255*D255/100 -> 86372.6981 | F255: =MIN(F257-F251-F252-F253-F254,D255) -> 0 | G255: =F255*C255/100 -> 0 | H255: =D255-F255 -> 586571.8038 | I255: =H255*C255/100 -> 86372.6981
B257: TOTAL | D257: =D251+D252+D253+D254+D255 -> 3938280.751 | E257: =E251+E252+E253+E254+E255 -> 929201.5336 | F257: =11321*F26 -> 3090633 | G257: =G251+G252+G253 -> 631211.9286 | H257: =H251+H252+H253+H254+H255 -> 847647.751 | I257: =I251+I252+I253+I254+I255 -> 144336.7799
B258: AVERAGE RATE | E258: =E257/D257*100 -> 23.59409073 | G258: =G257/F257*100 -> 20.42338668 | I258: =I257/H257*100 -> 17.02791988
B261: PROPOSED BASELOAD AND WEATHER-SENSITIVE RATE
B262: SCHEDULE 121
B263: 0-500 THERMS | C263: =F77 -> 0 | D263: =F31 -> 135552.6267 | E263: =C263*D263/100 -> 0 | F263: =MIN(D263,F269) -> 135552.6267 | G263: =F263*C263/100 -> 0 | H263: =D263-F263 -> 0 | I263: =H263*C263/100 -> 0
B264: 501-1,000 THERMS | C264: =F78 -> 34.85 | D264: =F32 -> 135552.8844 | E264: =C264*D264/100 -> 47240.18022 | F264: =MIN(F269-F263,D264) -> 135552.8844 | G264: =F264*C264/100 -> 47240.18022 | H264: =D264-F264 -> 0 | I264: =H264*C264/100 -> 0
B265: 1001-10,000 THERMS | C265: =F79 -> 26.767 | D265: =F33 -> 2127459.995 | E265: =C265*D265/100 -> 569457.2167 | F265: =MIN(F269-F263-F264,D265) -> 2127459.995 | G265: =F265*C265/100 -> 569457.2167 | H265: =D265-F265 -> 0 | I265: =H265*C265/100 -> 0
B266: 10,001-25,000 THERMS | C266: =F80 -> 21.692 | D266: =F34 -> 953143.4416 | E266: =C266*D266/100 -> 206755.8753 | F266: =MIN(F269-F263-F264-F265,D266) -> 692067.4943 | G266: =F266*C266/100 -> 150123.2809 | H266: =D266-F266 -> 261075.9473 | I266: =H266*C266/100 -> 56632.59448
B267: OVER 25,000 THERMS | C267: =F81 -> 14.387 | D267: =F35 -> 586571.8038 | E267: =C267*D267/100 -> 84390.08541 | F267: =MIN(F269-F263-F264-F265-F266,D267) -> 0 | G267: =F267*C267/100 -> 0 | H267: =D267-F267 -> 586571.8038 | I267: =H267*C267/100 -> 84390.08541
B269: TOTAL | D269: =D263+D264+D265+D266+D267 -> 3938280.751 | E269: =E263+E264+E265+E266+E267 -> 907843.3577 | F269: =F257 -> 3090633 | G269: =G263+G264+G265+G266+G267 -> 766820.6778 | H269: =H263+H264+H265+H266+H267 -> 847647.751 | I269: =I262+I263+I264+I265+I266+I267 -> 141022.6799
B270: AVERAGE RATE | E270: =E269/D269*100 -> 23.0517684 | G270: =G269/F269*100 -> 24.8111205 | I270: =I269/H269*100 -> 16.63694379
B272: (1) Base load per bill for Schedule 121 is shown on workpaper PDE-G-18 multiplied by total billings from PDE-G-1, or
B273: ="11,802 X "&TEXT(F26,"#,##0")&" = "&TEXT(F257,"#,##0") -> 11,802 X 273 = 3,090,633
D276: =D195/D48 -> -0.8999349648 | E276: =E195/E49 -> -11.53505078 | F276: =F195/F49 -> -92.26930403 | G276: =G195/G48 -> -194.9125 | H276: =H195/H48 -> -149.76775
D277: =D46/D48 -> 64.654438 | E277: =E46/E49 -> 1453.831382 | F277: =F46/F49 -> 15074.47162 | G277: =G46/G48 -> 37552.79167 | H277: =H46/H48 -> 63999.01875
D280: =D74-D56 -> 0.5
D281: =ROUND(((D59*65)/100),2) -> 25.15
... 2 more rows

Sheet Rate Design
A1: PRESENT RATES | D1: 1 | E1: 2 | F1: 3 | G1: 4 | H1: 5 | L1: Tiers - used for bill comparisons
C2: TOTAL | D2: SCH. 101,102 | E2: SCH. 111,112 | F2: SCH. 121,122 | G2: SCH. 132 | H2: SCH. 146 | J2: Range Name | L2: SCH. 101 | M2: SCH. 111,112 | N2: SCH. 121,122 | O2: SCH. 131,132 | P2: SCH. 146
B3: Base Tariff Rates
A4: 1 | B4: BASIC CHARGE | D4: 9 | H4: 525
A5: 2 | B5: MONTHLY MINIMUM | E5: 101.44 | F5: 252.28
A6: 3 | B6: BLOCK 1 PER THERM | D6: 38.685 | E6: 0 | F6: 0 | G6: 25.277 | H6: 10.009 | L6: 9999999 | M6: 200 | N6: 500 | O6: 10000 | P6: 20000
A7: 4 | B7: BLOCK 2 PER THERM | D7: 50.279 | E7: 34.034 | F7: 35.67 | G7: 20.291 | H7: 8.905 | I7: =H7/H6-1 -> -0.1103007293 | L7: 9999999 | M7: 1000 | N7: 1000 | O7: 25000 | P7: 50000
A8: 5 | B8: BLOCK 3 PER THERM | E8: 25.943 | F8: 27.397 | G8: 19.067 | H8: 8.03 | I8: =H8/H7-1 -> -0.09825940483 | J8: Rates_Base_Present | L8: 9999999 | M8: 9999999 | N8: 10000 | O8: 50000 | P8: 300000
A9: 6 | B9: BLOCK 4 PER THERM | F9: 22.202 | G9: 18.662 | H9: 7.426 | I9: =H9/H8-1 -> -0.07521793275 | L9: 9999999 | M9: 9999999 | N9: 25000 | O9: 9999999 | P9: 500000
A10: 7 | B10: BLOCK 5 PER THERM | F10: 14.725 | H10: 5.581 | I10: =H10/H9-1 -> -0.248451387 | L10: 9999999 | M10: 9999999 | N10: 9999999 | O10: 9999999 | P10: 9999999
L11: 1st block rate | M11: =(M6/100*E6+E5)/M6*100 -> 50.72 | N11: =(N6/100*F6+F5)/N6*100 -> 50.456
B12: Billing Rates | D12: =IF(D13<>'Pres & Prop Rev'!D$5,#VALUE!,"") ->  | E12: =IF(E13<>'Pres & Prop Rev'!E$5,#VALUE!,"") ->  | F12: =IF(F13<>'Pres & Prop Rev'!F$5,#VALUE!,"") ->  | G12: =IF(G13<>'Pres & Prop Rev'!G$5,#VALUE!,"") ->  | H12: =IF(H13<>'Pres & Prop Rev'!H$5,#VALUE!,"") ->  | L12: check | M12: =M6*M11/100-(M6*E6/100+E5) -> 0 | N12: =N6*N11/100-(N6*F6/100+F5) -> 0
D13: SCH. 101 & 102 | E13: SCH. 111&112 | F13: SCH. 121&122 | G13: SCH. 131&132 | H13: SCHEDULE 146
A14: 1 | B14: BASIC CHARGE | D14: =D4 -> 9 | E14: 0 | F14: 0 | G14: 0 | H14: 525
A15: 2 | B15: MONTHLY MINIMUM | D15: 0 | E15: =E5 -> 101.44 | F15: =F5 -> 252.28 | G15: 0 | H15: 0
A16: 3 | B16: BLOCK 1 PER THERM | D16: =D6+28.488-9.504+5.58+2.229+1.91 -> 67.388 | E16: =E6+27.568-7.835+3.904+1.581+1.6 -> 26.818 | F16: =F6+28.163-4.973+3.904+1.614+1.462 -> 30.17 | G16: =G6+23.775+1.521+1.404 -> 51.977 | H16: =H6+0.056+0.083 -> 10.148 | L16: =L6 -> 9999999 | M16: 200 | N16: 500 | O16: 10000 | P16: 20000
A17: 4 | B17: BLOCK 2 PER THERM | D17: =D7+28.488-9.504+5.58+2.229+1.91 -> 78.982 | E17: =E7+27.568-7.835+3.904+1.581+1.6 -> 60.852 | F17: =F7+28.163-4.973+3.904+1.614+1.462 -> 65.84 | G17: =G7+23.775+1.521+1.404 -> 46.991 | H17: =H7+0.056+0.083 -> 9.044 | L17: 9999999 | M17: 1000 | N17: 1000 | O17: 25000 | P17: 50000
A18: 5 | B18: BLOCK 3 PER THERM | D18: =D8 -> 0 | E18: =E8+27.568-7.835+3.904+1.581+1.6 -> 52.761 | F18: =F8+28.163-4.973+3.904+1.614+1.462 -> 57.567 | G18: =G8+23.775+1.521+1.404 -> 45.767 | H18: =H8+0.056+0.083 -> 8.169 | J18: Rates_Billing_Present | L18: 9999999 | M18: 9999999 | N18: 10000 | O18: 50000 | P18: 300000
A19: 6 | B19: BLOCK 4 PER THERM | D19: =D9 -> 0 | F19: =F9+28.163-4.973+3.904+1.614+1.462 -> 52.372 | G19: =G9+23.775+1.521+1.404 -> 45.362 | H19: =H9+0.056+0.083 -> 7.565 | L19: =L9 -> 9999999 | M19: 9999999 | N19: 25000 | O19: 9999999 | P19: 500000
A20: 7 | B20: BLOCK 5 PER THERM | D20: =D10 -> 0 | E20: =E10 -> 0 | F20: =F10+28.163-4.973+3.904+1.614+1.462 -> 44.895 | H20: =H10+0.056+0.083 -> 5.72 | L20: 9999999 | M20: 9999999 | N20: 9999999 | O20: 9999999 | P20: 9999999
L21: 1st block rate | M21: =(M16/100*E16+E15)/M16*100 -> 77.538 | N21: =(N16/100*F16+F15)/N16*100 -> 80.626
A22: PROPOSED RATES | L22: check | M22: =M16*M21/100-(M16*E16/100+E15) -> 0 | N22: =N16*N21/100-(N16*F16/100+F15) -> 0
B24: Base Tariff Rates | D24: =IF(D25<>'Pres & Prop Rev'!D$5,#VALUE!,"") ->  | E24: =IF(E25<>'Pres & Prop Rev'!E$5,#VALUE!,"") ->  | F24: =IF(F25<>'Pres & Prop Rev'!F$5,#VALUE!,"") ->  | G24: =IF(G25<>'Pres & Prop Rev'!G$5,#VALUE!,"") ->  | H24: =IF(H25<>'Pres & Prop Rev'!H$5,#VALUE!,"") -> 
D25: SCH. 101 & 102 | E25: SCH. 111&112 | F25: SCH. 121&122 | G25: SCH. 131&132 | H25: SCHEDULE 146
A26: 1 | B26: BASIC CHARGE | D26: =IF(D4>0,ROUND(D63,2),0) -> 9.5 | E26: =IF(E4>0,ROUND(E63,2),0) -> 0 | F26: =IF(F4>0,ROUND(F63,2),0) -> 0 | G26: =IF(G4>0,ROUND(G63,2),0) -> 0 | H26: =IF(H4>0,ROUND(H63,2),0) -> 550
A27: 2 | B27: MONTHLY MINIMUM | D27: =IF(D5>0,ROUND(D63,2),0) -> 0 | E27: =IF(E5>0,ROUND(E63,2),0) -> 97.25 | F27: =IF(F5>0,ROUND(F63,2),0) -> 240.44 | G27: =IF(G5>0,ROUND(G63,2),0) -> 0 | H27: =IF(H5>0,ROUND(H63,2),0) -> 0
A28: 2 | B28: BLOCK 1 PER THERM | D28: =ROUND(D82,3) -> 36.723 | E28: =ROUND(E82,3) -> 0 | F28: 0 | G28: 24.655 | H28: 9.69 | L28: 9999999 | M28: 200 | N28: 500 | O28: 10000 | P28: 20000
A29: 3 | B29: BLOCK 2 PER THERM | D29: =ROUND(D83,3) -> 47.729 | E29: 33.354 | F29: 34.85 | G29: 19.792 | H29: 8.621 | I29: =H29/H28-1 -> -0.1103199174 | L29: 9999999 | M29: 1000 | N29: 1000 | O29: 25000 | P29: 50000
A30: 4 | B30: BLOCK 3 PER THERM | D30: 0 | E30: 25.424 | F30: 26.767 | G30: 18.598 | H30: 7.774 | I30: =H30/H29-1 -> -0.09824846306 | J30: Rates_Base_Proposed | L30: 9999999 | M30: 9999999 | N30: 10000 | O30: 50000 | P30: 300000
A31: 5 | B31: BLOCK 4 PER THERM | D31: =ROUND(D85,3) -> 0 | E31: 0 | F31: 21.692 | G31: 18.203 | H31: 7.189 | I31: =H31/H30-1 -> -0.07525083612 | L31: 9999999 | M31: 9999999 | N31: 25000 | O31: 9999999 | P31: 500000
A32: 6 | B32: BLOCK 5 PER THERM | D32: 0 | E32: 0 | F32: 14.387 | G32: 0 | H32: 5.403 | I32: =H32/H31-1 -> -0.2484351092 | L32: 9999999 | M32: 9999999 | N32: 9999999 | O32: 9999999 | P32: 9999999
L33: 1st block rate | M33: =(M28/100*E28+E27)/M28*100 -> 48.625 | N33: =(N28/100*F28+F27)/N28*100 -> 48.088
B34: Billing Rates | D34: =D28/D6-1 -> -0.0507173323 | E34: =IF(E35<>'Pres & Prop Rev'!E$5,#VALUE!,"") ->  | F34: =IF(F35<>'Pres & Prop Rev'!F$5,#VALUE!,"") ->  | G34: =IF(G35<>'Pres & Prop Rev'!G$5,#VALUE!,"") ->  | H34: =IF(H35<>'Pres & Prop Rev'!H$5,#VALUE!,"") ->  | L34: check | M34: =M28*M33/100-(M28*E28/100+E27) -> 0 | N34: =N28*N33/100-(N28*F28/100+F27) -> 0
D35: SCH. 101 & 102 | E35: SCH. 111&112 | F35: SCH. 121&122 | G35: SCH. 131&132 | H35: SCHEDULE 146 | L35: Basic Charge Calc | M35: =E5+(D26-D4)+(((D28/100)-(D6/100))*70)+(((D29/100)-(D7/100))*130) -> 97.2516 | N35: =F5+(D26-D4)+(70*((D28/100)-(D6/100)))+(430*((D29/100)-(D7/100))) -> 240.4416 | S35: 100
A36: 1 | B36: BASIC CHARGE | D36: =D26 -> 9.5 | E36: 0 | F36: 0 | G36: 0 | H36: 550 | S36: LIRAP increase
A37: 2 | B37: MONTHLY MINIMUM | D37: 0 | E37: 97.25 | F37: =F27 -> 240.44 | G37: 0 | H37: 0 | S37: 101 | T37: 111 | U37: 121 | V37: 131
A38: 2 | B38: BLOCK 1 PER THERM | D38: =D28+28.488-9.504+5.58+2.229+1.91 -> 65.426 | E38: =E28+27.568-7.835+3.904+1.581+1.6 -> 26.818 | F38: =F28+28.163-4.973+3.904+1.614+1.462 -> 30.17 | G38: =G28+23.775+1.521+1.404 -> 51.355 | H38: =H28+0.056+0.083 -> 9.829 | L38: =L28 -> 9999999 | M38: 200 | N38: 500 | O38: 10000 | P38: 20000 | S38: 0 | T38: 0 | U38: 0 | V38: 0
A39: 3 | B39: BLOCK 2 PER THERM | D39: =D29+28.488-9.504+5.58+2.229+1.91 -> 76.432 | E39: =E29+27.568-7.835+3.904+1.581+1.6 -> 60.172 | F39: =F29+28.163-4.973+3.904+1.614+1.462 -> 65.02 | G39: =G29+23.775+1.521+1.404 -> 46.492 | H39: =H29+0.056+0.083 -> 8.76 | L39: 9999999 | M39: 1000 | N39: 1000 | O39: 25000 | P39: 50000 | S39: =S$38 -> 0 | T39: =T$38 -> 0 | U39: =U$38 -> 0 | V39: =V$38 -> 0
A40: 4 | B40: BLOCK 3 PER THERM | D40: =D30 -> 0 | E40: =E30+27.568-7.835+3.904+1.581+1.6 -> 52.242 | F40: =F30+28.163-4.973+3.904+1.614+1.462 -> 56.937 | G40: =G30+23.775+1.521+1.404 -> 45.298 | H40: =H30+0.056+0.083 -> 7.913 | J40: Rates_Billing_Proposed | L40: 9999999 | M40: 9999999 | N40: 10000 | O40: 50000 | P40: 300000 | S40: =S$38 -> 0 | T40: 0 | U40: 0 | V40: 0
A41: 5 | B41: BLOCK 4 PER THERM | D41: =D31 -> 0 | E41: =E31 -> 0 | F41: =F31+28.163-4.973+3.904+1.614+1.462 -> 51.862 | G41: =G31+23.775+1.521+1.404 -> 44.903 | H41: =H31+0.056+0.083 -> 7.328 | L41: 9999999 | M41: 9999999 | N41: 25000 | O41: 9999999 | P41: 500000 | S41: 0 | T41: 0 | U41: 0 | V41: 0
A42: 6 | B42: BLOCK 5 PER THERM | D42: =D32 -> 0 | E42: =E32 -> 0 | F42: =F32+28.163-4.973+3.904+1.614+1.462 -> 44.557 | H42: =H32+0.056+0.083 -> 5.542 | L42: 9999999 | M42: 9999999 | N42: 9999999 | O42: 9999999 | P42: 9999999 | S42: 0 | T42: 0 | U42: 0 | V42: 0
L43: 1st block rate | M43: =(M38/100*E38+E37)/M38*100 -> 75.443 | N43: =(N38/100*F38+F37)/N38*100 -> 78.258
L44: check | M44: =M38*M43/100-(M38*E38/100+E37) -> 0 | N44: =N38*N43/100-(N38*F38/100+F37) -> 0
B47: Proposed Rate Workup - from Pres & Prop Rev tab
B49: THERMS
B50: BLOCK 1 | C50: =SUM(D50:H50) -> 84719402.38 | D50: ='Pres & Prop Rev'!D31 -> 70235874.57 | E50: ='Pres & Prop Rev'!E31 -> 5785416.185 | F50: ='Pres & Prop Rev'!F31 -> 135552.6267 | G50: ='Pres & Prop Rev'!G31 -> 239134 | H50: ='Pres & Prop Rev'!H31 -> 8323425
B51: BLOCK 2 | C51: 57524907.35 | D51: ='Pres & Prop Rev'!D32 -> 35679396.76 | E51: ='Pres & Prop Rev'!E32 -> 14299408.7 | F51: ='Pres & Prop Rev'!F32 -> 135552.8844 | G51: ='Pres & Prop Rev'!G32 -> 304419 | H51: ='Pres & Prop Rev'!H32 -> 7106130
B52: BLOCK 3 | C52: 36268906.59 | D52: ='Pres & Prop Rev'!D33 -> 0 | E52: ='Pres & Prop Rev'!E33 -> 23171234.6 | F52: ='Pres & Prop Rev'!F33 -> 2127459.995 | G52: ='Pres & Prop Rev'!G33 -> 295331 | H52: ='Pres & Prop Rev'!H33 -> 10674881
B53: BLOCK 4 | C53: 3749100.442 | D53: ='Pres & Prop Rev'!D34 -> 0 | E53: ='Pres & Prop Rev'!E34 -> 0 | F53: ='Pres & Prop Rev'!F34 -> 953143.4416 | G53: ='Pres & Prop Rev'!G34 -> 62383 | H53: ='Pres & Prop Rev'!H34 -> 2733574
B54: BLOCK 5 | C54: 2468090.804 | D54: ='Pres & Prop Rev'!D35 -> 0 | E54: ='Pres & Prop Rev'!E35 -> 0 | F54: ='Pres & Prop Rev'!F35 -> 586571.8038 | G54: ='Pres & Prop Rev'!G35 -> 0 | H54: ='Pres & Prop Rev'!H35 -> 1881519
B55: ADJ. TO ACTUAL | C55: 0 | D55: ='Pres & Prop Rev'!D41 -> 0 | E55: ='Pres & Prop Rev'!E41 -> 0 | F55: ='Pres & Prop Rev'!F41 -> 0 | G55: ='Pres & Prop Rev'!G41 -> 0 | H55: ='Pres & Prop Rev'!H41 -> 0
B56: WEATHER & U/B THERMS | C56: 18404057 | D56: ='Pres & Prop Rev'!D44 -> 13531346 | E56: ='Pres & Prop Rev'!E44 -> 4695661 | F56: ='Pres & Prop Rev'!F44 -> 177050 | G56: ='Pres & Prop Rev'!G44 -> 0 | H56: ='Pres & Prop Rev'!H44 -> 0 | I56: Proposed rates:
B57: TOTAL PROFORMA THERMS | C57: =IF(ROUND(SUM(D57:H57),3)<>ROUND(SUM(C50:C56),3),#VALUE!,SUM(D57:H57)) -> 203134464.6 | D57: =SUM(D50:D56) -> 119446617.3 | E57: =SUM(E50:E56) -> 47951720.48 | F57: =SUM(F50:F56) -> 4115330.751 | G57: =SUM(G50:G56) -> 901267 | H57: =SUM(H50:H56) -> 30719529 | I57: same as current
B58: TOTAL BILLS | D58: =SUM('Pres & Prop Rev'!D48:D49) -> 1847462 | E58: =SUM('Pres & Prop Rev'!E48:E49) -> 32983 | F58: =SUM('Pres & Prop Rev'!F48:F49) -> 273 | G58: =SUM('Pres & Prop Rev'!G48:G49) -> 24 | H58: =SUM('Pres & Prop Rev'!H48:H49) -> 480 | I58: diff than current
I59: Formulas to copy
B60: Proposed Revenue | C60: =SUM(D60:H60) -> 85074490.19 | D60: ='Rate Spread'!H13*1000 -> 65959371.65 | E60: ='Rate Spread'!H14*1000 -> 15081876.21 | F60: ='Rate Spread'!H15*1000 -> 998991.4241 | G60: ='Rate Spread'!H16*1000 -> 185491.3871 | H60: ='Rate Spread'!H17*1000 -> 2848759.523 | I60: FLOOR | J60: CEILING | K60: OTHER
B61: Targeted Rate Change | C61: ='Rate Spread'!F19 -> -0.02414685089 | D61: ='Rate Spread'!F13 -> -0.02459323841 | E61: ='Rate Spread'!F14 -> -0.02459323841 | F61: ='Rate Spread'!F15 -> -0.02459323841 | G61: ='Rate Spread'!F16 -> -0.02459323841 | H61: ='Rate Spread'!F17 -> -0.02459323841
B62: Present Basic/Min Charge | D62: =D4+D5 -> 9 | E62: =E4+E5 -> 101.44 | F62: =F4+F5 -> 252.28 | G62: =G4+G5 -> 0 | H62: =H4+H5 -> 525
B63: BASIC/MIN CHARGE | D63: 9.5 | E63: =ROUND(('Yr 1 RD'!D15*70)+('Yr 1 RD'!D16*130)+D62+(70*'Yr 1 RD'!G15)+(130*'Yr 1 RD'!G16)+'Yr 1 RD'!G13,2) -> 97.25 | F63: =ROUND(('Yr 1 RD'!D15*70)+('Yr 1 RD'!D16*430)+(70*'Yr 1 RD'!G15)+(430*'Yr 1 RD'!G16)+'Yr 1 RD'!H13,2) -> 240.44 | G63: 0 | H63: 550 | I63: =FLOOR(I62*(1+I$61),$I64) -> 0 | J63: =CEILING(J62*(1+J$61),$J64) -> 0 | K63: 1.05
B64: % D in Basic Charge | D64: =IF(D62,D63/D62-1,0) -> 0.05555555556 | E64: =IF(E62,E63/E62-1,0) -> -0.04130520505 | F64: =IF(F62,F63/F62-1,0) -> -0.04693198034 | G64: =IF(G62,G63/G62-1,0) -> 0 | H64: =IF(H62,H63/H62-1,0) -> 0.04761904762 | I64: 0.05 | J64: 0.05
B65: Basic Charge Revenue | C65: =SUM(D65:H65) -> 21125623.85 | D65: =D58*D63 -> 17550889 | E65: =E58*E63 -> 3207596.75 | F65: =F58*F63 -> 65640.12 | G65: =G58*G63 -> 0 | H65: =(H58*H63)+'Pres & Prop Rev'!H156 -> 301497.9755
D66: 0
B67: Present Block 1 Rate | D67: =D6 -> 38.685 | E67: 0 | F67: 0 | G67: 25.277 | H67: 10.009 | J67: =+E62+(D63-D62)+30*(D82/100)+130*(D83/100) -> 175.0041555
B68: Present Block 2 Rate | D68: 50.279 | E68: 34.034 | F68: 35.67 | G68: 20.291 | H68: 8.905
B69: Present Block 3 Rate | D69: 0 | E69: 25.943 | F69: 27.397 | G69: 19.067 | H69: 8.03
B70: Present Block 4 Rate | D70: =D9 -> 0 | E70: 0 | F70: =F9 -> 22.202 | G70: 18.662 | H70: 7.426
B71: Present Block 5 Rate | D71: 0 | E71: 0 | F71: 14.725 | G71: 0 | H71: 5.581
B73: 1) Flat Rate Increase | D73: 1 | E73: 1 | F73: 1 | G73: 1 | H73: 1
B74: 2) % Rate Increase | D74: -0.05072282498 | E74: -0.01997939496 | F74: -0.02298374331 | G74: -0.02459322661 | H74: -0.03186007295 | K74: =K$61 -> 0
B75: Method ---> | D75: 2 | E75: 2 | F75: 2 | G75: 2 | H75: 2
F76: 0
A77: Calculated | B77: BLOCK 1 PER THERM | D77: =CHOOSE(D$75,D67+D$73,D67*(1+D$74)) -> 36.72278752 | E77: =E67 -> 0 | F77: =F67 -> 0 | G77: =CHOOSE(G$75,G67+G$73,G67*(1+G$74)) -> 24.65535701 | H77: 9.69011253
B78: BLOCK 2 PER THERM | D78: =CHOOSE(D$75,D68+D$73,D68*(1+D$74)) -> 47.72870708 | E78: =CHOOSE(E$75,E68+E$73,E68*(1+E$74)) -> 33.35402127 | F78: =CHOOSE(F$75,F68+F$73,F68*(1+F$74+F76)) -> 34.85016988 | G78: 19.79197884 | H78: 8.62128605
B79: BLOCK 3 PER THERM | D79: 0 | E79: 25.42467456 | F79: =CHOOSE(F$75,F69+F$73,F69*(1+F$74+F76)) -> 26.76731438 | G79: =CHOOSE(G$75,G69+G$73,G69*(1+G$74)) -> 18.59808095 | H79: 7.774163614
B80: BLOCK 4 PER THERM | D80: 0 | E80: 0 | F80: =CHOOSE(F$75,F70+F$73,F70*(1+F$74+F76)) -> 21.69171493 | G80: =CHOOSE(G$75,G70+G$73,G70*(1+G$74)) -> 18.2030412 | H80: 7.189407098
B81: BLOCK 5 PER THERM | D81: 0 | E81: 0 | F81: =CHOOSE(F$75,F71+F$73,F71*(1+F$74+F76)) -> 14.38656438 | G81: 0 | H81: =CHOOSE(H$75,H71+H$73,H71*(1+H$74)) -> 5.403188933
A82: Input | B82: BLOCK 1 PER THERM | D82: =D77 -> 36.72278752 | E82: =E77 -> 0 | F82: =F77 -> 0 | G82: =G77 -> 24.65535701 | H82: =H77 -> 9.69011253 | J82: =F82-F67 -> 0 | K82: =H82-H67 -> -0.3188874701 | L82: =D63+((D77/100)*200) -> 82.94557503 | M82: =E63+((E82/100)*200) -> 97.25 | P82: =F63+((F82/100)*500) -> 240.44
B83: BLOCK 2 PER THERM | D83: =D78 -> 47.72870708 | E83: =E78-0 -> 33.35402127 | F83: =F78 -> 34.85016988 | G83: 19.79197884 | H83: 8.62128605 | J83: =F83-F68 -> -0.8198301238 | K83: =H83-H68 -> -0.2837139496
B84: BLOCK 3 PER THERM | E84: =E79-0.001 -> 25.42367456 | F84: 26.76731438 | G84: 18.59808095 | H84: 7.774163614 | J84: =F84-F69 -> -0.6296856154 | K84: =H84-H69 -> -0.2558363858
B85: BLOCK 4 PER THERM | E85: =E80 -> 0 | F85: 21.69171493 | G85: 18.2030412 | H85: 7.189407098 | J85: =F85-F70 -> -0.5102850689 | K85: =H85-H70 -> -0.2365929017
B86: BLOCK 5 PER THERM | E86: =E81 -> 0 | F86: 14.38656438 | G86: 0 | H86: 5.403188933 | J86: =F86-F71 -> -0.3384356202 | K86: =H86-H71 -> -0.1778110671
B87: Blocks 1-5 Revenue | C87: =SUM(D87:H87) -> 57122890.78 | D87: =SUMPRODUCT(D50:D54,D82:D86)/100 -> 42821885.75 | E87: =SUMPRODUCT(E50:E54,E82:E86)/100 -> 10660407.09 | F87: =SUMPRODUCT(F50:F54,F82:F86)/100 -> 907845.0041 | G87: =SUMPRODUCT(G50:G54,G82:G86)/100 -> 185491.3871 | H87: =SUMPRODUCT(H50:H54,H82:H86)/100 -> 2547261.547 | L87: 101 | M87: 111/112 | N87: 101 | O87: 111 | P87: 121
B88: Adj. to Actual Revenue | C88: =SUM(D88:H88) -> 0 | D88: ='Pres & Prop Rev'!D168 -> 0 | E88: ='Pres & Prop Rev'!E168 -> 0 | F88: ='Pres & Prop Rev'!F168 -> 0 | G88: ='Pres & Prop Rev'!G168 -> 0 | H88: ='Pres & Prop Rev'!H168 -> 0 | K88: Breakeven Proof Calc | M88: 200 | N88: 500
B89: Weather & U/B Revenue | C89: =SUM(D89:H89) -> 6825706.72 | D89: ='Pres & Prop Rev'!D190 -> 5586596.9 | E89: ='Pres & Prop Rev'!E190 -> 1213603.52 | F89: ='Pres & Prop Rev'!F190 -> 25506.3 | G89: ='Pres & Prop Rev'!G190 -> 0 | H89: ='Pres & Prop Rev'!H190 -> 0 | K89: Basic Charge/Minimum | L89: =D63 -> 9.5 | M89: =E63 -> 97.25 | N89: =D63 -> 9.5 | O89: =E63 -> 97.25 | P89: =F63 -> 240.44
K90: Therm Rate | L90: =D82/100 -> 0.3672278752 | N90: =D82/100 -> 0.3672278752 | O90: =(E82/100) -> 0 | P90: =F82/100 -> 0
B91: Revenue Remaining | C91: =IF(ROUND(C60-C65-SUM(C87:C89),3)<>ROUND(SUM(D91:H91),3),#VALUE!,SUM(D91:H91)) -> 268.842346 | D91: =D60-D65-SUM(D87:D89) -> 0 | E91: =E60-E65-SUM(E87:E89) -> 268.842346 | F91: =F60-F65-SUM(F87:F89) -> 0 | G91: =G60-G65-SUM(G87:G89) -> 0 | H91: =H60-H65-SUM(H87:H89) -> 0 | K91: Therm Rate | L91: =D83/100 -> 0.4772870708 | N91: =L91 -> 0.4772870708 | O91: ='Yr 1 RD'!D20 -> 0.34034
B92: Revenue Remaining - ¢/Th | C92: =C91/C57*100 -> 0.0001323469883 | D92: 0 | E92: 0.0005606521378 | F92: 0 | G92: 0 | H92: 0 | K92: Bill Calculation | L92: =(70*L90)+(130*L91)+L89 -> 97.25327047 | M92: =(M88*M90)+M89 -> 97.25 | N92: =((70*N90)+(430*N91))+N89 -> 240.4393917 | O92: =O89+(200*O90)+((N88-200)*O91) -> 199.352 | P92: =P89+(N88*P90) -> 240.44
B93: check - < $4k is rounding | C93: =SUM(D93:H93) -> -261.5909937 | D93: =D60-'Pres & Prop Rev'!D192-D91 -> -253.754226 | E93: =E60-'Pres & Prop Rev'!E192-E91 -> -72.36534833 | F93: =F60-'Pres & Prop Rev'!F192-F91 -> 1.634052617 | G93: =G60-'Pres & Prop Rev'!G192-G91 -> 1.047135305 | H93: =H60-'Pres & Prop Rev'!H192-H91 -> 61.84739274
K94: Gas Costs | L94: 0 | M94: =E82/100 -> 0 | N94: =L94 -> 0 | O94: =M94 -> 0 | P94: =F82/100 -> 0
B95: Proposed Target | C95: =SUM(D95:H95) -> 85074490.19 | D95: =D60 -> 65959371.65 | E95: =E60 -> 15081876.21 | F95: =F60 -> 998991.4241 | G95: =G60 -> 185491.3871 | H95: =H60 -> 2848759.523 | K95: Gas Cost Revenue | L95: =L94*200 -> 0 | M95: =M94*200 -> 0 | N95: =$N$88*N94 -> 0 | O95: =$N$88*O94 -> 0 | P95: =$N$88*P94 -> 0
B96: Proposed Actual | C96: ='Pres & Prop Rev'!C192-SUM('Pres & Prop Rev'!I192:J192) -> 85074482.94 | D96: ='Pres & Prop Rev'!D192 -> 65959625.4 | E96: ='Pres & Prop Rev'!E192 -> 15081679.73 | F96: ='Pres & Prop Rev'!F192 -> 998989.79 | G96: ='Pres & Prop Rev'!G192 -> 185490.34 | H96: ='Pres & Prop Rev'!H192 -> 2848697.675 | K96: Gas Cost Difference | M96: =L95-M95 -> 0 | P96: =N95-P95 -> 0
C97: =SUM(D97:H97) -> -7.251352317 | D97: =D96-D95 -> 253.754226 | E97: =E96-E95 -> -196.4769977 | F97: =F96-F95 -> -1.634052617 | G97: =G96-G95 -> -1.047135305 | H97: =H96-H95 -> -61.84739274
B98: Rate D Check | M98: =L92-M92-M96 -> 0.003270468814 | P98: =N92-P92-P96 -> -0.0006082823994
B99: Basic/Min Charge | C99: =SUM('Pres & Prop Rev'!C155:C156)/SUM('Pres & Prop Rev'!C106:C107)-1 -> 0.03845202353 | D99: =SUM('Pres & Prop Rev'!D155:D156)/SUM('Pres & Prop Rev'!D106:D107)-1 -> 0.05555555556 | E99: =SUM('Pres & Prop Rev'!E155:E156)/SUM('Pres & Prop Rev'!E106:E107)-1 -> -0.04130520505 | F99: =SUM('Pres & Prop Rev'!F155:F156)/SUM('Pres & Prop Rev'!F106:F107)-1 -> -0.04693198034 | G99: =SUM('Pres & Prop Rev'!G155:G156)/SUM('Pres & Prop Rev'!G106:G107)-1 ->  | H99: =SUM('Pres & Prop Rev'!H155:H156)/SUM('Pres & Prop Rev'!H106:H107)-1 -> 0.04145106708
B100: Adj. to Actual Revenue | C100: ='Pres & Prop Rev'!C168/'Pres & Prop Rev'!C119-1 ->  | D100: ='Pres & Prop Rev'!D168/'Pres & Prop Rev'!D119-1 ->  | E100: ='Pres & Prop Rev'!E168/'Pres & Prop Rev'!E119-1 ->  | F100: ='Pres & Prop Rev'!F168/'Pres & Prop Rev'!F119-1 ->  | G100: ='Pres & Prop Rev'!G168/'Pres & Prop Rev'!G119-1 ->  | H100: ='Pres & Prop Rev'!H168/'Pres & Prop Rev'!H119-1 -> 
B101: Weather & U/B Revenue | C101: ='Pres & Prop Rev'!C190/'Pres & Prop Rev'!C142-1 -> -0.04529522328 | D101: ='Pres & Prop Rev'!D190/'Pres & Prop Rev'!D142-1 -> -0.05071717341 | E101: ='Pres & Prop Rev'!E190/'Pres & Prop Rev'!E142-1 -> -0.01999976356 | F101: ='Pres & Prop Rev'!F190/'Pres & Prop Rev'!F142-1 -> -0.02294702923 | G101: ='Pres & Prop Rev'!G190/'Pres & Prop Rev'!G142-1 ->  | H101: ='Pres & Prop Rev'!H190/'Pres & Prop Rev'!H142-1 -> 
B102: Block Therm Charges | C102: =SUM('Pres & Prop Rev'!C157:C161)/SUM('Pres & Prop Rev'!C108:C112)-1 -> -0.04285560012 | D102: =SUM('Pres & Prop Rev'!D157:D161)/SUM('Pres & Prop Rev'!D108:D112)-1 -> -0.05071719988 | E102: =SUM('Pres & Prop Rev'!E157:E161)/SUM('Pres & Prop Rev'!E108:E112)-1 -> -0.01999404365 | F102: =SUM('Pres & Prop Rev'!F157:F161)/SUM('Pres & Prop Rev'!F108:F112)-1 -> -0.0229854981 | G102: =SUM('Pres & Prop Rev'!G157:G161)/SUM('Pres & Prop Rev'!G108:G112)-1 -> -0.02459874477 | H102: =SUM('Pres & Prop Rev'!H157:H161)/SUM('Pres & Prop Rev'!H108:H112)-1 -> -0.03188358314
B103: Overall Revenue | C103: ='Pres & Prop Rev'!C192/'Pres & Prop Rev'!C193-1 -> -0.02414468208 | D103: ='Pres & Prop Rev'!D192/'Pres & Prop Rev'!D193-1 -> -0.02458652828 | E103: ='Pres & Prop Rev'!E192/'Pres & Prop Rev'!E193-1 -> -0.02460594538 | F103: ='Pres & Prop Rev'!F192/'Pres & Prop Rev'!F193-1 -> -0.02459483389 | G103: ='Pres & Prop Rev'!G192/'Pres & Prop Rev'!G193-1 -> -0.02459874477 | H103: ='Pres & Prop Rev'!H192/'Pres & Prop Rev'!H193-1 -> -0.02461441477
B105: Avg. Usage | D105: =D57/D58 -> 64.654438 | E105: =E57/E58 -> 1453.831382 | F105: =F57/F58 -> 15074.47162 | G105: =G57/G58 -> 37552.79167 | H105: =H57/H58 -> 63999.01875
B106: Bill Compare: | C106: =INDEX($D$2:$H$2,I106) -> SCH. 101,102 | F106: =INDEX($D$2:$H$2,J106) -> SCH. 111,112 | I106: 1 | J106: 2
C107: Pres | D107: Prop | E107: % Incr | F107: Pres | G107: Prop | H107: % Incr
B108: 0 | C108: =I$108+MIN($B108,M$109)*I$109/100+MAX(0,MIN($B108-M$109,M$110-M$109))*I$110/100+MAX(0,MIN($B108-M$110,M$111-M$110))*I$111/100+MAX(0,MIN($B108-M$111,M$112-M$111))*I$112/100+MAX(0,B108-M$113)*I$113/100 -> 9 | D108: =J$108+MIN($B108,N$109)*J$109/100+MAX(0,MIN($B108-N$109,N$110-N$109))*J$110/100+MAX(0,MIN($B108-N$110,N$111-N$110))*J$111/100+MAX(0,MIN($B108-N$111,N$112-N$111))*J$112/100+MAX(0,C108-N$113)*J$113/100 -> 9.5 | E108: =D108/C108-1 -> 0.05555555556 | F108: =K$108+MIN($B108,O$109)*K$109/100+MAX(0,MIN($B108-O$109,O$110-O$109))*K$110/100+MAX(0,MIN($B108-O$110,O$111-O$110))*K$111/100+MAX(0,MIN($B108-O$111,O$112-O$111))*K$112/100+MAX(0,E108-O$113)*K$113/100 -> 101.44 | G108: =L$108+MIN($B108,P$109)*L$109/100+MAX(0,MIN($B108-P$109,P$110-P$109))*L$110/100+MAX(0,MIN($B108-P$110,P$111-P$110))*L$111/100+MAX(0,MIN($B108-P$111,P$112-P$111))*L$112/100+MAX(0,F108-P$113)*L$113/100 -> 97.25 | H108: =G108/F108-1 -> -0.04130520505 | I108: =INDEX(CHOOSE(Base1_Billing2,$D$4:$H$4,$D$14:$H$14),$I$106)+INDEX(CHOOSE(Base1_Billing2,$D$5:$H$5,$D$15:$H$15),$I$106) -> 9 | J108: =INDEX(CHOOSE(Base1_Billing2,$D$26:$H$26,$D$36:$H$36),$I$106)+INDEX(CHOOSE(Base1_Billing2,$D$27:$H$27,$D$37:$H$37),$I$106) -> 9.5 | K108: =INDEX(CHOOSE(Base1_Billing2,$D$4:$H$4,$D$14:$H$14),$J$106)+INDEX(CHOOSE(Base1_Billing2,$D$5:$H$5,$D$15:$H$15),$J$106) -> 101.44 | L108: =INDEX(CHOOSE(Base1_Billing2,$D$26:$H$26,$D$36:$H$36),$J$106)+INDEX(CHOOSE(Base1_Billing2,$D$27:$H$27,$D$37:$H$37),$J$106) -> 97.25
B109: 65 | C109: =I$108+MIN($B109,M$109)*I$109/100+MAX(0,MIN($B109-M$109,M$110-M$109))*I$110/100+MAX(0,MIN($B109-M$110,M$111-M$110))*I$111/100+MAX(0,MIN($B109-M$111,M$112-M$111))*I$112/100+MAX(0,B109-M$113)*I$113/100 -> 34.14525 | D109: =J$108+MIN($B109,N$109)*J$109/100+MAX(0,MIN($B109-N$109,N$110-N$109))*J$110/100+MAX(0,MIN($B109-N$110,N$111-N$110))*J$111/100+MAX(0,MIN($B109-N$111,N$112-N$111))*J$112/100+MAX(0,C109-N$113)*J$113/100 -> 33.36995 | E109: -0.02270594006 | F109: =K$108+MIN($B109,O$109)*K$109/100+MAX(0,MIN($B109-O$109,O$110-O$109))*K$110/100+MAX(0,MIN($B109-O$110,O$111-O$110))*K$111/100+MAX(0,MIN($B109-O$111,O$112-O$111))*K$112/100+MAX(0,E109-O$113)*K$113/100 -> 101.44 | G109: =L$108+MIN($B109,P$109)*L$109/100+MAX(0,MIN($B109-P$109,P$110-P$109))*L$110/100+MAX(0,MIN($B109-P$110,P$111-P$110))*L$111/100+MAX(0,MIN($B109-P$111,P$112-P$111))*L$112/100+MAX(0,F109-P$113)*L$113/100 -> 97.25 | H109: -0.04130520505 | I109: =INDEX(CHOOSE(Base1_Billing2,$D6:$H6,$D16:$H16),$I$106) -> 38.685 | J109: =INDEX(CHOOSE(Base1_Billing2,$D28:$H28,$D38:$H38),$I$106) -> 36.723 | K109: =INDEX(CHOOSE(Base1_Billing2,$D6:$H6,$D16:$H16),$J$106) -> 0 | L109: =INDEX(CHOOSE(Base1_Billing2,$D28:$H28,$D38:$H38),$J$106) -> 0 | M109: =INDEX($L6:$P6,$I$106) -> 9999999 | N109: =INDEX($L28:$P28,$I$106) -> 9999999 | O109: =INDEX($L6:$P6,$J$106) -> 200 | P109: =INDEX($L28:$P28,$J$106) -> 200
B110: 2000 | C110: 782.7 | D110: 743.96 | E110: -0.04949533666 | F110: 633.142 | G110: 618.322 | H110: -0.0234070714 | I110: =INDEX(CHOOSE(Base1_Billing2,$D7:$H7,$D17:$H17),$I$106) -> 50.279 | J110: =INDEX(CHOOSE(Base1_Billing2,$D29:$H29,$D39:$H39),$I$106) -> 47.729 | K110: =INDEX(CHOOSE(Base1_Billing2,$D7:$H7,$D17:$H17),$J$106) -> 34.034 | L110: =INDEX(CHOOSE(Base1_Billing2,$D29:$H29,$D39:$H39),$J$106) -> 33.354 | M110: =INDEX($L7:$P7,$I$106) -> 9999999 | N110: =INDEX($L29:$P29,$I$106) -> 9999999 | O110: =INDEX($L7:$P7,$J$106) -> 1000 | P110: =INDEX($L29:$P29,$J$106) -> 1000
B111: 3000 | C111: 1169.55 | D111: 1111.19 | E111: -0.04989953401 | F111: 892.572 | G111: 872.562 | H111: -0.02241835953 | I111: =INDEX(CHOOSE(Base1_Billing2,$D8:$H8,$D18:$H18),$I$106) -> 0 | J111: =INDEX(CHOOSE(Base1_Billing2,$D30:$H30,$D40:$H40),$I$106) -> 0 | K111: =INDEX(CHOOSE(Base1_Billing2,$D8:$H8,$D18:$H18),$J$106) -> 25.943 | L111: =INDEX(CHOOSE(Base1_Billing2,$D30:$H30,$D40:$H40),$J$106) -> 25.424 | M111: =INDEX($L8:$P8,$I$106) -> 9999999 | N111: =INDEX($L30:$P30,$I$106) -> 9999999 | O111: =INDEX($L8:$P8,$J$106) -> 9999999 | P111: =INDEX($L30:$P30,$J$106) -> 9999999
B112: 4000 | C112: 1556.4 | D112: 1478.42 | E112: -0.05010280134 | F112: 1152.002 | G112: 1126.802 | H112: -0.02187496202 | I112: =INDEX(CHOOSE(Base1_Billing2,$D9:$H9,$D19:$H19),$I$106) -> 0 | J112: =INDEX(CHOOSE(Base1_Billing2,$D31:$H31,$D41:$H41),$I$106) -> 0 | K112: =INDEX(CHOOSE(Base1_Billing2,$D9:$H9,$D19:$H19),$J$106) -> 0 | L112: =INDEX(CHOOSE(Base1_Billing2,$D31:$H31,$D41:$H41),$J$106) -> 0 | M112: =INDEX($L9:$P9,$I$106) -> 9999999 | N112: =INDEX($L31:$P31,$I$106) -> 9999999 | O112: =INDEX($L9:$P9,$J$106) -> 9999999 | P112: =INDEX($L31:$P31,$J$106) -> 9999999
B113: 5000 | C113: 1943.25 | D113: 1845.65 | E113: -0.0502251383 | F113: 1411.432 | G113: 1381.042 | H113: -0.02153132422 | I113: =INDEX(CHOOSE(Base1_Billing2,$D10:$H10,$D20:$H20),$I$106) -> 0 | J113: =INDEX(CHOOSE(Base1_Billing2,$D32:$H32,$D42:$H42),$I$106) -> 0 | K113: =INDEX(CHOOSE(Base1_Billing2,$D10:$H10,$D20:$H20),$J$106) -> 0 | L113: =INDEX(CHOOSE(Base1_Billing2,$D32:$H32,$D42:$H42),$J$106) -> 0 | M113: =INDEX($L10:$P10,$I$106) -> 9999999 | N113: =INDEX($L32:$P32,$I$106) -> 9999999 | O113: =INDEX($L10:$P10,$J$106) -> 9999999 | P113: =INDEX($L32:$P32,$J$106) -> 9999999
B114: 6000 | C114: 2330.1 | D114: 2212.88 | E114: -0.05030685378 | F114: 1670.862 | G114: 1635.282 | H114: -0.02129439774
B115: 7000 | C115: 2716.95 | D115: 2580.11 | E115: -0.05036529932 | F115: 1930.292 | G115: 1889.522 | H115: -0.0211211568
B116: 8000 | C116: 3103.8 | D116: 2947.34 | E116: -0.05040917585 | F116: 2189.722 | G116: 2143.762 | H116: -0.02098896572
B117: 9000 | C117: 3490.65 | D117: 3314.57 | E117: -0.05044332717 | F117: 2449.152 | G117: 2398.002 | H117: -0.02088477971
B118: 10000 | C118: 3877.5 | D118: 3681.8 | E118: -0.05047066409 | F118: 2708.582 | G118: 2652.242 | H118: -0.02080055173
B119: 11000 | C119: 4264.35 | D119: 4049.03 | E119: -0.05049304114 | F119: 2968.012 | G119: 2906.482 | H119: -0.02073104826
B120: 12000 | C120: 4651.2 | D120: 4416.26 | E120: -0.05051169591 | F120: 3227.442 | G120: 3160.722 | H120: -0.02067271852
B121: 13000 | C121: 5038.05 | D121: 4783.49 | E121: -0.05052748583 | F121: 3486.872 | G121: 3414.962 | H121: -0.02062306847
B122: 14000 | C122: 5424.9 | D122: 5150.72 | E122: -0.0505410238 | F122: 3746.302 | G122: 3669.202 | H122: -0.02058029491

Sheet Yr 1 RS
A1: AVISTA UTILITIES | N1: This worksheet pulls data from 'Pres & Prop Rev' tab.
A2: WASHINGTON NATURAL GAS
A3: PROPOSED INCREASE BY SERVICE SCHEDULE
A4: 12 MONTHS ENDED DECEMBER 31, 2016
A5: (000s of Dollars)
D8: Base Tariff | F8: Base Tariff | G8: Base | H8: Total Billed | K8: Percent
D9: Distribution Revenue | E9: Final | F9: Distribution Revenue | G9: Tariff | H9: Revenue | I9: Sch. 191 | J9: Final | K9: Increase | V9: Base Revenue
A10: Line | B10: Type of | C10: Schedule | D10: Under Present | E10: General | F10: Under Proposed | G10: Percent | H10: at Present | I10: LIRAP/DSM | J10: General | K10: on Billed | P10: Present | R10: Therm | S10: Sch 150 | T10: Sch 150 | V10: plus
A11: No. | B11: Service | C11: Number | D11: Rates | E11: Decrease | F11: Rates | G11: Increase | H11: Rates (1) | I11: Increase | J11: Decrease | K11: Revenue | O11: # of Bills | P11: Avg Bill | R11: Sales | S11: PGA Rate | T11: Revenue | V11: Sch 150
B12: (a) | C12: (b) | D12: (c) | E12: (d) | F12: (e) | G12: (f) | H12: (g) | I12: (h) | J12: (h) | K12: (i)
A14: 1 | B14: General Service | C14: 101/102 | D14: ='Pres & Prop Rev'!$D$145/1000 -> 67622.22105 | E14: ='Pres & Prop Rev'!$D$195/1000 -> -1662.59565 | F14: ='Pres & Prop Rev'!$D$192/1000-0.1 -> 65959.5254 | G14: =E14/D14 -> -0.02458652828 | H14: =101906.98361-53 -> 101853.9836 | I14: 0 | J14: =E14+I14 -> -1662.59565 | K14: =(E14)/H14 -> -0.01632332473 | O14: ='Pres & Prop Rev'!D48 -> 1847462 | P14: ='Bill Impact'!E15 -> 52.8 | R14: ='Pres & Prop Rev'!D46 -> 119446617.3 | S14: 0.28488 | T14: =(R14*S14)/1000 -> 34027.95234 | V14: =D14+T14 -> 101650.1734
A15: 2 | B15: Large General Service | C15: 111/112/116 | D15: ='Pres & Prop Rev'!$E$145/1000 -> 15462.14031 | E15: ='Pres & Prop Rev'!$E$195/1000 -> -380.46058 | F15: ='Pres & Prop Rev'!$E$192/1000 -> 15081.67973 | G15: -0.02460594538 | H15: 28321.83271 | I15: 0 | J15: -380.46058 | K15: =(E15)/H15 -> -0.01343347318 | O15: ='Pres & Prop Rev'!E26 -> 32983 | P15: =(H15*1000)/O15 -> 858.679705 | R15: ='Pres & Prop Rev'!E46 -> 47951720.48 | S15: 0.27568 | T15: 13219.3303 | V15: 28681.47061
A16: 3 | B16: Large General Svc.-High Annual Load Factor | C16: 121/122/126 | D16: ='Pres & Prop Rev'!$F$145/1000 -> 1024.17931 | E16: ='Pres & Prop Rev'!$F$195/1000 -> -25.18952 | F16: ='Pres & Prop Rev'!$F$192/1000-0.1 -> 998.88979 | G16: -0.02459483389 | H16: =2265.7746+29-23 -> 2271.7746 | I16: 0 | J16: -25.18952 | K16: -0.01108803664 | O16: ='Pres & Prop Rev'!F26 -> 273 | P16: =(H16*1000)/O16 -> 8321.518681 | R16: ='Pres & Prop Rev'!F46 -> 4115330.751 | S16: 0.28163 | T16: 1159.000599 | V16: 2183.179909
A17: 4 | B17: Interruptible Service | C17: 131/132 | D17: ='Pres & Prop Rev'!$G$145/1000 -> 190.16824 | E17: ='Pres & Prop Rev'!$G$195/1000 -> -4.6779 | F17: ='Pres & Prop Rev'!$G$192/1000-0.2 -> 185.29034 | G17: -0.02459874477 | H17: 430.80653 | I17: 0 | J17: -4.6779 | K17: -0.01085847051 | O17: ='Pres & Prop Rev'!G25 -> 24 | P17: =(H17*1000)/O17 -> 17950.27208 | R17: ='Pres & Prop Rev'!G46 -> 901267 | S17: 0.23775 | T17: 214.2762293 | V17: 404.4444692
A18: 5 | B18: Transportation Service | C18: 146 | D18: ='Pres & Prop Rev'!$H$145/1000 -> 2920.586195 | E18: ='Pres & Prop Rev'!$H$195/1000 -> -71.88852 | F18: ='Pres & Prop Rev'!$H$192/1000+0.2 -> 2848.897675 | G18: -0.02461441477 | H18: 2963.286335 | I18: 0 | J18: -71.88852 | K18: -0.02425972784 | O18: ='Pres & Prop Rev'!H25 -> 480 | P18: =(H18*1000)/O18 -> 6173.513199 | R18: ='Pres & Prop Rev'!H46 -> 30719529 | S18: 0 | T18: 0 | V18: 2920.586195
A19: 6 | B19: Special Contracts | C19: 148 | D19: =SUM('Pres & Prop Rev'!$I$145:$J$145)/1000 -> 1612.36411 | E19: =SUM('Pres & Prop Rev'!$I$195:$J$195)/1000 -> 0 | F19: =SUM('Pres & Prop Rev'!$I$192:$J$192)/1000 -> 1612.36411 | G19: 0 | H19: 1612.36411 | I19: 0 | J19: 0 | K19: 0 | R19: ='Pres & Prop Rev'!I46+'Pres & Prop Rev'!J46 -> 49007219 | S19: 0 | T19: 0 | V19: 1612.36411
A20: 7 | B20: Total | D20: ='Pres & Prop Rev'!$C$145/1000-0.2 -> 88831.45922 | E20: ='Pres & Prop Rev'!$C$195/1000 -> -2144.81217 | F20: ='Pres & Prop Rev'!$C$192/1000-0.6 -> 86686.24705 | G20: -0.02414473644 | H20: =SUM(H14:H19)+0.4 -> 137454.4479 | I20: =SUM(I14:I19) -> 0 | J20: =SUM(J14:J19) -> -2144.81217 | K20: -0.01560380332 | R20: =SUM(R14:R19) -> 252141683.6 | T20: =SUM(T14:T19) -> 48620.55948 | V20: 137452.0187
D21: =ROUND(D20-SUM(D14:D19),0) -> 0 | F21: =ROUND(F20-SUM(F14:F19),0) -> 0 | J21: =ROUND(J20-SUM(J14:J19),-1) -> 0 | K21: =ROUND(K20-SUM(K14:K19),0) -> 0
D23: =IF(Base1_Billing2=2,"Exhibit won't work until Base1_Billing2 range set to '1'","") -> 
A25: (1) Includes Schedule 150 (Purchase Gas Cost Adjustment), Schedule 155 (Gas Rate Adjustment), Schedule 175 (Decoupling),
A26: Schedule 191 (DSM Adjustment) and Schedule 192 (LIRAP Adjustment).
D28: =SUM(ROUND(D14:D19,0)) -> 88831 | E28: =SUM(ROUND(E14:E19,0)) -> -2145 | F28: =SUM(ROUND(F14:F19,0)) -> 86687 | H28: =SUM(ROUND(H14:H19,0)) -> 137454 | K28: =SUM(ROUND(K14:K19,0)) -> 0
D29: =ROUND(D20,0)-D28 -> 0 | E29: =ROUND(E20,0)-E28 -> 0 | F29: =ROUND(F20,0)-F28 -> -1 | H29: =ROUND(H20,0)-H28 -> 0 | K29: =ROUND(K20,0)-K28 -> 0
J31: 111/121 | K31: 112/122
G32: Rate Sch. | H32: Therms | J32: Sch 155 Rate | K32: Sch 155 Rate | L32: Billing Impact
G33: 112 | H33: =0 -> 0 | J33: -0.07835 | K33: 0 | L33: =(H33*(K33-J33)/1000) -> 0 | M33: No 112's in test year
G34: 122 | H34: ='12MEDEC16'!P108 -> 581386.958 | J34: -0.04973 | K34: 0 | L34: =(H34*(K34-J34)/1000) -> 28.91237342
J36: 111/121
G37: Rate Sch. | H37: Therms | J37: Sch 175 Rate | L37: Billing Impact
G38: 112 | L38: =(H38*(K38-J38)/1000) -> 0 | M38: No 112's in test year
G39: 122 | H39: ='12MEDEC16'!P108 -> 581386.958 | J39: 0.03904 | L39: =(H39*(-J39)/1000) -> -22.69734684
G43: Rate Sch. | H43: Therms | J43: Sch 189 Rate | K43: Sch 155 Rate | L43: Billing Impact
G44: 102 | H44: ='12MEDEC16'!P68 -> 130654.893 | J44: -0.40663 | L44: =((H44*J44)/1000) -> -53.12819916 | M44: No 112's in test year

Sheet Yr 1 RD
A1: AVISTA UTILITIES | P1: This worksheet uses Base & Billing rates from 'Rate Design' tab.
A2: WASHINGTON NATURAL GAS
A3: PRESENT AND PROPOSED RATE COMPONENTS BY SCHEDULE
A6: May 1, 2018 Increase
I7: Proposed
D8: Present Base | E8: Present | G8: General | H8: Proposed | I8: Base
D9: Distribution | E9: Billing | F9: Present | G9: Rate | H9: Billing | I9: Distribution | M9: GRC
A10: Type of Service | D10: Rate | E10: Rate Adj. (1) | F10: Billing Rate | G10: Change | H10: Rate(1) | I10: Rate | K10: Base | L10: Bill | M10: Revenue
B11: (a) | D11: (b) | E11: (c) | F11: (d) | G11: (e) | H11: (g) | I11: (h) | K11: check | L11: check | M11: Check
A12: General Service - Schedule 101
A13: Basic Charge | D13: ='Rate Design'!D4 -> 9 | E13: =F13-D13 -> 0 | F13: ='Rate Design'!D14 -> 9 | G13: =IF(ROUND(H13-F13,5)<>ROUND(I13-D13,5),#VALUE!,I13-D13) -> 0.5 | H13: ='Rate Design'!D36 -> 9.5 | I13: ='Rate Design'!D26 -> 9.5 | J13: =I13/D13-1 -> 0.05555555556 | M13: =G13*'Pres & Prop Rev'!D25 -> 923731
A14: Usage Charge: | Z14: Schedule 112 | AC14: Schedule 116/126
A15: First 70 Therms | D15: ='Rate Design'!D6/100 -> 0.38685 | E15: =F15-D15 -> 0.28703 | F15: ='Rate Design'!D16/100 -> 0.67388 | G15: =I15-D15 -> -0.01962 | H15: ='Rate Design'!D38/100 -> 0.65426 | I15: ='Rate Design'!D28/100 -> 0.36723 | J15: =I15/D15-1 -> -0.0507173323 | K15: =D15+G15-I15 -> 0 | L15: =F15+G15-H15 -> 0 | M15: =G15*'Pres & Prop Rev'!D31 -> -1378027.859 | V15: 155 Amort Rate | X15: Decoupling | Z15: Proposed | AA15: PGA | AB15: Decoupling | AC15: Proposed
A16: All over 70 Therms | D16: ='Rate Design'!D7/100 -> 0.50279 | E16: =E15 -> 0.28703 | F16: ='Rate Design'!D17/100 -> 0.78982 | G16: =I16-D16 -> -0.0255 | H16: ='Rate Design'!D39/100 -> 0.76432 | I16: ='Rate Design'!D29/100 -> 0.47729 | J16: =I16/D16-1 -> -0.05071699914 | K16: =D16+G16-I16 -> 0 | L16: =F16+G16-H16 -> 0 | M16: =G16*'Pres & Prop Rev'!D32 -> -909824.6174 | P16: =(70*D15)+(130*D16)+D13 -> 101.4422 | Q16: =(70*I15)+(130*I16)+I13 -> 97.2538 | R16: =(70*D15)+(430*D16)+D13 -> 252.2792 | S16: =(70*I15)+(430*I16)+I13 -> 240.4408 | Z16: Billing | AC16: Billing
A17: Large General Service - Schedule 111 | M17: =SUM(M13:M16) -> -1364121.476 | N17: =M17-'Pres & Prop Rev'!D195 -> 298474.1736 | U17: Large General Service - Schedule 112 | V17: Sch 111 | W17: Sch 112 | X17: Sch 175 | Y17: Difference | Z17: Rate | AA17: Sch 150 | AB17: Sch 175 | AC17: Rate
A18: Usage Charge: | J18: =I23/200+I24-I19 -> 0 | U18: Usage Charge: | AA18: Differential
A19: ="First "&TEXT('Rate Design'!M6,"#,##0")&" therms" -> First 200 therms | D19: ='Rate Design'!M11/100 -> 0.5072 | E19: =F19-D19 -> 0.26818 | F19: ='Rate Design'!M21/100 -> 0.77538 | G19: =I19-D19 -> -0.02095 | H19: ='Rate Design'!M43/100 -> 0.75443 | I19: ='Rate Design'!M33/100 -> 0.48625 | J19: =I19/D19-1 -> -0.04130520505 | K19: =D19+G19-I19 -> 0 | L19: =F19+G19-H19 -> 0 | P19: =D19*200 -> 101.44 | Q19: =I19*200 -> 97.25 | U19: ="First "&TEXT('Rate Design'!AG6,"#,##0")&" therms" -> First 0 therms | V19: -0.07835 | W19: 0 | X19: 0.03904 | Y19: =V19-W19+X19 -> -0.03931 | Z19: =H19-Y19 -> 0.79374 | AA19: =0.27568-0.00056 -> 0.27512 | AB19: 0.03904 | AC19: =Z19-AA19+AB19 -> 0.55766
A20: =TEXT('Rate Design'!M6,"#,##0")&" - "&TEXT('Rate Design'!M7,"#,##0")&" therms" -> 200 - 1,000 therms | D20: ='Rate Design'!E7/100 -> 0.34034 | E20: =F20-D20 -> 0.26818 | F20: ='Rate Design'!E17/100 -> 0.60852 | G20: =I20-D20 -> -0.0068 | H20: ='Rate Design'!E39/100 -> 0.60172 | I20: ='Rate Design'!E29/100 -> 0.33354 | J20: =I20/D20-1 -> -0.01998001998 | K20: =D20+G20-I20 -> 0 | L20: 0 | M20: =G20*'Pres & Prop Rev'!E32 -> -97235.97916 | U20: =TEXT('Rate Design'!AG6,"#,##0")&" - "&TEXT('Rate Design'!AG7,"#,##0")&" therms" -> 0 - 0 therms | V20: =V19 -> -0.07835 | W20: =W19 -> 0 | X20: =X19 -> 0.03904 | Y20: =V20-W20+X20 -> -0.03931 | Z20: =H20-Y20 -> 0.64103 | AA20: =AA19 -> 0.27512 | AB20: =AB19 -> 0.03904 | AC20: =Z20-AA20+AB20 -> 0.40495
A21: ="All over "&TEXT('Rate Design'!M7,"#,##0")&" therms" -> All over 1,000 therms | D21: ='Rate Design'!E8/100 -> 0.25943 | E21: =F21-D21 -> 0.26818 | F21: ='Rate Design'!E18/100 -> 0.52761 | G21: =I21-D21 -> -0.00519 | H21: ='Rate Design'!E40/100 -> 0.52242 | I21: ='Rate Design'!E30/100 -> 0.25424 | J21: =I21/D21-1 -> -0.02000539645 | K21: =D21+G21-I21 -> 0 | L21: 0 | M21: =G21*'Pres & Prop Rev'!E33 -> -120258.7076 | U21: ="All over "&TEXT('Rate Design'!AG7,"#,##0")&" therms" -> All over 0 therms | V21: =V19 -> -0.07835 | W21: =W19 -> 0 | X21: =X19 -> 0.03904 | Y21: =V21-W21+X21 -> -0.03931 | Z21: =H21-Y21 -> 0.56173 | AA21: =AA19 -> 0.27512 | AB21: =AB19 -> 0.03904 | AC21: 0.32565
A22: Minimum Charge: | U22: Minimum Charge:
A23: per month | D23: ='Rate Design'!E5 -> 101.44 | E23: =F23-D23 -> 0 | F23: ='Rate Design'!E15 -> 101.44 | G23: =IF(ROUND(H23-F23,5)<>ROUND(I23-D23,5),#VALUE!,I23-D23) -> -4.19 | H23: ='Rate Design'!E37 -> 97.25 | I23: ='Rate Design'!E27 -> 97.25 | J23: =I23/D23-1 -> -0.04130520505 | K23: =D23+G23-I23 -> 0 | L23: =F23+G23-H23 -> 0 | M23: =G23*'Pres & Prop Rev'!E49 -> -138198.77 | U23: per month
A24: per therm | D24: ='Rate Design'!E6/100 -> 0 | E24: =F24-D24 -> 0.26818 | F24: ='Rate Design'!E16/100 -> 0.26818 | G24: =I24-D24 -> 0 | H24: ='Rate Design'!E38/100 -> 0.26818 | I24: ='Rate Design'!E28/100 -> 0 | J24: =I24/D24-1 ->  | K24: =D24+G24-I24 -> 0 | L24: 0 | M24: =G24*'Pres & Prop Rev'!E31 -> 0 | U24: per therm | V24: =V19 -> -0.07835 | W24: =W19 -> 0 | X24: =X19 -> 0.03904 | Y24: =V24-W24+X24 -> -0.03931 | Z24: =H24-Y24 -> 0.30749 | AA24: =AA19 -> 0.27512 | AB24: =AB19 -> 0.03904 | AC24: =Z24-AA24+AB24 -> 0.07141
M25: =SUM(M19:M24) -> -355693.4567 | N25: =M25-'Pres & Prop Rev'!E195 -> 24767.12327 | Z25: Billing | AC25: Billing
A26: High Annual Load Factor Large General Service - Schedule 121 | U26: High Annual Load Factor Large General Service - Schedule 122 | V26: Sch 121 | W26: Sch 122 | X26: Sch 175 | Y26: Difference | Z26: Rate | AA26: Sch 150 | AB26: Sch 175 | AC26: Rate
A27: Usage Charge: | J27: =I34/500+I35-I28 -> 0 | U27: Usage Charge: | AA27: Differential
A28: ="First "&TEXT('Rate Design'!N6,"#,##0")&" therms" -> First 500 therms | D28: ='Rate Design'!N11/100 -> 0.50456 | E28: =F28-D28 -> 0.3017 | F28: ='Rate Design'!N21/100 -> 0.80626 | G28: =I28-D28 -> -0.02368 | H28: ='Rate Design'!N43/100 -> 0.78258 | I28: ='Rate Design'!N33/100 -> 0.48088 | J28: =I28/D28-1 -> -0.04693198034 | K28: =D28+G28-I28 -> 0 | L28: =F28+G28-H28 -> 0 | P28: =D28*500 -> 252.28 | Q28: =I28*500 -> 240.44 | U28: First 500 therms | V28: -0.04973 | W28: 0 | X28: 0.03904 | Y28: =V28-W28+X28 -> -0.01069 | Z28: =H28-Y28 -> 0.79327 | AA28: =0.28163-0.00056 -> 0.28107 | AB28: 0.03904 | AC28: =Z28-AA28+AB28 -> 0.55124
A29: =TEXT('Rate Design'!N6,"#,##0")&" - "&TEXT('Rate Design'!N7,"#,##0")&" therms" -> 500 - 1,000 therms | D29: ='Rate Design'!F7/100 -> 0.3567 | E29: =F29-D29 -> 0.3017 | F29: ='Rate Design'!F17/100 -> 0.6584 | G29: =I29-D29 -> -0.0082 | H29: ='Rate Design'!F39/100 -> 0.6502 | I29: ='Rate Design'!F29/100 -> 0.3485 | J29: =I29/D29-1 -> -0.02298850575 | K29: =D29+G29-I29 -> 0 | L29: 0 | M29: =G29*'Pres & Prop Rev'!F32 -> -1111.533652 | U29: 500 - 1,000 therms | V29: =V28 -> -0.04973 | W29: =W28 -> 0 | X29: =X28 -> 0.03904 | Y29: =V29-W29+X29 -> -0.01069 | Z29: =H29-Y29 -> 0.66089 | AA29: =AA28 -> 0.28107 | AB29: =AB28 -> 0.03904 | AC29: 0.41886
A30: =TEXT('Rate Design'!N7,"#,##0")&" - "&TEXT('Rate Design'!N8,"#,##0")&" therms" -> 1,000 - 10,000 therms | D30: ='Rate Design'!F8/100 -> 0.27397 | E30: =F30-D30 -> 0.3017 | F30: ='Rate Design'!F18/100 -> 0.57567 | G30: =I30-D30 -> -0.0063 | H30: ='Rate Design'!F40/100 -> 0.56937 | I30: ='Rate Design'!F30/100 -> 0.26767 | J30: =I30/D30-1 -> -0.02299521845 | K30: =D30+G30-I30 -> 0 | L30: 0 | M30: =G30*'Pres & Prop Rev'!F33 -> -13402.99797 | U30: 1,000 - 10,000 therms | V30: =V28 -> -0.04973 | W30: =W28 -> 0 | X30: =X28 -> 0.03904 | Y30: =V30-W30+X30 -> -0.01069 | Z30: =H30-Y30 -> 0.58006 | AA30: =AA28 -> 0.28107 | AB30: =AB28 -> 0.03904 | AC30: 0.33803
A31: =TEXT('Rate Design'!N8,"#,##0")&" - "&TEXT('Rate Design'!N9,"#,##0")&" therms" -> 10,000 - 25,000 therms | D31: ='Rate Design'!F9/100 -> 0.22202 | E31: =F31-D31 -> 0.3017 | F31: ='Rate Design'!F19/100 -> 0.52372 | G31: =I31-D31 -> -0.0051 | H31: ='Rate Design'!F41/100 -> 0.51862 | I31: ='Rate Design'!F31/100 -> 0.21692 | J31: =I31/D31-1 -> -0.02297090352 | K31: =D31+G31-I31 -> 0 | L31: 0 | M31: =G31*'Pres & Prop Rev'!F34 -> -4861.031552 | U31: 10,000 - 25,000 therms | V31: =V28 -> -0.04973 | W31: =W28 -> 0 | X31: =X28 -> 0.03904 | Y31: =V31-W31+X31 -> -0.01069 | Z31: =H31-Y31 -> 0.52931 | AA31: =AA28 -> 0.28107 | AB31: =AB28 -> 0.03904 | AC31: 0.28728
A32: ="All over "&TEXT('Rate Design'!N9,"#,##0")&" therms" -> All over 25,000 therms | D32: ='Rate Design'!F10/100 -> 0.14725 | E32: =F32-D32 -> 0.3017 | F32: ='Rate Design'!F20/100 -> 0.44895 | G32: =I32-D32 -> -0.00338 | H32: ='Rate Design'!F42/100 -> 0.44557 | I32: ='Rate Design'!F32/100 -> 0.14387 | J32: =I32/D32-1 -> -0.02295415959 | K32: =D32+G32-I32 -> 0 | L32: 0 | M32: =G32*'Pres & Prop Rev'!F35 -> -1982.612697 | U32: All over 25,000 therms | V32: =V28 -> -0.04973 | W32: =W28 -> 0 | X32: =X28 -> 0.03904 | Y32: =V32-W32+X32 -> -0.01069 | Z32: =H32-Y32 -> 0.45626 | AA32: =AA28 -> 0.28107 | AB32: =AB28 -> 0.03904 | AC32: 0.21423
A33: Minimum Charge: | U33: Minimum Charge:
A34: per month | D34: ='Rate Design'!F5 -> 252.28 | E34: =F34-D34 -> 0 | F34: ='Rate Design'!F15 -> 252.28 | G34: =IF(ROUND(H34-F34,5)<>ROUND(I34-D34,5),#VALUE!,I34-D34) -> -11.84 | H34: ='Rate Design'!F37 -> 240.44 | I34: ='Rate Design'!F27 -> 240.44 | J34: =I34/D34-1 -> -0.04693198034 | M34: =G34*'Pres & Prop Rev'!F49 -> -3232.32 | U34: per month
A35: per therm | D35: ='Rate Design'!F6/100 -> 0 | E35: =F35-D35 -> 0.3017 | F35: ='Rate Design'!F16/100 -> 0.3017 | G35: =I35-D35 -> 0 | H35: ='Rate Design'!F38/100 -> 0.3017 | I35: ='Rate Design'!F28/100 -> 0 | J35: =I35/D35-1 ->  | K35: =D35+G35-I35 -> 0 | L35: =F35+G35-H35 -> 0 | M35: =G35*'Pres & Prop Rev'!F31 -> 0 | U35: per therm | V35: =V28 -> -0.04973 | W35: =W28 -> 0 | X35: =X28 -> 0.03904 | Y35: =V35-W35+X35 -> -0.01069 | Z35: =H35-Y35 -> 0.31239 | AA35: =AA28 -> 0.28107 | AB35: =AB28 -> 0.03904 | AC35: =Z35-AA35+AB35 -> 0.07036
A36: Annual Minimum per therm | D36: Present: | E36: 0.38269 | H36: Proposed: | I36: 0.38269 | J36: =I36/E36-1 -> 0 | M36: =SUM(M28:M35) -> -24590.49587 | N36: =M36-'Pres & Prop Rev'!F195 -> 599.0241333 | U36: Annual Minimum per therm
Z37: Billing
A38: Interruptible Service - Schedule 132 | U38: Interruptible Service - Schedule 131 | V38: Sch 131 | W38: Sch 132 | X38: Sch 175 | Y38: Difference | Z38: Rate | AB38: Sch 175
A39: Usage Charge: | U39: Usage Charge:
A40: ="First "&TEXT('Rate Design'!O6,"#,##0")&" therms" -> First 10,000 therms | D40: ='Rate Design'!G6/100 -> 0.25277 | E40: =F40-D40 -> 0.267 | F40: ='Rate Design'!G16/100 -> 0.51977 | G40: =I40-D40 -> -0.00622 | H40: ='Rate Design'!G38/100 -> 0.51355 | I40: ='Rate Design'!G28/100 -> 0.24655 | J40: =I40/D40-1 -> -0.02460735056 | K40: =D40+G40-I40 -> 0 | L40: =F40+G40-H40 -> 0 | M40: =G40*'Pres & Prop Rev'!G31 -> -1487.41348 | U40: First 10,000 therms | V40: 0 | W40: 0 | X40: 0.03904 | Y40: =V40-W40+X40 -> 0.03904 | Z40: =H40+Y40 -> 0.55259 | AB40: 0.03904
A41: =TEXT('Rate Design'!O6,"#,##0")&" - "&TEXT('Rate Design'!O7,"#,##0")&" therms" -> 10,000 - 25,000 therms | D41: ='Rate Design'!G7/100 -> 0.20291 | E41: =F41-D41 -> 0.267 | F41: ='Rate Design'!G17/100 -> 0.46991 | G41: =I41-D41 -> -0.00499 | H41: ='Rate Design'!G39/100 -> 0.46492 | I41: ='Rate Design'!G29/100 -> 0.19792 | J41: =I41/D41-1 -> -0.02459218373 | K41: =D41+G41-I41 -> 0 | L41: 0 | M41: =G41*'Pres & Prop Rev'!G32 -> -1519.05081 | U41: 10,000 - 25,000 therms | V41: =V40 -> 0 | W41: =W40 -> 0 | X41: =X40 -> 0.03904 | Y41: =V41-W41+X41 -> 0.03904 | Z41: =H41+Y41 -> 0.50396 | AB41: =AB40 -> 0.03904
A42: =TEXT('Rate Design'!O7,"#,##0")&" - "&TEXT('Rate Design'!O8,"#,##0")&" therms" -> 25,000 - 50,000 therms | D42: ='Rate Design'!G8/100 -> 0.19067 | E42: =F42-D42 -> 0.267 | F42: ='Rate Design'!G18/100 -> 0.45767 | G42: =I42-D42 -> -0.00469 | H42: ='Rate Design'!G40/100 -> 0.45298 | I42: ='Rate Design'!G30/100 -> 0.18598 | J42: =I42/D42-1 -> -0.02459747207 | K42: =D42+G42-I42 -> 0 | L42: 0 | M42: =G42*'Pres & Prop Rev'!G33 -> -1385.10239 | U42: 25,000 - 50,000 therms | V42: =V40 -> 0 | W42: 0 | X42: 0.03904 | Y42: =V42-W42+X42 -> 0.03904 | Z42: =H42+Y42 -> 0.49202 | AB42: =AB40 -> 0.03904
A43: ="All over "&TEXT('Rate Design'!O8,"#,##0")&" therms" -> All over 50,000 therms | D43: ='Rate Design'!G9/100 -> 0.18662 | E43: =F43-D43 -> 0.267 | F43: ='Rate Design'!G19/100 -> 0.45362 | G43: =I43-D43 -> -0.00459 | H43: ='Rate Design'!G41/100 -> 0.44903 | I43: ='Rate Design'!G31/100 -> 0.18203 | J43: =I43/D43-1 -> -0.02459543457 | K43: =D43+G43-I43 -> 0 | L43: 0 | M43: =G43*'Pres & Prop Rev'!G34 -> -286.33797 | U43: All over 50,000 therms | V43: 0 | W43: 0 | X43: 0.03904 | Y43: =V43-W43+X43 -> 0.03904 | Z43: =H43+Y43 -> 0.48807 | AB43: =AB41 -> 0.03904
A44: Annual Minimum per therm | D44: Present: | E44: 0.27731 | H44: Proposed: | I44: 0.27731 | J44: =I44/E44-1 -> 0 | M44: =SUM(M40:M43) -> -4677.90465 | N44: =M44-'Pres & Prop Rev'!G195 -> -0.004649999976 | U44: Annual Minimum per therm
A46: Transportation Service - Schedule 146
A47: Basic Charge | D47: ='Rate Design'!H4 -> 525 | E47: =F47-D47 -> 0 | F47: ='Rate Design'!H14 -> 525 | G47: =IF(ROUND(H47-F47,5)<>ROUND(I47-D47,5),#VALUE!,I47-D47) -> 25 | H47: ='Rate Design'!H36 -> 550 | I47: ='Rate Design'!H26 -> 550 | J47: =I47/D47-1 -> 0.04761904762 | M47: =G47*'Pres & Prop Rev'!H48 -> 12000
A48: Usage Charge:
A49: ="First "&TEXT('Rate Design'!P6,"#,##0")&" therms" -> First 20,000 therms | D49: ='Rate Design'!H6/100 -> 0.10009 | E49: =F49-D49 -> 0.00139 | F49: ='Rate Design'!H16/100 -> 0.10148 | G49: =I49-D49 -> -0.00319 | H49: ='Rate Design'!H38/100 -> 0.09829 | I49: ='Rate Design'!H28/100 -> 0.0969 | J49: =I49/D49-1 -> -0.03187131582 | K49: =D49+G49-I49 -> 0 | L49: =F49+G49-H49 -> 0 | M49: =G49*'Pres & Prop Rev'!H31 -> -26551.72575
A50: =TEXT('Rate Design'!P6,"#,##0")&" - "&TEXT('Rate Design'!P7,"#,##0")&" therms" -> 20,000 - 50,000 therms | D50: ='Rate Design'!H7/100 -> 0.08905 | E50: =F50-D50 -> 0.00139 | F50: ='Rate Design'!H17/100 -> 0.09044 | G50: =I50-D50 -> -0.00284 | H50: ='Rate Design'!H39/100 -> 0.0876 | I50: ='Rate Design'!H29/100 -> 0.08621 | J50: =I50/D50-1 -> -0.0318921954 | K50: =D50+G50-I50 -> 0 | L50: 0 | M50: =G50*'Pres & Prop Rev'!H32 -> -20181.4092
A51: =TEXT('Rate Design'!P7,"#,##0")&" - "&TEXT('Rate Design'!P8,"#,##0")&" therms" -> 50,000 - 300,000 therms | D51: ='Rate Design'!H8/100 -> 0.0803 | E51: =F51-D51 -> 0.00139 | F51: ='Rate Design'!H18/100 -> 0.08169 | G51: =I51-D51 -> -0.00256 | H51: ='Rate Design'!H40/100 -> 0.07913 | I51: ='Rate Design'!H30/100 -> 0.07774 | J51: =I51/D51-1 -> -0.03188044832 | K51: =D51+G51-I51 -> 0 | L51: 0 | M51: =G51*'Pres & Prop Rev'!H33 -> -27327.69536
A52: =TEXT('Rate Design'!P8,"#,##0")&" - "&TEXT('Rate Design'!P9,"#,##0")&" therms" -> 300,000 - 500,000 therms | D52: ='Rate Design'!H9/100 -> 0.07426 | E52: =F52-D52 -> 0.00139 | F52: ='Rate Design'!H19/100 -> 0.07565 | G52: =I52-D52 -> -0.00237 | H52: ='Rate Design'!H41/100 -> 0.07328 | I52: ='Rate Design'!H31/100 -> 0.07189 | J52: =I52/D52-1 -> -0.03191489362 | K52: =D52+G52-I52 -> 0 | L52: 0 | M52: =G52*'Pres & Prop Rev'!H34 -> -6478.57038
A53: ="All over "&TEXT('Rate Design'!P9,"#,##0")&" therms" -> All over 500,000 therms | D53: ='Rate Design'!H10/100 -> 0.05581 | E53: =F53-D53 -> 0.00139 | F53: ='Rate Design'!H20/100 -> 0.0572 | G53: =I53-D53 -> -0.00178 | H53: ='Rate Design'!H42/100 -> 0.05542 | I53: ='Rate Design'!H32/100 -> 0.05403 | J53: =I53/D53-1 -> -0.03189392582 | K53: =D53+G53-I53 -> 0 | L53: 0 | M53: =G53*'Pres & Prop Rev'!H35 -> -3349.10382
A54: Annual Minimum per therm | D54: Present: | E54: =D50 -> 0.08905 | H54: Proposed: | I54: 0.08905 | J54: =I54/E54-1 -> 0 | M54: =SUM(M47:M53) -> -71888.50451 | N54: =M54-'Pres & Prop Rev'!H195 -> 0.01548999973
M55: ='Pres & Prop Rev'!H156-'Pres & Prop Rev'!H107 -> 0 | N55: Annual Minimum Difference
A59: (1) Includes Schedule 150 (Purchase Gas Cost Adjustment), Schedule 155 (Gas Rate Adjustment), Schedule 175 (Decoupling), | M59: =M17+M25+M36+M44+M54 -> -1820971.838 | N59: =N17+N25+N36+N44+N54 -> 323840.3319
A60: Schedule 191 (DSM Adjustment) and Schedule 192 (LIRAP Adjustment). | N60: ='Pres & Prop Rev'!C190-'Pres & Prop Rev'!C142 -> -323840.33 | O60: Weather & Unbilled Revenue
N61: =M55 -> 0 | O61: Sch 456 Annual Minimum Difference
N62: =SUM(N59:N61) -> 0.001851329289 | O62: Rev Req Check

Sheet BFG (hidden)
A1: AVISTA UTILITIES
A2: GAS ANNUAL MINIMUM DEFICIENCY FOR B.F. GOODRICH
A3: STATE OF WASHINGTON
A4: BASED ON 2007 ANNUAL MINIMUM
F6: Gas
A7: Annual Minimum Usage Requirement(1) | F7: 10500000
A8: Less: Jan 09 - Dec 09 Usage(2) | F8: =SUMIF('Big Schedules'!$B$4:$B$48,"BF Goodrich",'Big Schedules'!$O$4:$O$48) -> 0
A9: Usage Deficiency | F9: =F7-F8 -> 10500000
A10: Deficiency Charge per therm(3) | F10: 0
A11: Annual Minimum Deficiency | F11: =F9*F10 -> 0
A16: (1) Per Contract - workpaper BJH-G-36
A17: (2) From workpaper BJH-G-9
A18: (3) From workpaper BJH-G-35
A21: ** Annual Minimum Ended in 2009
F24: =ROUND(F11-'Pres & Prop Rev'!J113,0) -> 0

Sheet Rate Spread
A2: Avista
A3: Natural Gas
A4: Rate Spread
D7: Base Tariff | F7: Base | H7: Base Tariff | I7: Total Billed | J7: Percent
D8: Distribution Revenue | E8: Percentage | F8: Tariff | G8: Proposed | H8: Distribution Revenue | I8: Revenue | J8: Increase
A9: Line | B9: Type of | C9: Schedule | D9: Under Present | E9: of Base | F9: Percent | G9: General | H9: Under Proposed | I9: at Present | J9: on Billed
A10: No. | B10: Service | C10: Number | D10: Rates | E10: Increase | F10: Increase | G10: Increase | H10: Rates | I10: Rates (1) | J10: Revenue
B11: (a) | C11: (b) | D11: (c) | E11: (d) | F11: (e) | G11: (f) | I11: (g) | J11: (i)
A13: 1 | B13: General Service | C13: 101/102 | D13: ='Yr 1 RS'!D14 -> 67622.22105 | E13: 1 | F13: =$E$23*E13 -> -0.02459323841 | G13: =D13*F13+0.2 -> -1662.849404 | H13: =D13+G13 -> 65959.37165 | I13: 110268.9978 | J13: =(G13)/I13 -> -0.01507993577
A14: 2 | B14: Large General Service | C14: 111/112 | D14: ='Yr 1 RS'!D15 -> 15462.14031 | E14: 1 | F14: =$E$23*E14 -> -0.02459323841 | G14: =D14*F14 -> -380.264103 | H14: 15081.87621 | I14: 32309.9773 | J14: -0.01176924699
A15: 3 | B15: Large General Svc.-High Annual Load Factor | C15: 121/122 | D15: ='Yr 1 RS'!D16 -> 1024.17931 | E15: 1 | F15: =$E$23*E15 -> -0.02459323841 | G15: =D15*F15 -> -25.18788595 | H15: 998.9914241 | I15: 2587.65482 | J15: -0.009733866261
A16: 4 | B16: Interruptible Service | C16: 131/132 | D16: ='Yr 1 RS'!D17 -> 190.16824 | E16: 1 | F16: =$E$23*E16 -> -0.02459323841 | G16: =D16*F16 -> -4.676852865 | H16: 185.4913871 | I16: 512.11883 | J16: -0.009132358724
A17: 5 | B17: Transportation Service | C17: 146 | D17: ='Yr 1 RS'!D18 -> 2920.586195 | E17: 1 | F17: =$E$23*E17 -> -0.02459323841 | G17: =D17*F17 -> -71.82667261 | H17: 2848.759523 | I17: 2963.286335 | J17: -0.02423885662
A18: 6 | B18: Special Contracts | C18: 148 | D18: ='Yr 1 RS'!D19 -> 1612.36411 | E18: 0 | F18: 0 | G18: =D18*F18 -> 0 | H18: 1612.36411 | I18: 1612.36411 | J18: 0
A19: 7 | B19: Total | D19: ='Pres & Prop Rev'!$C$145/1000-0.2 -> 88831.45922 | F19: =D23/D19 -> -0.02414685089 | G19: =SUM(G13:G18) -> -2144.804919 | H19: =SUM(H13:H18) -> 86686.8543 | I19: =SUM(I13:I18)+0.4 -> 150254.7992 | J19: -0.014274452
B23: Revenue Requirement | D23: -2145 | E23: =D23/(D19-D18) -> -0.02459323841

Sheet Bill Impact
A2: Schedule 101 Bill Impact
A6: Schedule 101 Present | G6: Schedule 101 Proposed
B7: Basic Charge | C7: Block 1 | D7: Block 2 | E7: Total Bill | G7: Basic Charge | H7: Block 1 | I7: Block 2 | J7: Total Bill | L7: Bill Impact | M7: % Change
B8: ='Rate Design'!D4 -> 9 | C8: ='Rate Design'!D16/100 -> 0.67388 | D8: ='Rate Design'!D17/100 -> 0.78982 | G8: ='Yr 1 RD'!H13 -> 9.5 | H8: ='Yr 1 RD'!H15 -> 0.65426 | I8: ='Yr 1 RD'!H16 -> 0.76432
A9: 10 | B9: =$B$8 -> 9 | C9: =A9*$C$8 -> 6.7388 | E9: =SUM(B9:D9) -> 15.7388 | G9: =$G$8 -> 9.5 | H9: =A9*$H$8 -> 6.5426 | J9: =SUM(G9:I9) -> 16.0426 | L9: =J9-E9 -> 0.3038 | M9: =L9/E9 -> 0.01930261519
A10: =A9+10 -> 20 | B10: =$B$8 -> 9 | C10: 13.4776 | E10: =SUM(B10:D10) -> 22.4776 | G10: =$G$8 -> 9.5 | H10: 13.0852 | J10: 22.5852 | L10: 0.1076 | M10: 0.004786987935
A11: =A10+10 -> 30 | B11: 9 | C11: 20.2164 | E11: 29.2164 | G11: 9.5 | H11: 19.6278 | J11: 29.1278 | L11: -0.0886 | M11: -0.003032543366
A12: 40 | B12: 9 | C12: 26.9552 | E12: 35.9552 | G12: 9.5 | H12: 26.1704 | J12: 35.6704 | L12: -0.2848 | M12: -0.007920968316
A13: 50 | B13: 9 | C13: 33.694 | E13: 42.694 | G13: 9.5 | H13: 32.713 | J13: 42.213 | L13: -0.481 | M13: -0.01126622008
A14: 60 | B14: 9 | C14: 40.4328 | E14: 49.4328 | G14: 9.5 | H14: 39.2556 | J14: 48.7556 | L14: -0.6772 | M14: -0.01369940606
A15: =ROUND('Pres & Prop Rev'!D46/'Pres & Prop Rev'!D48,0) -> 65 | B15: 9 | C15: =ROUND(A15*$C$8,2) -> 43.8 | E15: =SUM(B15:D15) -> 52.8 | G15: 9.5 | H15: =ROUND(A15*$H$8,2) -> 42.53 | J15: =SUM(G15:I15) -> 52.03 | L15: -0.77 | M15: -0.01458333333
A16: =A14+10 -> 70 | B16: 9 | C16: =ROUND(A16*$C$8,2) -> 47.17 | E16: 56.17 | G16: 9.5 | H16: =ROUND(A16*$H$8,2) -> 45.8 | J16: 55.3 | L16: =J16-E16 -> -0.87 | M16: -0.01548869503
A17: 80 | B17: 9 | C17: =70*$C$8 -> 47.1716 | D17: =(A17-70)*$D$8 -> 7.8982 | E17: =SUM(B17:D17) -> 64.0698 | G17: 9.5 | H17: =70*$H$8 -> 45.7982 | I17: =(A17-70)*$I$8 -> 7.6432 | J17: 62.9414 | L17: -1.1284 | M17: -0.01761204187
A18: 90 | B18: 9 | C18: =70*$C$8 -> 47.1716 | D18: =(A18-70)*$D$8 -> 15.7964 | E18: 71.968 | G18: 9.5 | H18: =70*$H$8 -> 45.7982 | I18: =(A18-70)*$I$8 -> 15.2864 | J18: 70.5846 | L18: -1.3834 | M18: -0.01922243219
A19: 100 | B19: 9 | C19: 47.1716 | D19: =(A19-70)*$D$8 -> 23.6946 | E19: 79.8662 | G19: 9.5 | H19: 45.7982 | I19: 22.9296 | J19: 78.2278 | L19: -1.6384 | M19: -0.02051431018
A20: 110 | B20: 9 | C20: 47.1716 | D20: 31.5928 | E20: 87.7644 | G20: 9.5 | H20: 45.7982 | I20: 30.5728 | J20: 85.871 | L20: -1.8934 | M20: -0.02157366768
A21: 120 | B21: 9 | C21: 47.1716 | D21: 39.491 | E21: 95.6626 | G21: 9.5 | H21: 45.7982 | I21: 38.216 | J21: 93.5142 | L21: -2.1484 | M21: -0.02245809752
A22: 130 | B22: 9 | C22: 47.1716 | D22: 47.3892 | E22: 103.5608 | G22: 9.5 | H22: 45.7982 | I22: 45.8592 | J22: 101.1574 | L22: -2.4034 | M22: -0.02320762296
A23: 140 | B23: 9 | C23: 47.1716 | D23: 55.2874 | E23: 111.459 | G23: 9.5 | H23: 45.7982 | I23: 53.5024 | J23: 108.8006 | L23: -2.6584 | M23: -0.02385092276
A24: 150 | B24: 9 | C24: 47.1716 | D24: 63.1856 | E24: 119.3572 | G24: 9.5 | H24: 45.7982 | I24: 61.1456 | J24: 116.4438 | L24: -2.9134 | M24: -0.02440908466
A25: 160 | B25: 9 | C25: 47.1716 | D25: 71.0838 | E25: 127.2554 | G25: 9.5 | H25: 45.7982 | I25: 68.7888 | J25: 124.087 | L25: -3.1684 | M25: -0.02489796111
A26: 170 | B26: 9 | C26: 47.1716 | D26: 78.982 | E26: 135.1536 | G26: 9.5 | H26: 45.7982 | I26: 76.432 | J26: 131.7302 | L26: -3.4234 | M26: -0.02532969895
A27: 180 | B27: 9 | C27: 47.1716 | D27: 86.8802 | E27: 143.0518 | G27: 9.5 | H27: 45.7982 | I27: 84.0752 | J27: 139.3734 | L27: -3.6784 | M27: -0.02571376243
A28: 190 | B28: 9 | C28: 47.1716 | D28: 94.7784 | E28: 150.95 | G28: 9.5 | H28: 45.7982 | I28: 91.7184 | J28: 147.0166 | L28: -3.9334 | M28: -0.02605763498
A29: 200 | B29: 9 | C29: 47.1716 | D29: 102.6766 | E29: 158.8482 | G29: 9.5 | H29: 45.7982 | I29: 99.3616 | J29: 154.6598 | L29: -4.1884 | M29: -0.02636731168
A30: 210 | B30: 9 | C30: 47.1716 | D30: 110.5748 | E30: 166.7464 | G30: 9.5 | H30: 45.7982 | I30: 107.0048 | J30: 162.303 | L30: -4.4434 | M30: -0.02664765176
A31: 220 | B31: 9 | C31: 47.1716 | D31: 118.473 | E31: 174.6446 | G31: 9.5 | H31: 45.7982 | I31: 114.648 | J31: 169.9462 | L31: -4.6984 | M31: -0.02690263541
A32: 230 | B32: 9 | C32: 47.1716 | D32: 126.3712 | E32: 182.5428 | G32: 9.5 | H32: 45.7982 | I32: 122.2912 | J32: 177.5894 | L32: -4.9534 | M32: -0.02713555396
A33: 240 | B33: 9 | C33: 47.1716 | D33: 134.2694 | E33: 190.441 | G33: 9.5 | H33: 45.7982 | I33: 129.9344 | J33: 185.2326 | L33: -5.2084 | M33: -0.02734915276
A34: 250 | B34: 9 | C34: 47.1716 | D34: 142.1676 | E34: 198.3392 | G34: 9.5 | H34: 45.7982 | I34: 137.5776 | J34: 192.8758 | L34: -5.4634 | M34: -0.02754573982
A35: 260 | B35: 9 | C35: 47.1716 | D35: 150.0658 | E35: 206.2374 | G35: 9.5 | H35: 45.7982 | I35: 145.2208 | J35: 200.519 | L35: -5.7184 | M35: -0.02772726964
A36: 270 | B36: 9 | C36: 47.1716 | D36: 157.964 | E36: 214.1356 | G36: 9.5 | H36: 45.7982 | I36: 152.864 | J36: 208.1622 | L36: -5.9734 | M36: -0.02789540833
A37: 280 | B37: 9 | C37: 47.1716 | D37: 165.8622 | E37: 222.0338 | G37: 9.5 | H37: 45.7982 | I37: 160.5072 | J37: 215.8054 | L37: -6.2284 | M37: -0.02805158494
A38: 290 | B38: 9 | C38: 47.1716 | D38: 173.7604 | E38: =SUM(B38:D38) -> 229.932 | G38: 9.5 | H38: 45.7982 | I38: 168.1504 | J38: 223.4486 | L38: -6.4834 | M38: -0.02819703217
A39: 300 | B39: 9 | C39: 47.1716 | D39: 181.6586 | E39: 237.8302 | G39: 9.5 | H39: 45.7982 | I39: 175.7936 | J39: 231.0918 | L39: -6.7384 | M39: -0.02833281896
A40: 310 | B40: 9 | C40: 47.1716 | D40: =(A40-70)*$D$8 -> 189.5568 | E40: =SUM(B40:D40) -> 245.7284 | G40: 9.5 | H40: 45.7982 | I40: =(A40-70)*$I$8 -> 183.4368 | J40: =SUM(G40:I40) -> 238.735 | L40: -6.9934 | M40: -0.02845987684
A41: 320 | B41: 9 | C41: 47.1716 | D41: 197.455 | E41: 253.6266 | G41: 9.5 | H41: 45.7982 | I41: 191.08 | J41: 246.3782 | L41: -7.2484 | M41: -0.02857902129
A42: 330 | B42: 9 | C42: 47.1716 | D42: 205.3532 | E42: 261.5248 | G42: 9.5 | H42: 45.7982 | I42: 198.7232 | J42: 254.0214 | L42: -7.5034 | M42: -0.02869096927
A43: 340 | B43: 9 | C43: 47.1716 | D43: 213.2514 | E43: 269.423 | G43: 9.5 | H43: 45.7982 | I43: 206.3664 | J43: 261.6646 | L43: -7.7584 | M43: -0.02879635369
A44: 350 | B44: 9 | C44: 47.1716 | D44: 221.1496 | E44: 277.3212 | G44: 9.5 | H44: 45.7982 | I44: 214.0096 | J44: 269.3078 | L44: -8.0134 | M44: -0.02889573534
A45: 360 | B45: 9 | C45: 47.1716 | D45: 229.0478 | E45: 285.2194 | G45: 9.5 | H45: 45.7982 | I45: 221.6528 | J45: 276.951 | L45: -8.2684 | M45: -0.02898961291
A46: 370 | B46: 9 | C46: 47.1716 | D46: 236.946 | E46: 293.1176 | G46: 9.5 | H46: 45.7982 | I46: 229.296 | J46: 284.5942 | L46: -8.5234 | M46: -0.02907843132
A47: 380 | B47: 9 | C47: 47.1716 | D47: =(A47-70)*$D$8 -> 244.8442 | E47: =SUM(B47:D47) -> 301.0158 | G47: 9.5 | H47: 45.7982 | I47: 236.9392 | J47: 292.2374 | L47: -8.7784 | M47: -0.02916258881
A48: 390 | B48: 9 | C48: 47.1716 | D48: 252.7424 | E48: 308.914 | G48: 9.5 | H48: 45.7982 | I48: 244.5824 | J48: 299.8806 | L48: -9.0334 | M48: -0.02924244288
A49: 400 | B49: 9 | C49: 47.1716 | D49: 260.6406 | E49: 316.8122 | G49: 9.5 | H49: 45.7982 | I49: 252.2256 | J49: 307.5238 | L49: -9.2884 | M49: -0.02931831539
A53: Breakeven Analysis (Base Rates)
A55: Schedule 101 | G55: Schedule 111
B56: Basic Charge | C56: Block 1 | D56: Block 2 | E56: Total Bill | G56: Minimum Charge | H56: Block 1 | I56: Block 2 | J56: Block 3 | K56: Total Bill | M56: Bill Differential
B57: ='Yr 1 RD'!I13 -> 9.5 | C57: ='Rate Design'!D28/100 -> 0.36723 | D57: ='Rate Design'!D29/100 -> 0.47729 | G57: ='Rate Design'!E27 -> 97.25 | H57: ='Rate Design'!E28/100 -> 0 | I57: ='Rate Design'!E29/100 -> 0.33354 | J57: ='Rate Design'!E30/100 -> 0.25424
A58: 10 | B58: =$B$57 -> 9.5 | C58: =A58*$C$57 -> 3.6723 | E58: =SUM(B58:D58) -> 13.1723 | G58: =$G$57 -> 97.25 | H58: =A58*$H$57 -> 0 | K58: =SUM(G58:J58) -> 97.25 | M58: =K58-E58 -> 84.0777
A59: =A58+10 -> 20 | B59: 9.5 | C59: 7.3446 | E59: =SUM(B59:D59) -> 16.8446 | G59: =$G$57 -> 97.25 | H59: =A59*$H$57 -> 0 | K59: =SUM(G59:J59) -> 97.25 | M59: 80.4054
A60: =A59+10 -> 30 | B60: 9.5 | C60: 11.0169 | E60: 20.5169 | G60: 97.25 | H60: 0 | K60: 97.25 | M60: 76.7331
A61: 40 | B61: 9.5 | C61: 14.6892 | E61: 24.1892 | G61: 97.25 | H61: 0 | K61: 97.25 | M61: 73.0608
A62: 50 | B62: 9.5 | C62: 18.3615 | E62: 27.8615 | G62: 97.25 | H62: 0 | K62: 97.25 | M62: 69.3885
A63: 60 | B63: 9.5 | C63: 22.0338 | E63: 31.5338 | G63: 97.25 | H63: 0 | K63: 97.25 | M63: 65.7162
A64: 70 | B64: 9.5 | C64: 25.7061 | E64: 35.2061 | G64: 97.25 | H64: 0 | K64: 97.25 | M64: 62.0439
A65: 80 | B65: 9.5 | C65: =70*$C$57 -> 25.7061 | D65: =(A65-70)*$D$57 -> 4.7729 | E65: 39.979 | G65: 97.25 | H65: 0 | K65: 97.25 | M65: 57.271
A66: 90 | B66: 9.5 | C66: =70*$C$57 -> 25.7061 | D66: =(A66-70)*$D$57 -> 9.5458 | E66: 44.7519 | G66: 97.25 | H66: 0 | K66: 97.25 | M66: 52.4981
A67: 100 | B67: 9.5 | C67: 25.7061 | D67: 14.3187 | E67: 49.5248 | G67: 97.25 | H67: 0 | K67: 97.25 | M67: 47.7252
A68: 110 | B68: 9.5 | C68: 25.7061 | D68: 19.0916 | E68: 54.2977 | G68: 97.25 | H68: 0 | K68: 97.25 | M68: 42.9523
A69: 120 | B69: 9.5 | C69: 25.7061 | D69: 23.8645 | E69: 59.0706 | G69: 97.25 | H69: 0 | K69: 97.25 | M69: 38.1794
A70: 130 | B70: 9.5 | C70: 25.7061 | D70: 28.6374 | E70: 63.8435 | G70: 97.25 | H70: 0 | K70: 97.25 | M70: 33.4065
A71: 140 | B71: 9.5 | C71: 25.7061 | D71: 33.4103 | E71: 68.6164 | G71: 97.25 | H71: 0 | K71: 97.25 | M71: 28.6336
A72: 150 | B72: 9.5 | C72: 25.7061 | D72: 38.1832 | E72: 73.3893 | G72: 97.25 | H72: 0 | K72: 97.25 | M72: 23.8607
A73: 160 | B73: 9.5 | C73: 25.7061 | D73: 42.9561 | E73: 78.1622 | G73: 97.25 | H73: 0 | K73: 97.25 | M73: 19.0878
A74: 170 | B74: 9.5 | C74: 25.7061 | D74: 47.729 | E74: 82.9351 | G74: 97.25 | H74: 0 | K74: 97.25 | M74: 14.3149
A75: 180 | B75: 9.5 | C75: 25.7061 | D75: 52.5019 | E75: 87.708 | G75: 97.25 | H75: 0 | K75: 97.25 | M75: 9.542
A76: 190 | B76: 9.5 | C76: 25.7061 | D76: 57.2748 | E76: 92.4809 | G76: 97.25 | H76: 0 | K76: 97.25 | M76: 4.7691
A77: 200 | B77: 9.5 | C77: 25.7061 | D77: 62.0477 | E77: 97.2538 | G77: 97.25 | H77: 0 | K77: 97.25 | M77: -0.0038
A78: 210 | B78: 9.5 | C78: 25.7061 | D78: 66.8206 | E78: 102.0267 | G78: 97.25 | H78: =200*$H$57 -> 0 | I78: =(A78-200)*$I$57 -> 3.3354 | K78: 100.5854 | M78: -1.4413
A79: 220 | B79: 9.5 | C79: 25.7061 | D79: 71.5935 | E79: 106.7996 | G79: 97.25 | H79: 0 | I79: =(A79-200)*$I$57 -> 6.6708 | K79: 103.9208 | M79: -2.8788
A80: 230 | B80: 9.5 | C80: 25.7061 | D80: 76.3664 | E80: 111.5725 | G80: 97.25 | H80: 0 | I80: 10.0062 | K80: 107.2562 | M80: -4.3163
A81: 240 | B81: 9.5 | C81: 25.7061 | D81: 81.1393 | E81: 116.3454 | G81: 97.25 | H81: 0 | I81: 13.3416 | K81: 110.5916 | M81: -5.7538
A82: 250 | B82: 9.5 | C82: 25.7061 | D82: 85.9122 | E82: 121.1183 | G82: 97.25 | H82: 0 | I82: 16.677 | K82: 113.927 | M82: -7.1913
A83: 260 | B83: 9.5 | C83: 25.7061 | D83: 90.6851 | E83: 125.8912 | G83: 97.25 | H83: 0 | I83: 20.0124 | K83: 117.2624 | M83: -8.6288
A84: 270 | B84: 9.5 | C84: 25.7061 | D84: 95.458 | E84: 130.6641 | G84: 97.25 | H84: 0 | I84: 23.3478 | K84: 120.5978 | M84: -10.0663
A85: 280 | B85: 9.5 | C85: 25.7061 | D85: 100.2309 | E85: 135.437 | G85: 97.25 | H85: 0 | I85: 26.6832 | K85: 123.9332 | M85: -11.5038
A86: 290 | B86: 9.5 | C86: 25.7061 | D86: 105.0038 | E86: 140.2099 | G86: 97.25 | H86: 0 | I86: 30.0186 | K86: 127.2686 | M86: -12.9413
A87: 300 | B87: 9.5 | C87: 25.7061 | D87: 109.7767 | E87: 144.9828 | G87: 97.25 | H87: 0 | I87: 33.354 | K87: 130.604 | M87: -14.3788
A88: 310 | B88: 9.5 | C88: 25.7061 | D88: 114.5496 | E88: 149.7557 | G88: 97.25 | H88: 0 | I88: 36.6894 | K88: 133.9394 | M88: -15.8163
A89: 320 | B89: 9.5 | C89: 25.7061 | D89: 119.3225 | E89: 154.5286 | G89: 97.25 | H89: 0 | I89: 40.0248 | K89: 137.2748 | M89: -17.2538
A90: 330 | B90: 9.5 | C90: 25.7061 | D90: 124.0954 | E90: 159.3015 | G90: 97.25 | H90: 0 | I90: 43.3602 | K90: 140.6102 | M90: -18.6913
A91: 340 | B91: 9.5 | C91: 25.7061 | D91: 128.8683 | E91: 164.0744 | G91: 97.25 | H91: 0 | I91: 46.6956 | K91: 143.9456 | M91: -20.1288
A92: 350 | B92: 9.5 | C92: 25.7061 | D92: 133.6412 | E92: 168.8473 | G92: 97.25 | H92: 0 | I92: 50.031 | K92: 147.281 | M92: -21.5663
A93: 500 | B93: 9.5 | C93: 25.7061 | D93: =(A93-70)*$D$57 -> 205.2347 | E93: =SUM(B93:D93) -> 240.4408 | G93: 97.25 | H93: 0 | I93: =(A93-200)*$I$57 -> 100.062 | K93: =SUM(G93:J93) -> 197.312 | M93: -43.1288
A96: Breakeven Analysis (Base Rates)
A98: Schedule 101 | H98: Schedule 121
B99: Basic Charge | C99: Block 1 | D99: Block 2 | E99: Block 3 | F99: Total Bill | H99: Minimum Charge | I99: Block 1 | J99: Block 2 | K99: Block 3 | L99: Block 4 | M99: Total Bill | O99: Bill Differential
B100: =B57 -> 9.5 | C100: =C57 -> 0.36723 | D100: =D57 -> 0.47729 | E100: =E57 -> 0 | H100: ='Rate Design'!F27 -> 240.44 | I100: ='Rate Design'!F28/100 -> 0 | J100: ='Rate Design'!F29/100 -> 0.3485 | K100: ='Rate Design'!F30/100 -> 0.26767 | L100: ='Rate Design'!F31/100 -> 0.21692
A101: 200 | B101: =$B$100 -> 9.5 | C101: =70*$C$100 -> 25.7061 | D101: =D100*(A101-70) -> 62.0477 | F101: =SUM(B101:E101) -> 97.2538 | H101: =$H$100 -> 240.44 | I101: =A101*$I$100 -> 0 | M101: =SUM(H101:L101) -> 240.44 | O101: =M101-F101 -> 143.1862
A102: 500 | B102: =$B$100 -> 9.5 | C102: =$C$101 -> 25.7061 | D102: =D100*(A102-70) -> 205.2347 | F102: =SUM(B102:E102) -> 240.4408 | H102: =$H$100 -> 240.44 | I102: =A102*$I$100 -> 0 | M102: =SUM(H102:L102) -> 240.44 | O102: =M102-F102 -> -0.0008

Sheet Bill Determ
A1: AVISTA UTILITIES
A2: WASHINGTON GAS
A3: USAGE & BILLINGS BY RATE SCHEDULE
A4: 12 MONTHS ENDED DECEMBER 31, 2016
A6: Schedule 101/102 | B6: Total therms | C6: Total Billings | E6: 0-70 | F6: >70 | G6: Total Therms
A7: therms per Revenue Run(1)(2) | B7: ='12MEDEC16'!P149 -> 105915271.3 | C7: ='12MEDEC16'!O25 -> 1847462 | E7: ='Block Usage'!O17 -> 70235874.57 | F7: ='Block Usage'!O18 -> 35679396.76 | G7: =SUM(D7:F7) -> 105915271.3
G8: ='12MEDEC16'!P149 -> 105915271.3
A9: Schedule 111,112 | B9: 0-200 thms | C9: 201-1000 thms | D9: > 1000 thms | E9: Total | F9: Billings | G9: =G8-G7 -> 0
A10: therms by block(2) | B10: ='Block Usage'!O35 -> 5785416.185 | C10: ='Block Usage'!O36 -> 14299408.7 | D10: ='Block Usage'!O37 -> 23171234.6 | E10: =SUM(B10:D10) -> 43256059.48
A11: less: shifted to Sch 146 | B11: 0 | C11: 0 | D11: 0 | E11: =SUM(B11:D11) -> 0
A12: Total therms by block | B12: =SUM(B10:B11) -> 5785416.185 | C12: =SUM(C10:C11) -> 14299408.7 | D12: =SUM(D10:D11) -> 23171234.6 | E12: =SUM(E10:E11) -> 43256059.48
A13: Per Rev. Run(1) | E13: ='12MEDEC16'!P150 -> 43256059.48 | F13: ='12MEDEC16'!O26 -> 32983
A14: less: shifted to Sch. 146 | B14: 0 | C14: 0 | D14: 0 | E14: =SUM(B14:D14) -> 0 | F14: 0
A15: less: shifted from Sch. 121 | E15: 0 | F15: 0
A16: Total | E16: =E13+E14+E15 -> 43256059.48 | F16: =F13+F14+F15 -> 32983
A17: Adjust. To Actual | E17: =E16-E12 -> 0
D19: 1001-10000 | E19: 10000- | G19: Total
A20: Schedule 121,122 | B20: 0-500 thms | C20: 501-1000 thms | D20: therms | E20: 25000 thms | F20: >25000 thms | G20: therms | H20: Total Billings
A21: therms by block(3) | B21: ='Block Usage'!O60 -> 140552.6267 | C21: ='Block Usage'!O61 -> 140552.8844 | D21: ='Block Usage'!O62 -> 2217459.995 | E21: ='Block Usage'!O63 -> 1096723.442 | F21: ='Block Usage'!O64 -> 697258.8038 | G21: =SUM(B21:F21) -> 4292547.751 | H21: ='12MEDEC16'!O27 -> 283
A22: less: shifted to Sch 146 | B22: =-'Big Schedules'!Q56 -> -5000 | C22: =-'Big Schedules'!R56 -> -5000 | D22: =-'Big Schedules'!S56 -> -90000 | E22: =-'Big Schedules'!T56 -> -143580 | F22: =-'Big Schedules'!U56 -> -110687 | G22: =SUM(B22:F22) -> -354267 | H22: =-COUNT('Big Schedules'!C52:N56) -> -10
A23: Total therms by block | B23: =SUM(B21:B22) -> 135552.6267 | C23: =SUM(C21:C22) -> 135552.8844 | D23: 2127459.995 | E23: 953143.4416 | F23: 586571.8038 | G23: 3938280.751 | H23: 273
A24: Per Rev. Run(1) | G24: ='12MEDEC16'!P151 -> 4292547.751
A25: less: shifted to Sch. 146 (2) | G25: =G22 -> -354267
A26: Total | G26: =G24+G25 -> 3938280.751
G27: =G23-G26 -> 0
B28: first | C28: next | D28: next | E28: over | F28: Total
A29: Schedule 131,132 | B29: 10000 thms | C29: 15000 thms | D29: 25000 thms | E29: 50000 thms | F29: therms | G29: Total Billings
A30: billed/pro forma therms(3) | B30: ='Big Schedules'!Q108 -> 239134 | C30: ='Big Schedules'!R108 -> 304419 | D30: ='Big Schedules'!S108 -> 295331 | E30: ='Big Schedules'!T108 -> 62383 | F30: =SUM(B30:E30) -> 901267 | G30: 24
B32: first | C32: next | D32: next | E32: next | F32: over | G32: Total
A33: Schedule 146 | B33: 20000 thms | C33: 30000 thms | D33: 250000 thms | E33: 200000 thms | F33: 500000 thms | G33: therms | H33: Total Billings
A34: billed/pro forma therms(4) | B34: ='Big Schedules'!Q48 -> 8323425 | C34: ='Big Schedules'!R48 -> 7106130 | D34: ='Big Schedules'!S48 -> 10674881 | E34: ='Big Schedules'!T48 -> 2733574 | F34: ='Big Schedules'!U48 -> 1881519 | G34: =SUM(B34:F34) -> 30719529 | H34: =40*12 -> 480
A36: Sch. 147-Interdepartmental(3) | B36: Total therms
A37: billed/pro forma therms | B37: ='Big Schedules'!O132 -> 2101247
A39: Sch. 148-Sp. Contracts(3) | B39: Total therms | C39: Total Billings
A40: Kaiser -Trentwood | B40: ='Big Schedules'!O116 -> 22950008 | C40: 12
A41: Lamb-Weston | B41: ='Big Schedules'!O117 -> 6615705 | C41: 12
A42: Mutual Materials | B42: ='Big Schedules'!O118 -> 1996121 | C42: 12
A43: Washington Potato | B43: ='Big Schedules'!O119 -> 5723840 | C43: 12
A44: Total | B44: =SUM(B40:B43) -> 37285674 | C44: =SUM(C40:C43) -> 48
A46: Wash. State Univ. | B46: =MAX(8000000,'Big Schedules'!O120) -> 9620298 | C46: 12
A48: (1) shown on workpaper PDE-G-11
A49: (2) shown on workpaper PDE-G-9
A50: (3) shown on workpaper PDE-G-10
A51: (4) shown on workpaper PDE-G-9
A59: USAGE
A60: Revenue Run therms, this sheet | B60: =B7+E16+F30+G34+B37+B44+B46+G21 -> 234091893.6
A62: actual Revenue Run therms | B62: ='12MEDEC16'!P156 -> 233810554.2
A63: less:
A64: Sch 132 Jan 2016 billing | B64: =-'Big Schedules'!C113 -> 72927.024
A65: Schedule 121 Shifting | B65: =G22 -> -354267
A66: Sch 146 Shifting | B66: =-'Big Schedules'!O48+G34 -> 0
A67: Sch 11/12 Shifting | B67: =-E15-E14 -> 0
B68: =B62-SUM(B63:B67) -> 234091894.2
A69: Diff | B69: =B60-B68 -> -0.6210000217
A71: from Present Rev tab | B71: =SUM('Pres & Prop Rev'!D20:J20) -> 233737626.6
A72: this sheet | B72: =B60 -> 234091893.6
A73: Diff | B73: =B71-B72 -> -354267
A76: CUSTOMERS
A77: Customers from this sheet | B77: =C7+F16+G30+H34+C44+C46+H21 -> 1881292
A79: Rev. Run customers | B79: ='12MEDEC16'!O32 -> 1881318
A80: less:
A81: Sch 111 | B81: =-F14 -> 0
A82: Sch 121/122 | B82: 0
A83: Sch 131 normalize | B83: 0
A84: Stimson switching--reduce Sch 146 | B84: 0
A85: Sch 146 normalize | B85: ='12MEDEC16'!O29-'Bill Determ'!H34 -> -10
A86: Sch 147 customers not billed | B86: ='12MEDEC16'!O30 -> 35
A87: Sch 148 normalize | B87: 0
B88: =B79-SUM(B80:B87) -> 1881293
A89: Diff | B89: =B77-B88 -> -1
A91: from Present Rev tab | B91: =SUM('Pres & Prop Rev'!D25:J26) -> 1881282
A92: Diff | B92: =B88-B91 -> 11

Sheet Block Usage
A1: WASHINGTON NATURAL GAS SYSTEM
C2: January | D2: February | E2: March | F2: April | G2: May | H2: June | I2: July | J2: August | K2: September | L2: October | M2: November | N2: December | O2: Annual Total
A3: Rate Design Program Monthly Results
B4: Schedule 101/102
B5: Block 1 | C5: ='12MEDEC16'!D53+'12MEDEC16'!D66 -> 10079673.24 | D5: ='12MEDEC16'!E53+'12MEDEC16'!E66 -> 9640633.786 | E5: ='12MEDEC16'!F53+'12MEDEC16'!F66 -> 8901007.112 | F5: ='12MEDEC16'!G53+'12MEDEC16'!G66 -> 7422308.834 | G5: ='12MEDEC16'!H53+'12MEDEC16'!H66 -> 3968450.237 | H5: ='12MEDEC16'!I53+'12MEDEC16'!I66 -> 3064515.309 | I5: ='12MEDEC16'!J53+'12MEDEC16'!J66 -> 2295120.258 | J5: ='12MEDEC16'!K53+'12MEDEC16'!K66 -> 1916083.84 | K5: ='12MEDEC16'!L53+'12MEDEC16'!L66 -> 2334645.548 | L5: ='12MEDEC16'!M53+'12MEDEC16'!M66 -> 4091395.951 | M5: ='12MEDEC16'!N53+'12MEDEC16'!N66 -> 6991446.45 | N5: ='12MEDEC16'!O53+'12MEDEC16'!O66 -> 9629464.608 | O5: =SUM(C5:N5) -> 70334745.17
B6: Block 2 | C6: ='12MEDEC16'!D54+'12MEDEC16'!D67 -> 12052145 | D6: ='12MEDEC16'!E54+'12MEDEC16'!E67 -> 7146815.98 | E6: ='12MEDEC16'!F54+'12MEDEC16'!F67 -> 3958738.117 | F6: ='12MEDEC16'!G54+'12MEDEC16'!G67 -> 1692620.6 | G6: ='12MEDEC16'!H54+'12MEDEC16'!H67 -> 300617.8833 | H6: ='12MEDEC16'!I54+'12MEDEC16'!I67 -> 217188.93 | I6: ='12MEDEC16'!J54+'12MEDEC16'!J67 -> 242645.4363 | J6: ='12MEDEC16'!K54+'12MEDEC16'!K67 -> 214557.85 | K6: ='12MEDEC16'!L54+'12MEDEC16'!L67 -> 270068.032 | L6: ='12MEDEC16'!M54+'12MEDEC16'!M67 -> 362122.4017 | M6: ='12MEDEC16'!N54+'12MEDEC16'!N67 -> 1318938.404 | N6: ='12MEDEC16'!O54+'12MEDEC16'!O67 -> 8021156.522 | O6: =SUM(C6:N6) -> 35797615.16
A7: Therms | B7: Total | C7: =SUM(C5:C6) -> 22131818.24 | D7: 16787449.77 | E7: 12859745.23 | F7: 9114929.434 | G7: 4269068.12 | H7: 3281704.239 | I7: 2537765.694 | J7: 2130641.69 | K7: 2604713.58 | L7: 4453518.353 | M7: 8310384.854 | N7: 17650621.13 | O7: 106132360.3
B8: Billed Customers | C8: ='12MEDEC16'!C25 -> 152912 | D8: ='12MEDEC16'!D25 -> 153882 | E8: ='12MEDEC16'!E25 -> 153511 | F8: ='12MEDEC16'!F25 -> 153360 | G8: ='12MEDEC16'!G25 -> 153389 | H8: ='12MEDEC16'!H25 -> 153224 | I8: ='12MEDEC16'!I25 -> 153459 | J8: ='12MEDEC16'!J25 -> 153740 | K8: ='12MEDEC16'!K25 -> 154156 | L8: ='12MEDEC16'!L25 -> 154684 | M8: ='12MEDEC16'!M25 -> 155353 | N8: ='12MEDEC16'!N25 -> 155792 | O8: =SUM(C8:N8) -> 1847462
B9: Block 1 Limit | C9: =C8*70 -> 10703840 | D9: =D8*70 -> 10771740 | E9: 10745770 | F9: 10735200 | G9: 10737230 | H9: 10725680 | I9: 10742130 | J9: 10761800 | K9: 10790920 | L9: 10827880 | M9: 10874710 | N9: 10905440 | O9: =SUM(C9:N9) -> 129322340
B10: Revenue Run Total | C10: ='12MEDEC16'!D149 -> 21914729.24 | D10: ='12MEDEC16'!E149 -> 16787449.77 | E10: ='12MEDEC16'!F149 -> 12859745.23 | F10: ='12MEDEC16'!G149 -> 9114929.434 | G10: ='12MEDEC16'!H149 -> 4269068.12 | H10: ='12MEDEC16'!I149 -> 3281704.239 | I10: ='12MEDEC16'!J149 -> 2537765.694 | J10: ='12MEDEC16'!K149 -> 2130641.69 | K10: ='12MEDEC16'!L149 -> 2604713.58 | L10: ='12MEDEC16'!M149 -> 4453518.353 | M10: ='12MEDEC16'!N149 -> 8310384.854 | N10: ='12MEDEC16'!O149 -> 17650621.13 | O10: =SUM(C10:N10) -> 105915271.3
B11: Difference | C11: =C10-C7 -> -217089 | D11: 0 | E11: 0 | F11: 0 | G11: 0 | H11: 0 | I11: 0 | J11: 0 | K11: 0 | L11: 0 | M11: 0 | N11: 0 | O11: =SUM(C11:N11) -> -217089 | P11: =O11/O10 -> -0.002049647773
B13: Block 1 | C13: =(C5/C$7)*C$11 -> -98870.60158 | D13: =(D5/D$7)*D$11 -> 0 | E13: 0 | F13: 0 | G13: 0 | H13: 0 | I13: 0 | J13: 0 | K13: 0 | L13: 0 | M13: 0 | N13: 0 | O13: =SUM(C13:N13) -> -98870.60158
B14: Block 2 | C14: =(C6/C$7)*C$11 -> -118218.3984 | D14: =(D6/D$7)*D$11 -> 0 | E14: 0 | F14: 0 | G14: 0 | H14: 0 | I14: 0 | J14: 0 | K14: 0 | L14: 0 | M14: 0 | N14: 0 | O14: =SUM(C14:N14) -> -118218.3984
C15: =SUM(C13:C14) -> -217089 | D15: 0 | E15: 0 | F15: 0 | G15: 0 | H15: 0 | I15: 0 | J15: 0 | K15: 0 | L15: 0 | M15: 0 | N15: 0 | O15: -217089
B17: Block 1 | C17: =C5+C13 -> 9980802.636 | D17: 9640633.786 | E17: 8901007.112 | F17: 7422308.834 | G17: 3968450.237 | H17: 3064515.309 | I17: 2295120.258 | J17: 1916083.84 | K17: 2334645.548 | L17: 4091395.951 | M17: 6991446.45 | N17: 9629464.608 | O17: =SUM(C17:N17) -> 70235874.57
B18: Block 2 | C18: =C6+C14 -> 11933926.6 | D18: 7146815.98 | E18: 3958738.117 | F18: 1692620.6 | G18: 300617.8833 | H18: 217188.93 | I18: 242645.4363 | J18: 214557.85 | K18: 270068.032 | L18: 362122.4017 | M18: 1318938.404 | N18: 8021156.522 | O18: =SUM(C18:N18) -> 35679396.76
C19: =SUM(C17:C18) -> 21914729.24 | D19: 16787449.77 | E19: 12859745.23 | F19: 9114929.434 | G19: 4269068.12 | H19: 3281704.239 | I19: 2537765.694 | J19: 2130641.69 | K19: 2604713.58 | L19: 4453518.353 | M19: 8310384.854 | N19: 17650621.13 | O19: 105915271.3
C20: =C19-C10 -> 0 | D20: 0 | E20: 0 | F20: 0 | G20: 0 | H20: 0 | I20: 0 | J20: 0 | K20: 0 | L20: 0 | M20: 0 | N20: 0 | O20: 0
B22: Schedule 111/112
B23: Block 1 | C23: ='12MEDEC16'!D77 -> 530508.2063 | D23: ='12MEDEC16'!E77 -> 530403.092 | E23: ='12MEDEC16'!F77 -> 531422.9723 | F23: ='12MEDEC16'!G77 -> 540454.392 | G23: ='12MEDEC16'!H77 -> 488827.9807 | H23: ='12MEDEC16'!I77 -> 449904.4127 | I23: ='12MEDEC16'!J77 -> 395227.5837 | J23: ='12MEDEC16'!K77 -> 360305.426 | K23: ='12MEDEC16'!L77 -> 390905.3503 | L23: ='12MEDEC16'!M77 -> 483629.2113 | M23: ='12MEDEC16'!N77 -> 536148.7077 | N23: ='12MEDEC16'!O77 -> 555772.7027 | O23: =SUM(C23:N23) -> 5793510.038
B24: Block 2 | C24: ='12MEDEC16'!D78 -> 1881093.176 | D24: ='12MEDEC16'!E78 -> 1767621.291 | E24: ='12MEDEC16'!F78 -> 1640138.509 | F24: ='12MEDEC16'!G78 -> 1451749.436 | G24: ='12MEDEC16'!H78 -> 934467.887 | H24: ='12MEDEC16'!I78 -> 765049.4243 | I24: ='12MEDEC16'!J78 -> 615919.1773 | J24: ='12MEDEC16'!K78 -> 543152.331 | K24: ='12MEDEC16'!L78 -> 636578.9923 | L24: ='12MEDEC16'!M78 -> 912958.7783 | M24: ='12MEDEC16'!N78 -> 1338992.914 | N24: ='12MEDEC16'!O78 -> 1840386.229 | O24: =SUM(C24:N24) -> 14328108.15
B25: Block 3 | C25: ='12MEDEC16'!D79 -> 4951021.331 | D25: ='12MEDEC16'!E79 -> 3565736.413 | E25: ='12MEDEC16'!F79 -> 2662853.689 | F25: ='12MEDEC16'!G79 -> 1911398.177 | G25: ='12MEDEC16'!H79 -> 935124.7163 | H25: ='12MEDEC16'!I79 -> 696192.527 | I25: ='12MEDEC16'!J79 -> 576385.292 | J25: ='12MEDEC16'!K79 -> 511030.633 | K25: ='12MEDEC16'!L79 -> 720533.5613 | L25: ='12MEDEC16'!M79 -> 1009988.891 | M25: ='12MEDEC16'!N79 -> 1562906.642 | N25: ='12MEDEC16'!O79 -> 4143599.426 | O25: =SUM(C25:N25) -> 23246771.3
A26: Therms | B26: Total | C26: =SUM(C23:C25) -> 7362622.714 | D26: 5863760.796 | E26: 4834415.17 | F26: 3903602.005 | G26: 2358420.584 | H26: 1911146.364 | I26: 1587532.053 | J26: =SUM(J23:J25) -> 1414488.39 | K26: 1748017.904 | L26: 2406576.881 | M26: 3438048.264 | N26: 6539758.358 | O26: 43368389.48
B27: Revenue Run Total | C27: ='12MEDEC16'!D150 -> 7250292.714 | D27: ='12MEDEC16'!E150 -> 5863760.796 | E27: ='12MEDEC16'!F150 -> 4834415.17 | F27: ='12MEDEC16'!G150 -> 3903602.005 | G27: ='12MEDEC16'!H150 -> 2358420.584 | H27: ='12MEDEC16'!I150 -> 1911146.364 | I27: ='12MEDEC16'!J150 -> 1587532.053 | J27: ='12MEDEC16'!K150 -> 1414488.39 | K27: ='12MEDEC16'!L150 -> 1748017.904 | L27: ='12MEDEC16'!M150 -> 2406576.881 | M27: ='12MEDEC16'!N150 -> 3438048.264 | N27: ='12MEDEC16'!O150 -> 6539758.358 | O27: =SUM(C27:N27) -> 43256059.48
C28: =C27-C26 -> -112330 | D28: 0 | E28: 0 | F28: 0 | G28: 0 | H28: 0 | I28: 0 | J28: 0 | K28: 0 | L28: 0 | M28: 0 | N28: 0 | O28: =SUM(C28:N28) -> -112330 | P28: =O28/O27 -> -0.002596861604
B30: Block 1 | C30: =(C23/C$26)*C$28 -> -8093.853119 | D30: =(D23/D$26)*D$28 -> 0 | E30: 0 | F30: 0 | G30: 0 | H30: 0 | I30: 0 | J30: 0 | K30: 0 | L30: 0 | M30: 0 | N30: 0 | O30: =SUM(C30:N30) -> -8093.853119
B31: Block 2 | C31: =(C24/C$26)*C$28 -> -28699.44648 | D31: =(D24/D$26)*D$28 -> 0 | E31: 0 | F31: 0 | G31: 0 | H31: 0 | I31: 0 | J31: 0 | K31: 0 | L31: 0 | M31: 0 | N31: 0 | O31: =SUM(C31:N31) -> -28699.44648
B32: Block 3 | C32: =(C25/C$26)*C$28 -> -75536.70041 | D32: =(D25/D$26)*D$28 -> 0 | E32: 0 | F32: 0 | G32: 0 | H32: 0 | I32: 0 | J32: 0 | K32: 0 | L32: 0 | M32: 0 | N32: 0 | O32: =SUM(C32:N32) -> -75536.70041
C33: =SUM(C30:C32) -> -112330 | D33: =SUM(D30:D32) -> 0 | E33: 0 | F33: 0 | G33: 0 | H33: 0 | I33: 0 | J33: 0 | K33: 0 | L33: 0 | M33: 0 | N33: 0 | O33: =SUM(O30:O32) -> -112330
B35: Block 1 | C35: =C23+C30 -> 522414.3532 | D35: =D23+D30 -> 530403.092 | E35: 531422.9723 | F35: 540454.392 | G35: 488827.9807 | H35: 449904.4127 | I35: 395227.5837 | J35: 360305.426 | K35: 390905.3503 | L35: 483629.2113 | M35: 536148.7077 | N35: 555772.7027 | O35: =SUM(C35:N35) -> 5785416.185
B36: Block 2 | C36: =C24+C31 -> 1852393.73 | D36: 1767621.291 | E36: 1640138.509 | F36: 1451749.436 | G36: 934467.887 | H36: 765049.4243 | I36: 615919.1773 | J36: 543152.331 | K36: 636578.9923 | L36: 912958.7783 | M36: 1338992.914 | N36: 1840386.229 | O36: =SUM(C36:N36) -> 14299408.7
B37: Block 3 | C37: 4875484.631 | D37: 3565736.413 | E37: 2662853.689 | F37: 1911398.177 | G37: 935124.7163 | H37: 696192.527 | I37: 576385.292 | J37: 511030.633 | K37: 720533.5613 | L37: 1009988.891 | M37: 1562906.642 | N37: 4143599.426 | O37: =SUM(C37:N37) -> 23171234.6
C38: =SUM(C35:C37) -> 7250292.714 | D38: 5863760.796 | E38: 4834415.17 | F38: 3903602.005 | G38: 2358420.584 | H38: 1911146.364 | I38: 1587532.053 | J38: 1414488.39 | K38: 1748017.904 | L38: 2406576.881 | M38: 3438048.264 | N38: 6539758.358 | O38: 43256059.48
C39: =C38-C27 -> 0 | D39: 0 | E39: 0 | F39: 0 | G39: 0 | H39: 0 | I39: 0 | J39: 0 | K39: 0 | L39: 0 | M39: 0 | N39: 0 | O39: 0
B43: Schedule 121/122
B44: Block 1 | C44: ='12MEDEC16'!D89+'12MEDEC16'!D103 -> 13000 | D44: ='12MEDEC16'!E89+'12MEDEC16'!E103 -> 13500 | E44: ='12MEDEC16'!F89+'12MEDEC16'!F103 -> 13000 | F44: ='12MEDEC16'!G89+'12MEDEC16'!G103 -> 13000 | G44: ='12MEDEC16'!H89+'12MEDEC16'!H103 -> 13000 | H44: ='12MEDEC16'!I89+'12MEDEC16'!I103 -> 13000 | I44: ='12MEDEC16'!J89+'12MEDEC16'!J103 -> 13000 | J44: ='12MEDEC16'!K89+'12MEDEC16'!K103 -> 13000 | K44: ='12MEDEC16'!L89+'12MEDEC16'!L103 -> 12054.65 | L44: ='12MEDEC16'!M89+'12MEDEC16'!M103 -> 11974.72533 | M44: ='12MEDEC16'!N89+'12MEDEC16'!N103 -> 11804.604 | N44: ='12MEDEC16'!O89+'12MEDEC16'!O103 -> 549.354 | O44: =SUM(C44:N44) -> 140883.3333
B45: Block 2 | C45: ='12MEDEC16'!D90+'12MEDEC16'!D104 -> 13000 | D45: ='12MEDEC16'!E90+'12MEDEC16'!E104 -> 13500 | E45: ='12MEDEC16'!F90+'12MEDEC16'!F104 -> 13000 | F45: ='12MEDEC16'!G90+'12MEDEC16'!G104 -> 13000 | G45: ='12MEDEC16'!H90+'12MEDEC16'!H104 -> 13000 | H45: ='12MEDEC16'!I90+'12MEDEC16'!I104 -> 13000 | I45: ='12MEDEC16'!J90+'12MEDEC16'!J104 -> 13000 | J45: ='12MEDEC16'!K90+'12MEDEC16'!K104 -> 12871.62 | K45: ='12MEDEC16'!L90+'12MEDEC16'!L104 -> 12000 | L45: ='12MEDEC16'!M90+'12MEDEC16'!M104 -> 11883.33334 | M45: ='12MEDEC16'!N90+'12MEDEC16'!N104 -> 11500 | N45: ='12MEDEC16'!O90+'12MEDEC16'!O104 -> 1128.38 | O45: =SUM(C45:N45) -> 140883.3333
B46: Block 3 | C46: ='12MEDEC16'!D91+'12MEDEC16'!D105 -> 214688.002 | D46: ='12MEDEC16'!E91+'12MEDEC16'!E105 -> 220939.251 | E46: ='12MEDEC16'!F91+'12MEDEC16'!F105 -> 214591.073 | F46: ='12MEDEC16'!G91+'12MEDEC16'!G105 -> 203225.878 | G46: ='12MEDEC16'!H91+'12MEDEC16'!H105 -> 196469.53 | H46: ='12MEDEC16'!I91+'12MEDEC16'!I105 -> 188751.711 | I46: ='12MEDEC16'!J91+'12MEDEC16'!J105 -> 175554.625 | J46: ='12MEDEC16'!K91+'12MEDEC16'!K105 -> 164160.514 | K46: ='12MEDEC16'!L91+'12MEDEC16'!L105 -> 176189.95 | L46: ='12MEDEC16'!M91+'12MEDEC16'!M105 -> 180179.028 | M46: ='12MEDEC16'!N91+'12MEDEC16'!N105 -> 188567.386 | N46: ='12MEDEC16'!O91+'12MEDEC16'!O105 -> 99625.127 | O46: =SUM(C46:N46) -> 2222942.075
B47: Block 4 | C47: ='12MEDEC16'!D92+'12MEDEC16'!D106 -> 169799.487 | D47: ='12MEDEC16'!E92+'12MEDEC16'!E106 -> 152300.909 | E47: ='12MEDEC16'!F92+'12MEDEC16'!F106 -> 119887.975 | F47: ='12MEDEC16'!G92+'12MEDEC16'!G106 -> 96279.283 | G47: ='12MEDEC16'!H92+'12MEDEC16'!H106 -> 75927.445 | H47: ='12MEDEC16'!I92+'12MEDEC16'!I106 -> 59132.903 | I47: ='12MEDEC16'!J92+'12MEDEC16'!J106 -> 61849.366 | J47: ='12MEDEC16'!K92+'12MEDEC16'!K106 -> 57527.41 | K47: ='12MEDEC16'!L92+'12MEDEC16'!L106 -> 63502.245 | L47: ='12MEDEC16'!M92+'12MEDEC16'!M106 -> 70493.06 | M47: ='12MEDEC16'!N92+'12MEDEC16'!N106 -> 72952.281 | N47: ='12MEDEC16'!O92+'12MEDEC16'!O106 -> 101420.646 | O47: =SUM(C47:N47) -> 1101073.01
B48: Block 5 | C48: ='12MEDEC16'!D93+'12MEDEC16'!D107 -> 133344.785 | D48: ='12MEDEC16'!E93+'12MEDEC16'!E107 -> 96206.507 | E48: ='12MEDEC16'!F93+'12MEDEC16'!F107 -> 63862.775 | F48: ='12MEDEC16'!G93+'12MEDEC16'!G107 -> 50634.375 | G48: ='12MEDEC16'!H93+'12MEDEC16'!H107 -> 28510.381 | H48: ='12MEDEC16'!I93+'12MEDEC16'!I107 -> 7903.534 | I48: ='12MEDEC16'!J93+'12MEDEC16'!J107 -> 22636.738 | J48: ='12MEDEC16'!K93+'12MEDEC16'!K107 -> 6614.308 | K48: ='12MEDEC16'!L93+'12MEDEC16'!L107 -> 17433.538 | L48: ='12MEDEC16'!M93+'12MEDEC16'!M107 -> 46942.71333 | M48: ='12MEDEC16'!N93+'12MEDEC16'!N107 -> 77529.486 | N48: ='12MEDEC16'!O93+'12MEDEC16'!O107 -> 149105.921 | O48: =SUM(C48:N48) -> 700725.0613
A49: Therms | B49: Total | C49: =SUM(C44:C48) -> 543832.274 | D49: 496446.667 | E49: 424341.823 | F49: 376139.536 | G49: 326907.356 | H49: 281788.148 | I49: 286040.729 | J49: =SUM(J44:J48) -> 254173.852 | K49: 281180.383 | L49: 321472.86 | M49: 362353.757 | N49: 351829.428 | O49: 4306506.813
B50: Revenue Run Total | C50: ='12MEDEC16'!D151 -> 529872.274 | D50: ='12MEDEC16'!E151 -> 496446.667 | E50: ='12MEDEC16'!F151 -> 424341.823 | F50: ='12MEDEC16'!G151 -> 376139.536 | G50: ='12MEDEC16'!H151 -> 326907.356 | H50: ='12MEDEC16'!I151 -> 281788.148 | I50: ='12MEDEC16'!J151 -> 286040.729 | J50: ='12MEDEC16'!K151 -> 254173.852 | K50: ='12MEDEC16'!L151 -> 281344.333 | L50: ='12MEDEC16'!M151 -> 321747.036 | M50: ='12MEDEC16'!N151 -> 361916.569 | N50: ='12MEDEC16'!O151 -> 351829.428 | O50: =SUM(C50:N50) -> 4292547.751
C51: =C50-C49 -> -13960 | D51: 0 | E51: 0 | F51: 0 | G51: 0 | H51: 0 | I51: 0 | J51: 0 | K51: 163.95 | L51: 274.176 | M51: -437.188 | N51: 0 | O51: =SUM(C51:N51) -> -13959.062 | P51: =O51/O50 -> -0.003251929346
B53: Block 1 | C53: =(C44/C$49)*C$51 -> -333.7058293 | D53: =(D44/D$49)*D$51 -> 0 | E53: 0 | F53: 0 | G53: 0 | H53: 0 | I53: 0 | J53: 0 | K53: 7.028797125 | L53: 10.2129377 | M53: -14.24252161 | N53: 0 | O53: =SUM(C53:N53) -> -330.7066161
B54: Block 2 | C54: =(C45/C$49)*C$51 -> -333.7058293 | D54: 0 | E54: 0 | F54: 0 | G54: 0 | H54: 0 | I54: 0 | J54: 0 | K54: 6.99693193 | L54: 10.13499181 | M54: -13.87500999 | N54: 0 | O54: =SUM(C54:N54) -> -330.4489156
B55: Block 3 | C55: =(C46/C$49)*C$51 -> -5510.972135 | D55: 0 | E55: 0 | F55: 0 | G55: 0 | H55: 0 | I55: 0 | J55: 0 | K55: 102.7324239 | L55: 153.6700958 | M55: -227.5108144 | N55: 0 | O55: =SUM(C55:N55) -> -5482.080429
B56: Block 4 | C56: -4358.698356 | D56: 0 | E56: 0 | F56: 0 | G56: 0 | H56: 0 | I56: 0 | J56: 0 | K56: 37.02674047 | L56: 60.12173226 | M56: -88.01857635 | N56: 0 | O56: =SUM(C56:N56) -> -4349.568459
B57: Block 5 | C57: -3422.917851 | D57: 0 | E57: 0 | F57: 0 | G57: 0 | H57: 0 | I57: 0 | J57: 0 | K57: 10.16510656 | L57: 40.03624247 | M57: -93.54107766 | N57: 0 | O57: =SUM(C57:N57) -> -3466.25758
C58: =SUM(C53:C57) -> -13960 | D58: =SUM(D53:D57) -> 0 | E58: 0 | F58: 0 | G58: 0 | H58: 0 | I58: 0 | J58: 0 | K58: 163.95 | L58: 274.176 | M58: -437.188 | N58: 0 | O58: =SUM(O53:O57) -> -13959.062
B60: Block 1 | C60: =C44+C53 -> 12666.29417 | D60: =D44+D53 -> 13500 | E60: 13000 | F60: 13000 | G60: 13000 | H60: 13000 | I60: 13000 | J60: 13000 | K60: 12061.6788 | L60: 11984.93827 | M60: 11790.36148 | N60: 549.354 | O60: =SUM(C60:N60) -> 140552.6267
B61: Block 2 | C61: =C45+C54 -> 12666.29417 | D61: 13500 | E61: 13000 | F61: 13000 | G61: 13000 | H61: 13000 | I61: 13000 | J61: 12871.62 | K61: 12006.99693 | L61: 11893.46833 | M61: 11486.12499 | N61: 1128.38 | O61: =SUM(C61:N61) -> 140552.8844
B62: Block 3 | C62: =C46+C55 -> 209177.0299 | D62: 220939.251 | E62: 214591.073 | F62: 203225.878 | G62: 196469.53 | H62: 188751.711 | I62: 175554.625 | J62: 164160.514 | K62: 176292.6824 | L62: 180332.6981 | M62: 188339.8752 | N62: 99625.127 | O62: =SUM(C62:N62) -> 2217459.995
B63: Block 4 | C63: =C47+C56 -> 165440.7886 | D63: 152300.909 | E63: 119887.975 | F63: 96279.283 | G63: 75927.445 | H63: 59132.903 | I63: 61849.366 | J63: 57527.41 | K63: 63539.27174 | L63: 70553.18173 | M63: 72864.26242 | N63: 101420.646 | O63: =SUM(C63:N63) -> 1096723.442
B64: Block 5 | C64: =C48+C57 -> 129921.8671 | D64: 96206.507 | E64: 63862.775 | F64: 50634.375 | G64: 28510.381 | H64: 7903.534 | I64: 22636.738 | J64: 6614.308 | K64: 17443.70311 | L64: 46982.74957 | M64: 77435.94492 | N64: 149105.921 | O64: =SUM(C64:N64) -> 697258.8038
C65: =SUM(C60:C64) -> 529872.274 | D65: 496446.667 | E65: 424341.823 | F65: 376139.536 | G65: 326907.356 | H65: 281788.148 | I65: 286040.729 | J65: 254173.852 | K65: 281344.333 | L65: 321747.036 | M65: 361916.569 | N65: 351829.428 | O65: 4292547.751
C66: =C65-C50 -> 0 | D66: 0 | E66: 0 | F66: 0 | G66: 0 | H66: 0 | I66: 0 | J66: 0 | K66: 0 | L66: 0 | M66: 0 | N66: 0 | O66: 0

Sheet Big Schedules
B1: Washington Gas Billing Determinants by Customer
Q2: 1st | R2: =Q3 -> 20000 | S2: =R3 -> 50000 | T2: =S3 -> 300000 | U2: =T3 -> 500000 | W2: Present | X2: Proposed
B3: ANNUAL USAGE, Sch 146 | O3: 12-mo ended | Q3: 20000 | R3: 50000 | S3: 300000 | T3: 500000 | U3: 99999999 | W3: Annual | X3: Annual | Y3: Present Base | Z3: Proposed Base
B4: Washington | C4: 2016-01-01 | D4: 2016-02-01 | E4: 2016-03-01 | F4: 2016-04-01 | G4: 2016-05-01 | H4: 2016-06-01 | I4: 2016-07-01 | J4: 2016-08-01 | K4: 2016-09-01 | L4: 2016-10-01 | M4: 2016-11-01 | N4: 2016-12-01 | O4: Total | Q4: thms/mo | R4: thms/mo | S4: thms/mo | T4: thms/mo | U4: thms/mo | W4: Minimum | X4: Minimum | Y4: Revenue | Z4: Revenue
A5: 1 | C5: 431908 | D5: 411425 | E5: 300178 | F5: 267490 | G5: 123005 | H5: 29280 | I5: 20801 | J5: 11702 | K5: 11761 | L5: 19731 | M5: 147520 | N5: 237184 | O5: =SUM(C5:N5) -> 2011985 | Q5: =Q$3*12-SUMPRODUCT(--($C5:$N5<=Q$3),Q$3-$C5:$N5) -> 223194 | R5: =R$3*12-SUM($Q5:Q5)-SUMPRODUCT(--($C5:$N5<=R$3),R$3-$C5:$N5) -> 220081 | S5: =S$3*12-SUM($Q5:R5)-SUMPRODUCT(--($C5:$N5<=S$3),S$3-$C5:$N5) -> 1325199 | T5: =T$3*12-SUM($Q5:S5)-SUMPRODUCT(--($C5:$N5<=T$3),T$3-$C5:$N5) -> 243511 | U5: =U$3*12-SUM($Q5:T5)-SUMPRODUCT(--($C5:$N5<=U$3),U$3-$C5:$N5) -> 0 | W5: =IF(O5<250000,(250000-O5)*'Yr 1 RD'!$E$54,0) -> 0 | X5: =IF(O5<250000,(250000-O5)*'Yr 1 RD'!$I$54,0) -> 0 | Y5: =Q5*'Yr 1 RD'!$D$49+'Big Schedules'!R5*'Yr 1 RD'!$D$50+'Big Schedules'!S5*'Yr 1 RD'!$D$51+'Big Schedules'!T5*'Yr 1 RD'!$D$52+'Big Schedules'!U5*'Yr 1 RD'!$D$53+'Yr 1 RD'!$D$47*12+W5 -> 172734.3071 | Z5: =Q5*'Yr 1 RD'!$I$49+'Big Schedules'!R5*'Yr 1 RD'!$I$50+'Big Schedules'!S5*'Yr 1 RD'!$I$51+'Big Schedules'!T5*'Yr 1 RD'!$I$52+'Big Schedules'!U5*'Yr 1 RD'!$I$53+'Yr 1 RD'!$I$47*12+X5 -> 167727.6577 | AA5: =Z5-Y5 -> -5006.64941 | AB5: =Z5/Y5-1 -> -0.0289846846
A6: 2 | C6: 27826 | D6: 24870 | E6: 25519 | F6: 28601 | G6: 25034 | H6: 26023 | I6: 25799 | J6: 22827 | K6: 25921 | L6: 23830 | M6: 24874 | N6: 25654 | O6: =SUM(C6:N6) -> 306778 | Q6: 240000 | R6: =R$3*12-SUM($Q6:Q6)-SUMPRODUCT(--($C6:$N6<=R$3),R$3-$C6:$N6) -> 66778 | S6: =S$3*12-SUM($Q6:R6)-SUMPRODUCT(--($C6:$N6<=S$3),S$3-$C6:$N6) -> 0 | T6: =T$3*12-SUM($Q6:S6)-SUMPRODUCT(--($C6:$N6<=T$3),T$3-$C6:$N6) -> 0 | U6: =U$3*12-SUM($Q6:T6)-SUMPRODUCT(--($C6:$N6<=U$3),U$3-$C6:$N6) -> 0 | W6: =IF(O6<250000,(250000-O6)*'Yr 1 RD'!$E$54,0) -> 0 | X6: =IF(O6<250000,(250000-O6)*'Yr 1 RD'!$I$54,0) -> 0 | Y6: =Q6*'Yr 1 RD'!$D$49+'Big Schedules'!R6*'Yr 1 RD'!$D$50+'Big Schedules'!S6*'Yr 1 RD'!$D$51+'Big Schedules'!T6*'Yr 1 RD'!$D$52+'Big Schedules'!U6*'Yr 1 RD'!$D$53+'Yr 1 RD'!$D$47*12+W6 -> 36268.1809 | Z6: =Q6*'Yr 1 RD'!$I$49+'Big Schedules'!R6*'Yr 1 RD'!$I$50+'Big Schedules'!S6*'Yr 1 RD'!$I$51+'Big Schedules'!T6*'Yr 1 RD'!$I$52+'Big Schedules'!U6*'Yr 1 RD'!$I$53+'Yr 1 RD'!$I$47*12+X6 -> 35612.93138 | AA6: =Z6-Y6 -> -655.24952 | AB6: =Z6/Y6-1 -> -0.01806678757
A7: 3 | C7: 14381 | D7: 10434 | E7: 13531 | F7: 17747 | G7: 14025 | H7: 13443 | I7: 14815 | J7: 10215 | K7: 11475 | L7: 15044 | M7: 12761 | N7: 13049 | O7: 160920 | Q7: 160920 | R7: =R$3*12-SUM($Q7:Q7)-SUMPRODUCT(--($C7:$N7<=R$3),R$3-$C7:$N7) -> 0 | S7: =S$3*12-SUM($Q7:R7)-SUMPRODUCT(--($C7:$N7<=S$3),S$3-$C7:$N7) -> 0 | T7: =T$3*12-SUM($Q7:S7)-SUMPRODUCT(--($C7:$N7<=T$3),T$3-$C7:$N7) -> 0 | U7: =U$3*12-SUM($Q7:T7)-SUMPRODUCT(--($C7:$N7<=U$3),U$3-$C7:$N7) -> 0 | W7: =IF(O7<250000,(250000-O7)*'Yr 1 RD'!$E$54,0) -> 7932.574 | X7: =IF(O7<250000,(250000-O7)*'Yr 1 RD'!$I$54,0) -> 7932.574 | Y7: =Q7*'Yr 1 RD'!$D$49+'Big Schedules'!R7*'Yr 1 RD'!$D$50+'Big Schedules'!S7*'Yr 1 RD'!$D$51+'Big Schedules'!T7*'Yr 1 RD'!$D$52+'Big Schedules'!U7*'Yr 1 RD'!$D$53+'Yr 1 RD'!$D$47*12+W7 -> 30339.0568 | Z7: =Q7*'Yr 1 RD'!$I$49+'Big Schedules'!R7*'Yr 1 RD'!$I$50+'Big Schedules'!S7*'Yr 1 RD'!$I$51+'Big Schedules'!T7*'Yr 1 RD'!$I$52+'Big Schedules'!U7*'Yr 1 RD'!$I$53+'Yr 1 RD'!$I$47*12+X7 -> 30125.722 | AA7: -213.3348 | AB7: -0.007031688605
A8: 4 | C8: 19386 | D8: 33497 | E8: 33411 | F8: 29733 | G8: 29013 | H8: 28805 | I8: 25148 | J8: 21759 | K8: 28922 | L8: 26397 | M8: 31134 | N8: 29530 | O8: 336735 | Q8: 239386 | R8: =R$3*12-SUM($Q8:Q8)-SUMPRODUCT(--($C8:$N8<=R$3),R$3-$C8:$N8) -> 97349 | S8: =S$3*12-SUM($Q8:R8)-SUMPRODUCT(--($C8:$N8<=S$3),S$3-$C8:$N8) -> 0 | T8: =T$3*12-SUM($Q8:S8)-SUMPRODUCT(--($C8:$N8<=T$3),T$3-$C8:$N8) -> 0 | U8: =U$3*12-SUM($Q8:T8)-SUMPRODUCT(--($C8:$N8<=U$3),U$3-$C8:$N8) -> 0 | W8: =IF(O8<250000,(250000-O8)*'Yr 1 RD'!$E$54,0) -> 0 | X8: =IF(O8<250000,(250000-O8)*'Yr 1 RD'!$I$54,0) -> 0 | Y8: =Q8*'Yr 1 RD'!$D$49+'Big Schedules'!R8*'Yr 1 RD'!$D$50+'Big Schedules'!S8*'Yr 1 RD'!$D$51+'Big Schedules'!T8*'Yr 1 RD'!$D$52+'Big Schedules'!U8*'Yr 1 RD'!$D$53+'Yr 1 RD'!$D$47*12+W8 -> 38929.07319 | Z8: =Q8*'Yr 1 RD'!$I$49+'Big Schedules'!R8*'Yr 1 RD'!$I$50+'Big Schedules'!S8*'Yr 1 RD'!$I$51+'Big Schedules'!T8*'Yr 1 RD'!$I$52+'Big Schedules'!U8*'Yr 1 RD'!$I$53+'Yr 1 RD'!$I$47*12+X8 -> 38188.96069 | AA8: -740.1125 | AB8: -0.01901181917
A9: 5 | C9: 54142 | D9: 52092 | E9: 49226 | F9: 43519 | G9: 35012 | H9: 36777 | I9: 30839 | J9: 33937 | K9: 25945 | L9: 25885 | M9: 36793 | N9: 40214 | O9: 464381 | Q9: 240000 | R9: =R$3*12-SUM($Q9:Q9)-SUMPRODUCT(--($C9:$N9<=R$3),R$3-$C9:$N9) -> 218147 | S9: =S$3*12-SUM($Q9:R9)-SUMPRODUCT(--($C9:$N9<=S$3),S$3-$C9:$N9) -> 6234 | T9: =T$3*12-SUM($Q9:S9)-SUMPRODUCT(--($C9:$N9<=T$3),T$3-$C9:$N9) -> 0 | U9: =U$3*12-SUM($Q9:T9)-SUMPRODUCT(--($C9:$N9<=U$3),U$3-$C9:$N9) -> 0 | W9: =IF(O9<250000,(250000-O9)*'Yr 1 RD'!$E$54,0) -> 0 | X9: =IF(O9<250000,(250000-O9)*'Yr 1 RD'!$I$54,0) -> 0 | Y9: =Q9*'Yr 1 RD'!$D$49+'Big Schedules'!R9*'Yr 1 RD'!$D$50+'Big Schedules'!S9*'Yr 1 RD'!$D$51+'Big Schedules'!T9*'Yr 1 RD'!$D$52+'Big Schedules'!U9*'Yr 1 RD'!$D$53+'Yr 1 RD'!$D$47*12+W9 -> 50248.18055 | Z9: =Q9*'Yr 1 RD'!$I$49+'Big Schedules'!R9*'Yr 1 RD'!$I$50+'Big Schedules'!S9*'Yr 1 RD'!$I$51+'Big Schedules'!T9*'Yr 1 RD'!$I$52+'Big Schedules'!U9*'Yr 1 RD'!$I$53+'Yr 1 RD'!$I$47*12+X9 -> 49147.08403 | AA9: -1101.09652 | AB9: -0.02191316199
A10: 6 | C10: 25996 | D10: 26114 | E10: 31668 | F10: 36452 | G10: 36643 | H10: 31964 | I10: 30418 | J10: 21612 | K10: 28414 | L10: 28454 | M10: 33786 | N10: 28138 | O10: 359659 | Q10: 240000 | R10: =R$3*12-SUM($Q10:Q10)-SUMPRODUCT(--($C10:$N10<=R$3),R$3-$C10:$N10) -> 119659 | S10: =S$3*12-SUM($Q10:R10)-SUMPRODUCT(--($C10:$N10<=S$3),S$3-$C10:$N10) -> 0 | T10: =T$3*12-SUM($Q10:S10)-SUMPRODUCT(--($C10:$N10<=T$3),T$3-$C10:$N10) -> 0 | U10: =U$3*12-SUM($Q10:T10)-SUMPRODUCT(--($C10:$N10<=U$3),U$3-$C10:$N10) -> 0 | W10: =IF(O10<250000,(250000-O10)*'Yr 1 RD'!$E$54,0) -> 0 | X10: =IF(O10<250000,(250000-O10)*'Yr 1 RD'!$I$54,0) -> 0 | Y10: =Q10*'Yr 1 RD'!$D$49+'Big Schedules'!R10*'Yr 1 RD'!$D$50+'Big Schedules'!S10*'Yr 1 RD'!$D$51+'Big Schedules'!T10*'Yr 1 RD'!$D$52+'Big Schedules'!U10*'Yr 1 RD'!$D$53+'Yr 1 RD'!$D$47*12+W10 -> 40977.23395 | Z10: =Q10*'Yr 1 RD'!$I$49+'Big Schedules'!R10*'Yr 1 RD'!$I$50+'Big Schedules'!S10*'Yr 1 RD'!$I$51+'Big Schedules'!T10*'Yr 1 RD'!$I$52+'Big Schedules'!U10*'Yr 1 RD'!$I$53+'Yr 1 RD'!$I$47*12+X10 -> 40171.80239 | AA10: -805.43156 | AB10: -0.01965558634
A11: 7 | C11: 69869 | D11: 67072 | E11: 51609 | F11: 45622 | G11: 20296 | H11: 15106 | I11: 9523 | J11: 5830 | K11: 5704 | L11: 11129 | M11: 30600 | N11: 39140 | O11: 371500 | Q11: 187292 | R11: =R$3*12-SUM($Q11:Q11)-SUMPRODUCT(--($C11:$N11<=R$3),R$3-$C11:$N11) -> 145658 | S11: =S$3*12-SUM($Q11:R11)-SUMPRODUCT(--($C11:$N11<=S$3),S$3-$C11:$N11) -> 38550 | T11: =T$3*12-SUM($Q11:S11)-SUMPRODUCT(--($C11:$N11<=T$3),T$3-$C11:$N11) -> 0 | U11: =U$3*12-SUM($Q11:T11)-SUMPRODUCT(--($C11:$N11<=U$3),U$3-$C11:$N11) -> 0 | W11: =IF(O11<250000,(250000-O11)*'Yr 1 RD'!$E$54,0) -> 0 | X11: =IF(O11<250000,(250000-O11)*'Yr 1 RD'!$I$54,0) -> 0 | Y11: =Q11*'Yr 1 RD'!$D$49+'Big Schedules'!R11*'Yr 1 RD'!$D$50+'Big Schedules'!S11*'Yr 1 RD'!$D$51+'Big Schedules'!T11*'Yr 1 RD'!$D$52+'Big Schedules'!U11*'Yr 1 RD'!$D$53+'Yr 1 RD'!$D$47*12+W11 -> 41112.46618 | Z11: =Q11*'Yr 1 RD'!$I$49+'Big Schedules'!R11*'Yr 1 RD'!$I$50+'Big Schedules'!S11*'Yr 1 RD'!$I$51+'Big Schedules'!T11*'Yr 1 RD'!$I$52+'Big Schedules'!U11*'Yr 1 RD'!$I$53+'Yr 1 RD'!$I$47*12+X11 -> 40302.64798 | AA11: -809.8182 | AB11: -0.01969763128
A12: 8 | C12: 48391 | D12: 46172 | E12: 36365 | F12: 32371 | G12: 13844 | H12: 9915 | I12: 6181 | J12: 4105 | K12: 4541 | L12: 10874 | M12: 24185 | N12: 30233 | O12: 267177 | Q12: 169460 | R12: =R$3*12-SUM($Q12:Q12)-SUMPRODUCT(--($C12:$N12<=R$3),R$3-$C12:$N12) -> 97717 | S12: =S$3*12-SUM($Q12:R12)-SUMPRODUCT(--($C12:$N12<=S$3),S$3-$C12:$N12) -> 0 | T12: =T$3*12-SUM($Q12:S12)-SUMPRODUCT(--($C12:$N12<=T$3),T$3-$C12:$N12) -> 0 | U12: =U$3*12-SUM($Q12:T12)-SUMPRODUCT(--($C12:$N12<=U$3),U$3-$C12:$N12) -> 0 | W12: =IF(O12<250000,(250000-O12)*'Yr 1 RD'!$E$54,0) -> 0 | X12: =IF(O12<250000,(250000-O12)*'Yr 1 RD'!$I$54,0) -> 0 | Y12: =Q12*'Yr 1 RD'!$D$49+'Big Schedules'!R12*'Yr 1 RD'!$D$50+'Big Schedules'!S12*'Yr 1 RD'!$D$51+'Big Schedules'!T12*'Yr 1 RD'!$D$52+'Big Schedules'!U12*'Yr 1 RD'!$D$53+'Yr 1 RD'!$D$47*12+W12 -> 31962.95025 | Z12: =Q12*'Yr 1 RD'!$I$49+'Big Schedules'!R12*'Yr 1 RD'!$I$50+'Big Schedules'!S12*'Yr 1 RD'!$I$51+'Big Schedules'!T12*'Yr 1 RD'!$I$52+'Big Schedules'!U12*'Yr 1 RD'!$I$53+'Yr 1 RD'!$I$47*12+X12 -> 31444.85657 | AA12: -518.09368 | AB12: -0.01620919458
A13: 9 | C13: 39533 | D13: 41194 | E13: 43790 | F13: 40031 | G13: 18719 | H13: 10587 | I13: 5057 | J13: 3873 | K13: 5502 | L13: 15125 | M13: 25655 | N13: 31313 | O13: 280379 | Q13: 178863 | R13: =R$3*12-SUM($Q13:Q13)-SUMPRODUCT(--($C13:$N13<=R$3),R$3-$C13:$N13) -> 101516 | S13: =S$3*12-SUM($Q13:R13)-SUMPRODUCT(--($C13:$N13<=S$3),S$3-$C13:$N13) -> 0 | T13: =T$3*12-SUM($Q13:S13)-SUMPRODUCT(--($C13:$N13<=T$3),T$3-$C13:$N13) -> 0 | U13: =U$3*12-SUM($Q13:T13)-SUMPRODUCT(--($C13:$N13<=U$3),U$3-$C13:$N13) -> 0 | W13: =IF(O13<250000,(250000-O13)*'Yr 1 RD'!$E$54,0) -> 0 | X13: =IF(O13<250000,(250000-O13)*'Yr 1 RD'!$I$54,0) -> 0 | Y13: =Q13*'Yr 1 RD'!$D$49+'Big Schedules'!R13*'Yr 1 RD'!$D$50+'Big Schedules'!S13*'Yr 1 RD'!$D$51+'Big Schedules'!T13*'Yr 1 RD'!$D$52+'Big Schedules'!U13*'Yr 1 RD'!$D$53+'Yr 1 RD'!$D$47*12+W13 -> 33242.39747 | Z13: =Q13*'Yr 1 RD'!$I$49+'Big Schedules'!R13*'Yr 1 RD'!$I$50+'Big Schedules'!S13*'Yr 1 RD'!$I$51+'Big Schedules'!T13*'Yr 1 RD'!$I$52+'Big Schedules'!U13*'Yr 1 RD'!$I$53+'Yr 1 RD'!$I$47*12+X13 -> 32683.51906 | AA13: -558.87841 | AB13: -0.0168122173
A14: 10 | C14: 131234 | D14: 126568 | E14: 99931 | F14: 97261 | G14: 79097 | H14: 78630 | I14: 70819 | J14: 72772 | K14: 70534 | L14: 77818 | M14: 83851 | N14: 89551 | O14: 1078066 | Q14: 240000 | R14: =R$3*12-SUM($Q14:Q14)-SUMPRODUCT(--($C14:$N14<=R$3),R$3-$C14:$N14) -> 360000 | S14: =S$3*12-SUM($Q14:R14)-SUMPRODUCT(--($C14:$N14<=S$3),S$3-$C14:$N14) -> 478066 | T14: =T$3*12-SUM($Q14:S14)-SUMPRODUCT(--($C14:$N14<=T$3),T$3-$C14:$N14) -> 0 | U14: =U$3*12-SUM($Q14:T14)-SUMPRODUCT(--($C14:$N14<=U$3),U$3-$C14:$N14) -> 0 | W14: =IF(O14<250000,(250000-O14)*'Yr 1 RD'!$E$54,0) -> 0 | X14: =IF(O14<250000,(250000-O14)*'Yr 1 RD'!$I$54,0) -> 0 | Y14: =Q14*'Yr 1 RD'!$D$49+'Big Schedules'!R14*'Yr 1 RD'!$D$50+'Big Schedules'!S14*'Yr 1 RD'!$D$51+'Big Schedules'!T14*'Yr 1 RD'!$D$52+'Big Schedules'!U14*'Yr 1 RD'!$D$53+'Yr 1 RD'!$D$47*12+W14 -> 100768.2998 | Z14: =Q14*'Yr 1 RD'!$I$49+'Big Schedules'!R14*'Yr 1 RD'!$I$50+'Big Schedules'!S14*'Yr 1 RD'!$I$51+'Big Schedules'!T14*'Yr 1 RD'!$I$52+'Big Schedules'!U14*'Yr 1 RD'!$I$53+'Yr 1 RD'!$I$47*12+X14 -> 98056.45084 | AA14: -2711.84896 | AB14: -0.02691172686
A15: 11 | C15: 55493 | D15: 55802 | E15: 46324 | F15: 45288 | G15: 29376 | H15: 20255 | I15: 12963 | J15: 11810 | K15: 12013 | L15: 17741 | M15: 35590 | N15: 39460 | O15: 382115 | Q15: 214527 | R15: =R$3*12-SUM($Q15:Q15)-SUMPRODUCT(--($C15:$N15<=R$3),R$3-$C15:$N15) -> 156293 | S15: =S$3*12-SUM($Q15:R15)-SUMPRODUCT(--($C15:$N15<=S$3),S$3-$C15:$N15) -> 11295 | T15: =T$3*12-SUM($Q15:S15)-SUMPRODUCT(--($C15:$N15<=T$3),T$3-$C15:$N15) -> 0 | U15: =U$3*12-SUM($Q15:T15)-SUMPRODUCT(--($C15:$N15<=U$3),U$3-$C15:$N15) -> 0 | W15: =IF(O15<250000,(250000-O15)*'Yr 1 RD'!$E$54,0) -> 0 | X15: =IF(O15<250000,(250000-O15)*'Yr 1 RD'!$I$54,0) -> 0 | Y15: =Q15*'Yr 1 RD'!$D$49+'Big Schedules'!R15*'Yr 1 RD'!$D$50+'Big Schedules'!S15*'Yr 1 RD'!$D$51+'Big Schedules'!T15*'Yr 1 RD'!$D$52+'Big Schedules'!U15*'Yr 1 RD'!$D$53+'Yr 1 RD'!$D$47*12+W15 -> 42596.88758 | Z15: =Q15*'Yr 1 RD'!$I$49+'Big Schedules'!R15*'Yr 1 RD'!$I$50+'Big Schedules'!S15*'Yr 1 RD'!$I$51+'Big Schedules'!T15*'Yr 1 RD'!$I$52+'Big Schedules'!U15*'Yr 1 RD'!$I$53+'Yr 1 RD'!$I$47*12+X15 -> 41739.75913 | AA15: -857.12845 | AB15: -0.02012185628
A16: 12 | C16: 344709 | D16: 345354 | E16: 269068 | F16: 244808 | G16: 151970 | H16: 141381 | I16: 121329 | J16: 112854 | K16: 106203 | L16: 121692 | M16: 203064 | N16: 235403 | O16: 2397835 | Q16: 240000 | R16: =R$3*12-SUM($Q16:Q16)-SUMPRODUCT(--($C16:$N16<=R$3),R$3-$C16:$N16) -> 360000 | S16: =S$3*12-SUM($Q16:R16)-SUMPRODUCT(--($C16:$N16<=S$3),S$3-$C16:$N16) -> 1707772 | T16: =T$3*12-SUM($Q16:S16)-SUMPRODUCT(--($C16:$N16<=T$3),T$3-$C16:$N16) -> 90063 | U16: =U$3*12-SUM($Q16:T16)-SUMPRODUCT(--($C16:$N16<=U$3),U$3-$C16:$N16) -> 0 | W16: =IF(O16<250000,(250000-O16)*'Yr 1 RD'!$E$54,0) -> 0 | X16: =IF(O16<250000,(250000-O16)*'Yr 1 RD'!$I$54,0) -> 0 | Y16: =Q16*'Yr 1 RD'!$D$49+'Big Schedules'!R16*'Yr 1 RD'!$D$50+'Big Schedules'!S16*'Yr 1 RD'!$D$51+'Big Schedules'!T16*'Yr 1 RD'!$D$52+'Big Schedules'!U16*'Yr 1 RD'!$D$53+'Yr 1 RD'!$D$47*12+W16 -> 206201.77 | Z16: =Q16*'Yr 1 RD'!$I$49+'Big Schedules'!R16*'Yr 1 RD'!$I$50+'Big Schedules'!S16*'Yr 1 RD'!$I$51+'Big Schedules'!T16*'Yr 1 RD'!$I$52+'Big Schedules'!U16*'Yr 1 RD'!$I$53+'Yr 1 RD'!$I$47*12+X16 -> 200128.4244 | AA16: -6073.34563 | AB16: -0.02945341173
A17: 13 | C17: 41314 | D17: 45329 | E17: 38091 | F17: 39732 | G17: 35608 | H17: 35588 | I17: 33642 | J17: 32836 | K17: 35373 | L17: 34203 | M17: 36588 | N17: 39046 | O17: 447350 | Q17: 240000 | R17: =R$3*12-SUM($Q17:Q17)-SUMPRODUCT(--($C17:$N17<=R$3),R$3-$C17:$N17) -> 207350 | S17: =S$3*12-SUM($Q17:R17)-SUMPRODUCT(--($C17:$N17<=S$3),S$3-$C17:$N17) -> 0 | T17: =T$3*12-SUM($Q17:S17)-SUMPRODUCT(--($C17:$N17<=T$3),T$3-$C17:$N17) -> 0 | U17: =U$3*12-SUM($Q17:T17)-SUMPRODUCT(--($C17:$N17<=U$3),U$3-$C17:$N17) -> 0 | W17: =IF(O17<250000,(250000-O17)*'Yr 1 RD'!$E$54,0) -> 0 | X17: =IF(O17<250000,(250000-O17)*'Yr 1 RD'!$I$54,0) -> 0 | Y17: =Q17*'Yr 1 RD'!$D$49+'Big Schedules'!R17*'Yr 1 RD'!$D$50+'Big Schedules'!S17*'Yr 1 RD'!$D$51+'Big Schedules'!T17*'Yr 1 RD'!$D$52+'Big Schedules'!U17*'Yr 1 RD'!$D$53+'Yr 1 RD'!$D$47*12+W17 -> 48786.1175 | Z17: =Q17*'Yr 1 RD'!$I$49+'Big Schedules'!R17*'Yr 1 RD'!$I$50+'Big Schedules'!S17*'Yr 1 RD'!$I$51+'Big Schedules'!T17*'Yr 1 RD'!$I$52+'Big Schedules'!U17*'Yr 1 RD'!$I$53+'Yr 1 RD'!$I$47*12+X17 -> 47731.6435 | AA17: -1054.474 | AB17: -0.02161422253
A18: 14 | C18: 100742 | D18: 101230 | E18: 73358 | F18: 65648 | G18: 33829 | H18: 16783 | I18: 8016 | J18: 6167 | K18: 6630 | L18: 20893 | M18: 52047 | N18: 65297 | O18: 550640 | Q18: 197596 | R18: =R$3*12-SUM($Q18:Q18)-SUMPRODUCT(--($C18:$N18<=R$3),R$3-$C18:$N18) -> 194722 | S18: =S$3*12-SUM($Q18:R18)-SUMPRODUCT(--($C18:$N18<=S$3),S$3-$C18:$N18) -> 158322 | T18: =T$3*12-SUM($Q18:S18)-SUMPRODUCT(--($C18:$N18<=T$3),T$3-$C18:$N18) -> 0 | U18: =U$3*12-SUM($Q18:T18)-SUMPRODUCT(--($C18:$N18<=U$3),U$3-$C18:$N18) -> 0 | W18: =IF(O18<250000,(250000-O18)*'Yr 1 RD'!$E$54,0) -> 0 | X18: =IF(O18<250000,(250000-O18)*'Yr 1 RD'!$I$54,0) -> 0 | Y18: =Q18*'Yr 1 RD'!$D$49+'Big Schedules'!R18*'Yr 1 RD'!$D$50+'Big Schedules'!S18*'Yr 1 RD'!$D$51+'Big Schedules'!T18*'Yr 1 RD'!$D$52+'Big Schedules'!U18*'Yr 1 RD'!$D$53+'Yr 1 RD'!$D$47*12+W18 -> 56130.63434 | Z18: =Q18*'Yr 1 RD'!$I$49+'Big Schedules'!R18*'Yr 1 RD'!$I$50+'Big Schedules'!S18*'Yr 1 RD'!$I$51+'Big Schedules'!T18*'Yr 1 RD'!$I$52+'Big Schedules'!U18*'Yr 1 RD'!$I$53+'Yr 1 RD'!$I$47*12+X18 -> 54841.9883 | AA18: -1288.64604 | AB18: -0.02295798106
A19: 15 | C19: 675652 | D19: 700520 | E19: 676206 | F19: 667020 | G19: 710563 | H19: 721006 | I19: 699888 | J19: 654277 | K19: 624954 | L19: 513447 | M19: 611362 | N19: 626624 | O19: 7881519 | Q19: 240000 | R19: =R$3*12-SUM($Q19:Q19)-SUMPRODUCT(--($C19:$N19<=R$3),R$3-$C19:$N19) -> 360000 | S19: =S$3*12-SUM($Q19:R19)-SUMPRODUCT(--($C19:$N19<=S$3),S$3-$C19:$N19) -> 3000000 | T19: =T$3*12-SUM($Q19:S19)-SUMPRODUCT(--($C19:$N19<=T$3),T$3-$C19:$N19) -> 2400000 | U19: =U$3*12-SUM($Q19:T19)-SUMPRODUCT(--($C19:$N19<=U$3),U$3-$C19:$N19) -> 1881519 | W19: =IF(O19<250000,(250000-O19)*'Yr 1 RD'!$E$54,0) -> 0 | X19: =IF(O19<250000,(250000-O19)*'Yr 1 RD'!$I$54,0) -> 0 | Y19: =Q19*'Yr 1 RD'!$D$49+'Big Schedules'!R19*'Yr 1 RD'!$D$50+'Big Schedules'!S19*'Yr 1 RD'!$D$51+'Big Schedules'!T19*'Yr 1 RD'!$D$52+'Big Schedules'!U19*'Yr 1 RD'!$D$53+'Yr 1 RD'!$D$47*12+W19 -> 586511.1754 | Z19: =Q19*'Yr 1 RD'!$I$49+'Big Schedules'!R19*'Yr 1 RD'!$I$50+'Big Schedules'!S19*'Yr 1 RD'!$I$51+'Big Schedules'!T19*'Yr 1 RD'!$I$52+'Big Schedules'!U19*'Yr 1 RD'!$I$53+'Yr 1 RD'!$I$47*12+X19 -> 568306.0716 | AA19: -18205.10382 | AB19: -0.03103965378
A20: 16 | C20: 44792 | D20: 39914 | E20: 34764 | F20: 36526 | G20: 33777 | H20: 18580 | I20: 47345 | J20: 30809 | K20: 39863 | L20: 27897 | M20: 38298 | N20: 38893 | O20: =SUM(C20:N20) -> 431458 | Q20: 238580 | R20: =R$3*12-SUM($Q20:Q20)-SUMPRODUCT(--($C20:$N20<=R$3),R$3-$C20:$N20) -> 192878 | S20: =S$3*12-SUM($Q20:R20)-SUMPRODUCT(--($C20:$N20<=S$3),S$3-$C20:$N20) -> 0 | T20: =T$3*12-SUM($Q20:S20)-SUMPRODUCT(--($C20:$N20<=T$3),T$3-$C20:$N20) -> 0 | U20: =U$3*12-SUM($Q20:T20)-SUMPRODUCT(--($C20:$N20<=U$3),U$3-$C20:$N20) -> 0 | W20: =IF(O20<250000,(250000-O20)*'Yr 1 RD'!$E$54,0) -> 0 | X20: =IF(O20<250000,(250000-O20)*'Yr 1 RD'!$I$54,0) -> 0 | Y20: =Q20*'Yr 1 RD'!$D$49+'Big Schedules'!R20*'Yr 1 RD'!$D$50+'Big Schedules'!S20*'Yr 1 RD'!$D$51+'Big Schedules'!T20*'Yr 1 RD'!$D$52+'Big Schedules'!U20*'Yr 1 RD'!$D$53+'Yr 1 RD'!$D$47*12+W20 -> 47355.2581 | Z20: =Q20*'Yr 1 RD'!$I$49+'Big Schedules'!R20*'Yr 1 RD'!$I$50+'Big Schedules'!S20*'Yr 1 RD'!$I$51+'Big Schedules'!T20*'Yr 1 RD'!$I$52+'Big Schedules'!U20*'Yr 1 RD'!$I$53+'Yr 1 RD'!$I$47*12+X20 -> 46346.41438 | AA20: -1008.84372 | AB20: =Z20/Y20-1 -> -0.02130373184
A21: 17 | C21: 70555 | D21: 68900 | E21: 55526 | F21: 56054 | G21: 48251 | H21: 47218 | I21: 44402 | J21: 44209 | K21: 40113 | L21: 45631 | M21: 56135 | N21: 59055 | O21: 636049 | Q21: 240000 | R21: =R$3*12-SUM($Q21:Q21)-SUMPRODUCT(--($C21:$N21<=R$3),R$3-$C21:$N21) -> 329824 | S21: =S$3*12-SUM($Q21:R21)-SUMPRODUCT(--($C21:$N21<=S$3),S$3-$C21:$N21) -> 66225 | T21: =T$3*12-SUM($Q21:S21)-SUMPRODUCT(--($C21:$N21<=T$3),T$3-$C21:$N21) -> 0 | U21: =U$3*12-SUM($Q21:T21)-SUMPRODUCT(--($C21:$N21<=U$3),U$3-$C21:$N21) -> 0 | W21: =IF(O21<250000,(250000-O21)*'Yr 1 RD'!$E$54,0) -> 0 | X21: =IF(O21<250000,(250000-O21)*'Yr 1 RD'!$I$54,0) -> 0 | Y21: =Q21*'Yr 1 RD'!$D$49+'Big Schedules'!R21*'Yr 1 RD'!$D$50+'Big Schedules'!S21*'Yr 1 RD'!$D$51+'Big Schedules'!T21*'Yr 1 RD'!$D$52+'Big Schedules'!U21*'Yr 1 RD'!$D$53+'Yr 1 RD'!$D$47*12+W21 -> 65010.2947 | Z21: =Q21*'Yr 1 RD'!$I$49+'Big Schedules'!R21*'Yr 1 RD'!$I$50+'Big Schedules'!S21*'Yr 1 RD'!$I$51+'Big Schedules'!T21*'Yr 1 RD'!$I$52+'Big Schedules'!U21*'Yr 1 RD'!$I$53+'Yr 1 RD'!$I$47*12+X21 -> 63438.45854 | AA21: -1571.83616 | AB21: -0.02417826542
A22: 18 | C22: 53975 | D22: 55076 | E22: 51979 | F22: 51813 | G22: 42677 | H22: 42869 | I22: 40805 | J22: 34736 | K22: 41706 | L22: 40178 | M22: 49147 | N22: 50262 | O22: 555223 | Q22: 240000 | R22: =R$3*12-SUM($Q22:Q22)-SUMPRODUCT(--($C22:$N22<=R$3),R$3-$C22:$N22) -> 302118 | S22: =S$3*12-SUM($Q22:R22)-SUMPRODUCT(--($C22:$N22<=S$3),S$3-$C22:$N22) -> 13105 | T22: =T$3*12-SUM($Q22:S22)-SUMPRODUCT(--($C22:$N22<=T$3),T$3-$C22:$N22) -> 0 | U22: =U$3*12-SUM($Q22:T22)-SUMPRODUCT(--($C22:$N22<=U$3),U$3-$C22:$N22) -> 0 | W22: =IF(O22<250000,(250000-O22)*'Yr 1 RD'!$E$54,0) -> 0 | X22: =IF(O22<250000,(250000-O22)*'Yr 1 RD'!$I$54,0) -> 0 | Y22: =Q22*'Yr 1 RD'!$D$49+'Big Schedules'!R22*'Yr 1 RD'!$D$50+'Big Schedules'!S22*'Yr 1 RD'!$D$51+'Big Schedules'!T22*'Yr 1 RD'!$D$52+'Big Schedules'!U22*'Yr 1 RD'!$D$53+'Yr 1 RD'!$D$47*12+W22 -> 58277.5394 | Z22: =Q22*'Yr 1 RD'!$I$49+'Big Schedules'!R22*'Yr 1 RD'!$I$50+'Big Schedules'!S22*'Yr 1 RD'!$I$51+'Big Schedules'!T22*'Yr 1 RD'!$I$52+'Big Schedules'!U22*'Yr 1 RD'!$I$53+'Yr 1 RD'!$I$47*12+X22 -> 56920.37548 | AA22: -1357.16392 | AB22: -0.02328794136
A23: 19 | C23: 3 | D23: 3 | E23: 3 | F23: 12 | G23: 2761 | H23: 18339 | I23: 36964 | J23: 18279 | K23: 39718 | L23: 47406 | M23: 16054 | N23: 11552 | O23: 191094 | Q23: 127006 | R23: =R$3*12-SUM($Q23:Q23)-SUMPRODUCT(--($C23:$N23<=R$3),R$3-$C23:$N23) -> 64088 | S23: =S$3*12-SUM($Q23:R23)-SUMPRODUCT(--($C23:$N23<=S$3),S$3-$C23:$N23) -> 0 | T23: =T$3*12-SUM($Q23:S23)-SUMPRODUCT(--($C23:$N23<=T$3),T$3-$C23:$N23) -> 0 | U23: =U$3*12-SUM($Q23:T23)-SUMPRODUCT(--($C23:$N23<=U$3),U$3-$C23:$N23) -> 0 | W23: =IF(O23<250000,(250000-O23)*'Yr 1 RD'!$E$54,0) -> 5245.5793 | X23: =IF(O23<250000,(250000-O23)*'Yr 1 RD'!$I$54,0) -> 5245.5793 | Y23: =Q23*'Yr 1 RD'!$D$49+'Big Schedules'!R23*'Yr 1 RD'!$D$50+'Big Schedules'!S23*'Yr 1 RD'!$D$51+'Big Schedules'!T23*'Yr 1 RD'!$D$52+'Big Schedules'!U23*'Yr 1 RD'!$D$53+'Yr 1 RD'!$D$47*12+W23 -> 29964.64624 | Z23: =Q23*'Yr 1 RD'!$I$49+'Big Schedules'!R23*'Yr 1 RD'!$I$50+'Big Schedules'!S23*'Yr 1 RD'!$I$51+'Big Schedules'!T23*'Yr 1 RD'!$I$52+'Big Schedules'!U23*'Yr 1 RD'!$I$53+'Yr 1 RD'!$I$47*12+X23 -> 29677.48718 | AA23: -287.15906 | AB23: -0.009583262145
A24: 20 | C24: 0 | D24: 0 | E24: 0 | F24: 242 | G24: 19790 | H24: 32975 | I24: 19045 | J24: 27685 | K24: 43355 | L24: 42423 | M24: 67253 | N24: 31697 | O24: 284465 | Q24: 159077 | R24: =R$3*12-SUM($Q24:Q24)-SUMPRODUCT(--($C24:$N24<=R$3),R$3-$C24:$N24) -> 108135 | S24: =S$3*12-SUM($Q24:R24)-SUMPRODUCT(--($C24:$N24<=S$3),S$3-$C24:$N24) -> 17253 | T24: =T$3*12-SUM($Q24:S24)-SUMPRODUCT(--($C24:$N24<=T$3),T$3-$C24:$N24) -> 0 | U24: =U$3*12-SUM($Q24:T24)-SUMPRODUCT(--($C24:$N24<=U$3),U$3-$C24:$N24) -> 0 | W24: =IF(O24<250000,(250000-O24)*'Yr 1 RD'!$E$54,0) -> 0 | X24: =IF(O24<250000,(250000-O24)*'Yr 1 RD'!$I$54,0) -> 0 | Y24: =Q24*'Yr 1 RD'!$D$49+'Big Schedules'!R24*'Yr 1 RD'!$D$50+'Big Schedules'!S24*'Yr 1 RD'!$D$51+'Big Schedules'!T24*'Yr 1 RD'!$D$52+'Big Schedules'!U24*'Yr 1 RD'!$D$53+'Yr 1 RD'!$D$47*12+W24 -> 33236.85458 | Z24: =Q24*'Yr 1 RD'!$I$49+'Big Schedules'!R24*'Yr 1 RD'!$I$50+'Big Schedules'!S24*'Yr 1 RD'!$I$51+'Big Schedules'!T24*'Yr 1 RD'!$I$52+'Big Schedules'!U24*'Yr 1 RD'!$I$53+'Yr 1 RD'!$I$47*12+X24 -> 32678.12787 | AA24: -558.72671 | AB24: -0.01681045686
A25: 21 | C25: 0 | D25: 0 | E25: 0 | F25: 0 | G25: 0 | H25: 133038 | I25: 86890 | J25: 0 | K25: 0 | L25: 0 | M25: 0 | N25: 0 | O25: 219928 | Q25: 40000 | R25: =R$3*12-SUM($Q25:Q25)-SUMPRODUCT(--($C25:$N25<=R$3),R$3-$C25:$N25) -> 60000 | S25: =S$3*12-SUM($Q25:R25)-SUMPRODUCT(--($C25:$N25<=S$3),S$3-$C25:$N25) -> 119928 | T25: =T$3*12-SUM($Q25:S25)-SUMPRODUCT(--($C25:$N25<=T$3),T$3-$C25:$N25) -> 0 | U25: =U$3*12-SUM($Q25:T25)-SUMPRODUCT(--($C25:$N25<=U$3),U$3-$C25:$N25) -> 0 | W25: =IF(O25<250000,(250000-O25)*'Yr 1 RD'!$E$54,0) -> 2677.9116 | X25: =IF(O25<250000,(250000-O25)*'Yr 1 RD'!$I$54,0) -> 2677.9116 | Y25: =Q25*'Yr 1 RD'!$D$49+'Big Schedules'!R25*'Yr 1 RD'!$D$50+'Big Schedules'!S25*'Yr 1 RD'!$D$51+'Big Schedules'!T25*'Yr 1 RD'!$D$52+'Big Schedules'!U25*'Yr 1 RD'!$D$53+'Yr 1 RD'!$D$47*12+W25 -> 27954.73 | Z25: =Q25*'Yr 1 RD'!$I$49+'Big Schedules'!R25*'Yr 1 RD'!$I$50+'Big Schedules'!S25*'Yr 1 RD'!$I$51+'Big Schedules'!T25*'Yr 1 RD'!$I$52+'Big Schedules'!U25*'Yr 1 RD'!$I$53+'Yr 1 RD'!$I$47*12+X25 -> 27649.71432 | AA25: -305.01568 | AB25: -0.01091105799
A26: 22 | C26: 32169 | D26: 31046 | E26: 25837 | F26: 25914 | G26: 20545 | H26: 20845 | I26: 18548 | J26: 17180 | K26: 18075 | L26: 19905 | M26: 23392 | N26: 25440 | O26: =SUM(C26:N26) -> 278896 | Q26: 233708 | R26: =R$3*12-SUM($Q26:Q26)-SUMPRODUCT(--($C26:$N26<=R$3),R$3-$C26:$N26) -> 45188 | S26: =S$3*12-SUM($Q26:R26)-SUMPRODUCT(--($C26:$N26<=S$3),S$3-$C26:$N26) -> 0 | W26: =IF(O26<250000,(250000-O26)*'Yr 1 RD'!$E$54,0) -> 0 | X26: =IF(O26<250000,(250000-O26)*'Yr 1 RD'!$I$54,0) -> 0 | Y26: =Q26*'Yr 1 RD'!$D$49+'Big Schedules'!R26*'Yr 1 RD'!$D$50+'Big Schedules'!S26*'Yr 1 RD'!$D$51+'Big Schedules'!T26*'Yr 1 RD'!$D$52+'Big Schedules'!U26*'Yr 1 RD'!$D$53+'Yr 1 RD'!$D$47*12+W26 -> 33715.82512 | Z26: =Q26*'Yr 1 RD'!$I$49+'Big Schedules'!R26*'Yr 1 RD'!$I$50+'Big Schedules'!S26*'Yr 1 RD'!$I$51+'Big Schedules'!T26*'Yr 1 RD'!$I$52+'Big Schedules'!U26*'Yr 1 RD'!$I$53+'Yr 1 RD'!$I$47*12+X26 -> 33141.96268 | AA26: -573.86244 | AB26: =Z26/Y26-1 -> -0.01702056639
A27: 23 | C27: 31083 | D27: 33645 | E27: 27611 | F27: 29676 | G27: 30773 | H27: 28048 | I27: 24193 | J27: 23226 | K27: 24959 | L27: 29873 | M27: 33468 | N27: 30811 | O27: 347366 | Q27: 240000 | R27: =R$3*12-SUM($Q27:Q27)-SUMPRODUCT(--($C27:$N27<=R$3),R$3-$C27:$N27) -> 107366 | S27: =S$3*12-SUM($Q27:R27)-SUMPRODUCT(--($C27:$N27<=S$3),S$3-$C27:$N27) -> 0 | W27: =IF(O27<250000,(250000-O27)*'Yr 1 RD'!$E$54,0) -> 0 | X27: =IF(O27<250000,(250000-O27)*'Yr 1 RD'!$I$54,0) -> 0 | Y27: =Q27*'Yr 1 RD'!$D$49+'Big Schedules'!R27*'Yr 1 RD'!$D$50+'Big Schedules'!S27*'Yr 1 RD'!$D$51+'Big Schedules'!T27*'Yr 1 RD'!$D$52+'Big Schedules'!U27*'Yr 1 RD'!$D$53+'Yr 1 RD'!$D$47*12+W27 -> 39882.5423 | Z27: =Q27*'Yr 1 RD'!$I$49+'Big Schedules'!R27*'Yr 1 RD'!$I$50+'Big Schedules'!S27*'Yr 1 RD'!$I$51+'Big Schedules'!T27*'Yr 1 RD'!$I$52+'Big Schedules'!U27*'Yr 1 RD'!$I$53+'Yr 1 RD'!$I$47*12+X27 -> 39112.02286 | AA27: -770.51944 | AB27: -0.01931971724
A28: 24 | C28: 53094 | D28: 52723 | E28: 43753 | F28: 43551 | G28: 32783 | H28: 28734 | I28: 24812 | J28: 23466 | K28: 23717 | L28: 23637 | M28: 36294 | N28: 39811 | O28: 426375 | Q28: 240000 | R28: =R$3*12-SUM($Q28:Q28)-SUMPRODUCT(--($C28:$N28<=R$3),R$3-$C28:$N28) -> 180558 | S28: =S$3*12-SUM($Q28:R28)-SUMPRODUCT(--($C28:$N28<=S$3),S$3-$C28:$N28) -> 5817 | W28: =IF(O28<250000,(250000-O28)*'Yr 1 RD'!$E$54,0) -> 0 | X28: =IF(O28<250000,(250000-O28)*'Yr 1 RD'!$I$54,0) -> 0 | Y28: =Q28*'Yr 1 RD'!$D$49+'Big Schedules'!R28*'Yr 1 RD'!$D$50+'Big Schedules'!S28*'Yr 1 RD'!$D$51+'Big Schedules'!T28*'Yr 1 RD'!$D$52+'Big Schedules'!U28*'Yr 1 RD'!$D$53+'Yr 1 RD'!$D$47*12+W28 -> 46867.395 | Z28: =Q28*'Yr 1 RD'!$I$49+'Big Schedules'!R28*'Yr 1 RD'!$I$50+'Big Schedules'!S28*'Yr 1 RD'!$I$51+'Big Schedules'!T28*'Yr 1 RD'!$I$52+'Big Schedules'!U28*'Yr 1 RD'!$I$53+'Yr 1 RD'!$I$47*12+X28 -> 45874.11876 | AA28: -993.27624 | AB28: -0.02119333153
A29: 25 | C29: 106404 | D29: 111354 | E29: 81774 | F29: 36088 | G29: 1754 | H29: 81 | I29: 0 | J29: 0 | K29: 9 | L29: 9468 | M29: 25793 | N29: 50033 | O29: 422758 | Q29: 131312 | R29: =R$3*12-SUM($Q29:Q29)-SUMPRODUCT(--($C29:$N29<=R$3),R$3-$C29:$N29) -> 141881 | S29: =S$3*12-SUM($Q29:R29)-SUMPRODUCT(--($C29:$N29<=S$3),S$3-$C29:$N29) -> 149565 | W29: =IF(O29<250000,(250000-O29)*'Yr 1 RD'!$E$54,0) -> 0 | X29: =IF(O29<250000,(250000-O29)*'Yr 1 RD'!$I$54,0) -> 0 | Y29: =Q29*'Yr 1 RD'!$D$49+'Big Schedules'!R29*'Yr 1 RD'!$D$50+'Big Schedules'!S29*'Yr 1 RD'!$D$51+'Big Schedules'!T29*'Yr 1 RD'!$D$52+'Big Schedules'!U29*'Yr 1 RD'!$D$53+'Yr 1 RD'!$D$47*12+W29 -> 44087.59063 | Z29: =Q29*'Yr 1 RD'!$I$49+'Big Schedules'!R29*'Yr 1 RD'!$I$50+'Big Schedules'!S29*'Yr 1 RD'!$I$51+'Big Schedules'!T29*'Yr 1 RD'!$I$52+'Big Schedules'!U29*'Yr 1 RD'!$I$53+'Yr 1 RD'!$I$47*12+X29 -> 43182.87691 | AA29: -904.71372 | AB29: -0.02052082473
A30: 26 | C30: 109208 | D30: 113928 | E30: 101718 | F30: 106430 | G30: 105031 | H30: 114469 | I30: 115962 | J30: 112545 | K30: 102770 | L30: 103622 | M30: 98009 | N30: 107715 | O30: 1291407 | Q30: 240000 | R30: =R$3*12-SUM($Q30:Q30)-SUMPRODUCT(--($C30:$N30<=R$3),R$3-$C30:$N30) -> 360000 | S30: =S$3*12-SUM($Q30:R30)-SUMPRODUCT(--($C30:$N30<=S$3),S$3-$C30:$N30) -> 691407 | W30: =IF(O30<250000,(250000-O30)*'Yr 1 RD'!$E$54,0) -> 0 | X30: =IF(O30<250000,(250000-O30)*'Yr 1 RD'!$I$54,0) -> 0 | Y30: =Q30*'Yr 1 RD'!$D$49+'Big Schedules'!R30*'Yr 1 RD'!$D$50+'Big Schedules'!S30*'Yr 1 RD'!$D$51+'Big Schedules'!T30*'Yr 1 RD'!$D$52+'Big Schedules'!U30*'Yr 1 RD'!$D$53+'Yr 1 RD'!$D$47*12+W30 -> 117899.5821 | Z30: =Q30*'Yr 1 RD'!$I$49+'Big Schedules'!R30*'Yr 1 RD'!$I$50+'Big Schedules'!S30*'Yr 1 RD'!$I$51+'Big Schedules'!T30*'Yr 1 RD'!$I$52+'Big Schedules'!U30*'Yr 1 RD'!$I$53+'Yr 1 RD'!$I$47*12+X30 -> 114641.5802 | AA30: -3258.00192 | AB30: -0.02763370202
A31: 27 | C31: 37097 | D31: 34110 | E31: 26835 | F31: 25935 | G31: 13378 | H31: 10902 | I31: 9242 | J31: 8343 | K31: 8245 | L31: 9987 | M31: 23871 | N31: 32028 | O31: =SUM(C31:N31) -> 239973 | Q31: 180097 | R31: =R$3*12-SUM($Q31:Q31)-SUMPRODUCT(--($C31:$N31<=R$3),R$3-$C31:$N31) -> 59876 | S31: =S$3*12-SUM($Q31:R31)-SUMPRODUCT(--($C31:$N31<=S$3),S$3-$C31:$N31) -> 0 | W31: =IF(O31<250000,(250000-O31)*'Yr 1 RD'!$E$54,0) -> 892.90435 | X31: =IF(O31<250000,(250000-O31)*'Yr 1 RD'!$I$54,0) -> 892.90435 | Y31: =Q31*'Yr 1 RD'!$D$49+'Big Schedules'!R31*'Yr 1 RD'!$D$50+'Big Schedules'!S31*'Yr 1 RD'!$D$51+'Big Schedules'!T31*'Yr 1 RD'!$D$52+'Big Schedules'!U31*'Yr 1 RD'!$D$53+'Yr 1 RD'!$D$47*12+W31 -> 30550.77088 | Z31: =Q31*'Yr 1 RD'!$I$49+'Big Schedules'!R31*'Yr 1 RD'!$I$50+'Big Schedules'!S31*'Yr 1 RD'!$I$51+'Big Schedules'!T31*'Yr 1 RD'!$I$52+'Big Schedules'!U31*'Yr 1 RD'!$I$53+'Yr 1 RD'!$I$47*12+X31 -> 30106.21361 | AA31: -444.55727 | AB31: =Z31/Y31-1 -> -0.01455142562
A32: 28 | C32: 20110 | D32: 18121 | E32: 17406 | F32: 17866 | G32: 15646 | H32: 14197 | I32: 13368 | J32: 15891 | K32: 14215 | L32: 12430 | M32: 14023 | N32: 12692 | O32: 185965 | Q32: 185855 | R32: =R$3*12-SUM($Q32:Q32)-SUMPRODUCT(--($C32:$N32<=R$3),R$3-$C32:$N32) -> 110 | S32: =S$3*12-SUM($Q32:R32)-SUMPRODUCT(--($C32:$N32<=S$3),S$3-$C32:$N32) -> 0 | W32: =IF(O32<250000,(250000-O32)*'Yr 1 RD'!$E$54,0) -> 5702.31675 | X32: =IF(O32<250000,(250000-O32)*'Yr 1 RD'!$I$54,0) -> 5702.31675 | Y32: =Q32*'Yr 1 RD'!$D$49+'Big Schedules'!R32*'Yr 1 RD'!$D$50+'Big Schedules'!S32*'Yr 1 RD'!$D$51+'Big Schedules'!T32*'Yr 1 RD'!$D$52+'Big Schedules'!U32*'Yr 1 RD'!$D$53+'Yr 1 RD'!$D$47*12+W32 -> 30614.3392 | Z32: =Q32*'Yr 1 RD'!$I$49+'Big Schedules'!R32*'Yr 1 RD'!$I$50+'Big Schedules'!S32*'Yr 1 RD'!$I$51+'Big Schedules'!T32*'Yr 1 RD'!$I$52+'Big Schedules'!U32*'Yr 1 RD'!$I$53+'Yr 1 RD'!$I$47*12+X32 -> 30321.14935 | AA32: -293.18985 | AB32: -0.009576879909
A33: 29 | C33: 45545 | D33: 46927 | E33: 42900 | F33: 42744 | G33: 38664 | H33: 49279 | I33: 52036 | J33: 52305 | K33: 56320 | L33: 55861 | M33: 58536 | N33: 57161 | O33: 598278 | Q33: 240000 | R33: =R$3*12-SUM($Q33:Q33)-SUMPRODUCT(--($C33:$N33<=R$3),R$3-$C33:$N33) -> 326059 | S33: =S$3*12-SUM($Q33:R33)-SUMPRODUCT(--($C33:$N33<=S$3),S$3-$C33:$N33) -> 32219 | T33: =T$3*12-SUM($Q33:S33)-SUMPRODUCT(--($C33:$N33<=T$3),T$3-$C33:$N33) -> 0 | U33: =U$3*12-SUM($Q33:T33)-SUMPRODUCT(--($C33:$N33<=U$3),U$3-$C33:$N33) -> 0 | W33: =IF(O33<250000,(250000-O33)*'Yr 1 RD'!$E$54,0) -> 0 | X33: =IF(O33<250000,(250000-O33)*'Yr 1 RD'!$I$54,0) -> 0 | Y33: =Q33*'Yr 1 RD'!$D$49+'Big Schedules'!R33*'Yr 1 RD'!$D$50+'Big Schedules'!S33*'Yr 1 RD'!$D$51+'Big Schedules'!T33*'Yr 1 RD'!$D$52+'Big Schedules'!U33*'Yr 1 RD'!$D$53+'Yr 1 RD'!$D$47*12+W33 -> 61944.33965 | Z33: =Q33*'Yr 1 RD'!$I$49+'Big Schedules'!R33*'Yr 1 RD'!$I$50+'Big Schedules'!S33*'Yr 1 RD'!$I$51+'Big Schedules'!T33*'Yr 1 RD'!$I$52+'Big Schedules'!U33*'Yr 1 RD'!$I$53+'Yr 1 RD'!$I$47*12+X33 -> 60470.25145 | AA33: -1474.0882 | AB33: -0.02379697981
A34: 30 | C34: 257294 | D34: 259454 | E34: 207873 | F34: 201375 | G34: 159756 | H34: 158631 | I34: 146232 | J34: 141414 | K34: 140077 | L34: 136741 | M34: 162490 | N34: 169077 | O34: 2140414 | Q34: 240000 | R34: =R$3*12-SUM($Q34:Q34)-SUMPRODUCT(--($C34:$N34<=R$3),R$3-$C34:$N34) -> 360000 | S34: =S$3*12-SUM($Q34:R34)-SUMPRODUCT(--($C34:$N34<=S$3),S$3-$C34:$N34) -> 1540414 | T34: =T$3*12-SUM($Q34:S34)-SUMPRODUCT(--($C34:$N34<=T$3),T$3-$C34:$N34) -> 0 | U34: =U$3*12-SUM($Q34:T34)-SUMPRODUCT(--($C34:$N34<=U$3),U$3-$C34:$N34) -> 0 | W34: =IF(O34<250000,(250000-O34)*'Yr 1 RD'!$E$54,0) -> 0 | X34: =IF(O34<250000,(250000-O34)*'Yr 1 RD'!$I$54,0) -> 0 | Y34: =Q34*'Yr 1 RD'!$D$49+'Big Schedules'!R34*'Yr 1 RD'!$D$50+'Big Schedules'!S34*'Yr 1 RD'!$D$51+'Big Schedules'!T34*'Yr 1 RD'!$D$52+'Big Schedules'!U34*'Yr 1 RD'!$D$53+'Yr 1 RD'!$D$47*12+W34 -> 186074.8442 | Z34: =Q34*'Yr 1 RD'!$I$49+'Big Schedules'!R34*'Yr 1 RD'!$I$50+'Big Schedules'!S34*'Yr 1 RD'!$I$51+'Big Schedules'!T34*'Yr 1 RD'!$I$52+'Big Schedules'!U34*'Yr 1 RD'!$I$53+'Yr 1 RD'!$I$47*12+X34 -> 180643.3844 | AA34: -5431.45984 | AB34: -0.02918965142
A35: 31 | C35: 0 | D35: 0 | E35: 0 | F35: 103 | G35: 32976 | H35: 44896 | I35: 48812 | J35: 32875 | K35: 26207 | L35: 25983 | M35: 23412 | N35: 10110 | O35: 245374 | Q35: 150213 | R35: =R$3*12-SUM($Q35:Q35)-SUMPRODUCT(--($C35:$N35<=R$3),R$3-$C35:$N35) -> 95161 | S35: =S$3*12-SUM($Q35:R35)-SUMPRODUCT(--($C35:$N35<=S$3),S$3-$C35:$N35) -> 0 | T35: =T$3*12-SUM($Q35:S35)-SUMPRODUCT(--($C35:$N35<=T$3),T$3-$C35:$N35) -> 0 | U35: =U$3*12-SUM($Q35:T35)-SUMPRODUCT(--($C35:$N35<=U$3),U$3-$C35:$N35) -> 0 | W35: =IF(O35<250000,(250000-O35)*'Yr 1 RD'!$E$54,0) -> 411.9453 | X35: =IF(O35<250000,(250000-O35)*'Yr 1 RD'!$I$54,0) -> 411.9453 | Y35: =Q35*'Yr 1 RD'!$D$49+'Big Schedules'!R35*'Yr 1 RD'!$D$50+'Big Schedules'!S35*'Yr 1 RD'!$D$51+'Big Schedules'!T35*'Yr 1 RD'!$D$52+'Big Schedules'!U35*'Yr 1 RD'!$D$53+'Yr 1 RD'!$D$47*12+W35 -> 30220.85152 | Z35: =Q35*'Yr 1 RD'!$I$49+'Big Schedules'!R35*'Yr 1 RD'!$I$50+'Big Schedules'!S35*'Yr 1 RD'!$I$51+'Big Schedules'!T35*'Yr 1 RD'!$I$52+'Big Schedules'!U35*'Yr 1 RD'!$I$53+'Yr 1 RD'!$I$47*12+X35 -> 29771.41481 | AA35: -449.43671 | AB35: -0.01487174211
A36: 32 | C36: 25750 | D36: 28505 | E36: 39424 | F36: 41862 | G36: 24458 | H36: 31343 | I36: 31856 | J36: 27709 | K36: 30604 | L36: 16747 | M36: 21815 | N36: 26215 | O36: 346288 | Q36: 236747 | R36: =R$3*12-SUM($Q36:Q36)-SUMPRODUCT(--($C36:$N36<=R$3),R$3-$C36:$N36) -> 109541 | S36: =S$3*12-SUM($Q36:R36)-SUMPRODUCT(--($C36:$N36<=S$3),S$3-$C36:$N36) -> 0 | T36: =T$3*12-SUM($Q36:S36)-SUMPRODUCT(--($C36:$N36<=T$3),T$3-$C36:$N36) -> 0 | U36: =U$3*12-SUM($Q36:T36)-SUMPRODUCT(--($C36:$N36<=U$3),U$3-$C36:$N36) -> 0 | W36: =IF(O36<250000,(250000-O36)*'Yr 1 RD'!$E$54,0) -> 0 | X36: =IF(O36<250000,(250000-O36)*'Yr 1 RD'!$I$54,0) -> 0 | Y36: =Q36*'Yr 1 RD'!$D$49+'Big Schedules'!R36*'Yr 1 RD'!$D$50+'Big Schedules'!S36*'Yr 1 RD'!$D$51+'Big Schedules'!T36*'Yr 1 RD'!$D$52+'Big Schedules'!U36*'Yr 1 RD'!$D$53+'Yr 1 RD'!$D$47*12+W36 -> 39750.63328 | Z36: =Q36*'Yr 1 RD'!$I$49+'Big Schedules'!R36*'Yr 1 RD'!$I$50+'Big Schedules'!S36*'Yr 1 RD'!$I$51+'Big Schedules'!T36*'Yr 1 RD'!$I$52+'Big Schedules'!U36*'Yr 1 RD'!$I$53+'Yr 1 RD'!$I$47*12+X36 -> 38984.31391 | AA36: -766.31937 | AB36: -0.01927816759
A37: 33 | C37: 135684 | D37: 173332 | E37: 156308 | F37: 155501 | G37: 149206 | H37: 133180 | I37: 124645 | J37: 120223 | K37: 135730 | L37: 115995 | M37: 128786 | N37: 143178 | O37: 1671768 | Q37: 240000 | R37: =R$3*12-SUM($Q37:Q37)-SUMPRODUCT(--($C37:$N37<=R$3),R$3-$C37:$N37) -> 360000 | S37: =S$3*12-SUM($Q37:R37)-SUMPRODUCT(--($C37:$N37<=S$3),S$3-$C37:$N37) -> 1071768 | T37: =T$3*12-SUM($Q37:S37)-SUMPRODUCT(--($C37:$N37<=T$3),T$3-$C37:$N37) -> 0 | U37: =U$3*12-SUM($Q37:T37)-SUMPRODUCT(--($C37:$N37<=U$3),U$3-$C37:$N37) -> 0 | W37: =IF(O37<250000,(250000-O37)*'Yr 1 RD'!$E$54,0) -> 0 | X37: =IF(O37<250000,(250000-O37)*'Yr 1 RD'!$I$54,0) -> 0 | Y37: =Q37*'Yr 1 RD'!$D$49+'Big Schedules'!R37*'Yr 1 RD'!$D$50+'Big Schedules'!S37*'Yr 1 RD'!$D$51+'Big Schedules'!T37*'Yr 1 RD'!$D$52+'Big Schedules'!U37*'Yr 1 RD'!$D$53+'Yr 1 RD'!$D$47*12+W37 -> 148442.5704 | Z37: =Q37*'Yr 1 RD'!$I$49+'Big Schedules'!R37*'Yr 1 RD'!$I$50+'Big Schedules'!S37*'Yr 1 RD'!$I$51+'Big Schedules'!T37*'Yr 1 RD'!$I$52+'Big Schedules'!U37*'Yr 1 RD'!$I$53+'Yr 1 RD'!$I$47*12+X37 -> 144210.8443 | AA37: -4231.72608 | AB37: -0.02850749666
A38: 34 | C38: 53600 | D38: 50856 | E38: 46878 | F38: 46358 | G38: 26521 | H38: 20995 | I38: 18672 | J38: 17427 | K38: 15709 | L38: 19088 | M38: 32729 | N38: 37803 | O38: =SUM(C38:N38) -> 386636 | Q38: 230896 | R38: =R$3*12-SUM($Q38:Q38)-SUMPRODUCT(--($C38:$N38<=R$3),R$3-$C38:$N38) -> 151284 | S38: =S$3*12-SUM($Q38:R38)-SUMPRODUCT(--($C38:$N38<=S$3),S$3-$C38:$N38) -> 4456 | T38: =T$3*12-SUM($Q38:S38)-SUMPRODUCT(--($C38:$N38<=T$3),T$3-$C38:$N38) -> 0 | U38: =U$3*12-SUM($Q38:T38)-SUMPRODUCT(--($C38:$N38<=U$3),U$3-$C38:$N38) -> 0 | W38: =IF(O38<250000,(250000-O38)*'Yr 1 RD'!$E$54,0) -> 0 | X38: =IF(O38<250000,(250000-O38)*'Yr 1 RD'!$I$54,0) -> 0 | Y38: =Q38*'Yr 1 RD'!$D$49+'Big Schedules'!R38*'Yr 1 RD'!$D$50+'Big Schedules'!S38*'Yr 1 RD'!$D$51+'Big Schedules'!T38*'Yr 1 RD'!$D$52+'Big Schedules'!U38*'Yr 1 RD'!$D$53+'Yr 1 RD'!$D$47*12+W38 -> 43240.03764 | Z38: =Q38*'Yr 1 RD'!$I$49+'Big Schedules'!R38*'Yr 1 RD'!$I$50+'Big Schedules'!S38*'Yr 1 RD'!$I$51+'Big Schedules'!T38*'Yr 1 RD'!$I$52+'Big Schedules'!U38*'Yr 1 RD'!$I$53+'Yr 1 RD'!$I$47*12+X38 -> 42362.42548 | AA38: -877.61216 | AB38: =Z38/Y38-1 -> -0.02029628576
A39: 35 | C39: 35023 | D39: 33918 | E39: 28573 | F39: 27906 | G39: 21422 | H39: 21945 | I39: 19182 | J39: 18121 | K39: 17748 | L39: 19929 | M39: 26078 | N39: 28095 | O39: =SUM(C39:N39) -> 297940 | Q39: 234980 | R39: =R$3*12-SUM($Q39:Q39)-SUMPRODUCT(--($C39:$N39<=R$3),R$3-$C39:$N39) -> 62960 | S39: =S$3*12-SUM($Q39:R39)-SUMPRODUCT(--($C39:$N39<=S$3),S$3-$C39:$N39) -> 0 | T39: =T$3*12-SUM($Q39:S39)-SUMPRODUCT(--($C39:$N39<=T$3),T$3-$C39:$N39) -> 0 | U39: =U$3*12-SUM($Q39:T39)-SUMPRODUCT(--($C39:$N39<=U$3),U$3-$C39:$N39) -> 0 | W39: =IF(O39<250000,(250000-O39)*'Yr 1 RD'!$E$54,0) -> 0 | X39: =IF(O39<250000,(250000-O39)*'Yr 1 RD'!$I$54,0) -> 0 | Y39: =Q39*'Yr 1 RD'!$D$49+'Big Schedules'!R39*'Yr 1 RD'!$D$50+'Big Schedules'!S39*'Yr 1 RD'!$D$51+'Big Schedules'!T39*'Yr 1 RD'!$D$52+'Big Schedules'!U39*'Yr 1 RD'!$D$53+'Yr 1 RD'!$D$47*12+W39 -> 35425.7362 | Z39: =Q39*'Yr 1 RD'!$I$49+'Big Schedules'!R39*'Yr 1 RD'!$I$50+'Big Schedules'!S39*'Yr 1 RD'!$I$51+'Big Schedules'!T39*'Yr 1 RD'!$I$52+'Big Schedules'!U39*'Yr 1 RD'!$I$53+'Yr 1 RD'!$I$47*12+X39 -> 34797.3436 | AA39: -628.3926 | AB39: =Z39/Y39-1 -> -0.01773830744
A40: 36 | C40: 65048 | D40: 63097 | E40: 53936 | F40: 52735 | G40: 42660 | H40: 40678 | I40: 35449 | J40: 34627 | K40: 34227 | L40: 37750 | M40: 45339 | N40: 49958 | O40: =SUM(C40:N40) -> 555504 | Q40: 240000 | R40: =R$3*12-SUM($Q40:Q40)-SUMPRODUCT(--($C40:$N40<=R$3),R$3-$C40:$N40) -> 280688 | S40: =S$3*12-SUM($Q40:R40)-SUMPRODUCT(--($C40:$N40<=S$3),S$3-$C40:$N40) -> 34816 | T40: =T$3*12-SUM($Q40:S40)-SUMPRODUCT(--($C40:$N40<=T$3),T$3-$C40:$N40) -> 0 | U40: =U$3*12-SUM($Q40:T40)-SUMPRODUCT(--($C40:$N40<=U$3),U$3-$C40:$N40) -> 0 | W40: =IF(O40<250000,(250000-O40)*'Yr 1 RD'!$E$54,0) -> 0 | X40: =IF(O40<250000,(250000-O40)*'Yr 1 RD'!$I$54,0) -> 0 | Y40: =Q40*'Yr 1 RD'!$D$49+'Big Schedules'!R40*'Yr 1 RD'!$D$50+'Big Schedules'!S40*'Yr 1 RD'!$D$51+'Big Schedules'!T40*'Yr 1 RD'!$D$52+'Big Schedules'!U40*'Yr 1 RD'!$D$53+'Yr 1 RD'!$D$47*12+W40 -> 58112.5912 | Z40: =Q40*'Yr 1 RD'!$I$49+'Big Schedules'!R40*'Yr 1 RD'!$I$50+'Big Schedules'!S40*'Yr 1 RD'!$I$51+'Big Schedules'!T40*'Yr 1 RD'!$I$52+'Big Schedules'!U40*'Yr 1 RD'!$I$53+'Yr 1 RD'!$I$47*12+X40 -> 56760.70832 | AA40: -1351.88288 | AB40: =Z40/Y40-1 -> -0.02326316642
A41: 37 | C41: 37816 | D41: 34015 | E41: 34598 | F41: 42424 | G41: 40617 | H41: 41289 | I41: 45983 | J41: 42032 | K41: 46516 | L41: 43777 | M41: 42339 | N41: 44369 | O41: 495775 | Q41: 240000 | R41: =R$3*12-SUM($Q41:Q41)-SUMPRODUCT(--($C41:$N41<=R$3),R$3-$C41:$N41) -> 255775 | S41: =S$3*12-SUM($Q41:R41)-SUMPRODUCT(--($C41:$N41<=S$3),S$3-$C41:$N41) -> 0 | T41: =T$3*12-SUM($Q41:S41)-SUMPRODUCT(--($C41:$N41<=T$3),T$3-$C41:$N41) -> 0 | U41: =U$3*12-SUM($Q41:T41)-SUMPRODUCT(--($C41:$N41<=U$3),U$3-$C41:$N41) -> 0 | W41: =IF(O41<250000,(250000-O41)*'Yr 1 RD'!$E$54,0) -> 0 | X41: =IF(O41<250000,(250000-O41)*'Yr 1 RD'!$I$54,0) -> 0 | Y41: =Q41*'Yr 1 RD'!$D$49+'Big Schedules'!R41*'Yr 1 RD'!$D$50+'Big Schedules'!S41*'Yr 1 RD'!$D$51+'Big Schedules'!T41*'Yr 1 RD'!$D$52+'Big Schedules'!U41*'Yr 1 RD'!$D$53+'Yr 1 RD'!$D$47*12+W41 -> 53098.36375 | Z41: =Q41*'Yr 1 RD'!$I$49+'Big Schedules'!R41*'Yr 1 RD'!$I$50+'Big Schedules'!S41*'Yr 1 RD'!$I$51+'Big Schedules'!T41*'Yr 1 RD'!$I$52+'Big Schedules'!U41*'Yr 1 RD'!$I$53+'Yr 1 RD'!$I$47*12+X41 -> 51906.36275 | AA41: -1192.001 | AB41: -0.02244892151
A42: 38 | C42: 23293 | D42: 3143 | E42: 62344 | F42: 69036 | G42: 71737 | H42: 61136 | I42: 57990 | J42: 70371 | K42: 82479 | L42: 69715 | M42: 78573 | N42: 59533 | O42: 709350 | Q42: 223143 | R42: =R$3*12-SUM($Q42:Q42)-SUMPRODUCT(--($C42:$N42<=R$3),R$3-$C42:$N42) -> 303293 | S42: =S$3*12-SUM($Q42:R42)-SUMPRODUCT(--($C42:$N42<=S$3),S$3-$C42:$N42) -> 182914 | T42: =T$3*12-SUM($Q42:S42)-SUMPRODUCT(--($C42:$N42<=T$3),T$3-$C42:$N42) -> 0 | U42: =U$3*12-SUM($Q42:T42)-SUMPRODUCT(--($C42:$N42<=U$3),U$3-$C42:$N42) -> 0 | W42: =IF(O42<250000,(250000-O42)*'Yr 1 RD'!$E$54,0) -> 0 | X42: =IF(O42<250000,(250000-O42)*'Yr 1 RD'!$I$54,0) -> 0 | Y42: =Q42*'Yr 1 RD'!$D$49+'Big Schedules'!R42*'Yr 1 RD'!$D$50+'Big Schedules'!S42*'Yr 1 RD'!$D$51+'Big Schedules'!T42*'Yr 1 RD'!$D$52+'Big Schedules'!U42*'Yr 1 RD'!$D$53+'Yr 1 RD'!$D$47*12+W42 -> 70330.61872 | Z42: =Q42*'Yr 1 RD'!$I$49+'Big Schedules'!R42*'Yr 1 RD'!$I$50+'Big Schedules'!S42*'Yr 1 RD'!$I$51+'Big Schedules'!T42*'Yr 1 RD'!$I$52+'Big Schedules'!U42*'Yr 1 RD'!$I$53+'Yr 1 RD'!$I$47*12+X42 -> 68589.18059 | AA42: -1741.43813 | AB42: -0.02476073951
A43: 39 | C43: 0 | D43: 0 | E43: 0 | F43: 1641 | G43: 19825 | H43: 17522 | I43: 17938 | J43: 13672 | K43: 9095 | L43: 5673 | M43: 126 | N43: 165 | O43: 85657 | Q43: 85657 | R43: =R$3*12-SUM($Q43:Q43)-SUMPRODUCT(--($C43:$N43<=R$3),R$3-$C43:$N43) -> 0 | S43: =S$3*12-SUM($Q43:R43)-SUMPRODUCT(--($C43:$N43<=S$3),S$3-$C43:$N43) -> 0 | T43: =T$3*12-SUM($Q43:S43)-SUMPRODUCT(--($C43:$N43<=T$3),T$3-$C43:$N43) -> 0 | U43: =U$3*12-SUM($Q43:T43)-SUMPRODUCT(--($C43:$N43<=U$3),U$3-$C43:$N43) -> 0 | W43: =IF(O43<250000,(250000-O43)*'Yr 1 RD'!$E$54,0) -> 14634.74415 | X43: =IF(O43<250000,(250000-O43)*'Yr 1 RD'!$I$54,0) -> 14634.74415 | Y43: =Q43*'Yr 1 RD'!$D$49+'Big Schedules'!R43*'Yr 1 RD'!$D$50+'Big Schedules'!S43*'Yr 1 RD'!$D$51+'Big Schedules'!T43*'Yr 1 RD'!$D$52+'Big Schedules'!U43*'Yr 1 RD'!$D$53+'Yr 1 RD'!$D$47*12+W43 -> 29508.15328 | Z43: =Q43*'Yr 1 RD'!$I$49+'Big Schedules'!R43*'Yr 1 RD'!$I$50+'Big Schedules'!S43*'Yr 1 RD'!$I$51+'Big Schedules'!T43*'Yr 1 RD'!$I$52+'Big Schedules'!U43*'Yr 1 RD'!$I$53+'Yr 1 RD'!$I$47*12+X43 -> 29534.90745 | AA43: 26.75417 | AB43: 0.0009066704292
A44: 40 | C44: 60063 | D44: 59493 | E44: 44107 | F44: 41496 | G44: 28681 | H44: 20501 | I44: 13471 | J44: 12338 | K44: 12171 | L44: 16936 | M44: 30188 | N44: 39104 | O44: 378549 | Q44: 214916 | R44: =R$3*12-SUM($Q44:Q44)-SUMPRODUCT(--($C44:$N44<=R$3),R$3-$C44:$N44) -> 144077 | S44: =S$3*12-SUM($Q44:R44)-SUMPRODUCT(--($C44:$N44<=S$3),S$3-$C44:$N44) -> 19556 | T44: =T$3*12-SUM($Q44:S44)-SUMPRODUCT(--($C44:$N44<=T$3),T$3-$C44:$N44) -> 0 | U44: =U$3*12-SUM($Q44:T44)-SUMPRODUCT(--($C44:$N44<=U$3),U$3-$C44:$N44) -> 0 | W44: =IF(O44<250000,(250000-O44)*'Yr 1 RD'!$E$54,0) -> 0 | X44: =IF(O44<250000,(250000-O44)*'Yr 1 RD'!$I$54,0) -> 0 | Y44: =Q44*'Yr 1 RD'!$D$49+'Big Schedules'!R44*'Yr 1 RD'!$D$50+'Big Schedules'!S44*'Yr 1 RD'!$D$51+'Big Schedules'!T44*'Yr 1 RD'!$D$52+'Big Schedules'!U44*'Yr 1 RD'!$D$53+'Yr 1 RD'!$D$47*12+W44 -> 42211.34609 | Z44: =Q44*'Yr 1 RD'!$I$49+'Big Schedules'!R44*'Yr 1 RD'!$I$50+'Big Schedules'!S44*'Yr 1 RD'!$I$51+'Big Schedules'!T44*'Yr 1 RD'!$I$52+'Big Schedules'!U44*'Yr 1 RD'!$I$53+'Yr 1 RD'!$I$47*12+X44 -> 41366.52201 | AA44: -844.82408 | AB44: -0.02001414686
B48: Total WA Sch 146 | C48: =SUM(C5:C47) -> 3378182 | D48: 3399233 | E48: 2972422 | F48: 2854611 | G48: 2379723 | H48: 2367233 | I48: 2209080 | J48: 1966059 | K48: 2007520 | L48: 1938915 | M48: 2521958 | N48: 2724593 | O48: =IF(ROUND(SUM(O5:O47),3)<>ROUND(SUM(C48:N48),3),#VALUE!,SUM(C48:N48)) -> 30719529 | Q48: =SUM(Q5:Q47) -> 8323425 | R48: =SUM(R5:R47) -> 7106130 | S48: =SUM(S5:S47) -> 10674881 | T48: =SUM(T5:T47) -> 2733574 | U48: =SUM(U5:U47) -> 1881519 | W48: =SUM(W5:W47) -> 37497.97545 | X48: =SUM(X5:X47) -> 37497.97545 | Y48: =SUM(Y5:Y47) -> 2920586.185 | Z48: =SUM(Z5:Z47) -> 2848697.681 | AB48: -0.02461440956
U49: =SUM(Q48:U48) -> 30719529 | Y49: =(Y48/1000)-'Yr 1 RS'!D18 -> -1.031999955e-05 | Z49: =(Z48/1000)-'Yr 1 RS'!F18 -> -0.19999483
B50: Revenue Runs | C50: ='12MEDEC16'!D153 -> 3333390 | D50: ='12MEDEC16'!E153 -> 3359319 | E50: ='12MEDEC16'!F153 -> 2937658 | F50: ='12MEDEC16'!G153 -> 2818085 | G50: ='12MEDEC16'!H153 -> 2345946 | H50: ='12MEDEC16'!I153 -> 2348653 | I50: ='12MEDEC16'!J153 -> 2161735 | J50: ='12MEDEC16'!K153 -> 1935250 | K50: ='12MEDEC16'!L153 -> 1967657 | L50: ='12MEDEC16'!M153 -> 1911018 | M50: ='12MEDEC16'!N153 -> 2521958 | N50: ='12MEDEC16'!O153 -> 2724593 | O50: =SUM(C50:N50) -> 30365262 | P50: =#REF! ->  | Q50: 500 | R50: 1000 | S50: 10000 | T50: 25000 | U50: 99999999
O51: =SUM(C51:N51) -> 0 | Q51: 200 | R51: 1000 | S51: 99999999 | T51: =T$62*12-SUM($Q51:S51)-SUMPRODUCT(--($C51:$N51<=T$62),T$62-$C51:$N51) -> -100001199 | U51: =U$62*12-SUM($Q51:T51)-SUMPRODUCT(--($C51:$N51<=U$62),U$62-$C51:$N51) -> 0
O52: 0 | Q52: =Q$62*12-SUMPRODUCT(--($C52:$N52<=Q$62),Q$62-$C52:$N52) -> 0 | R52: =R$62*12-SUM($Q52:Q52)-SUMPRODUCT(--($C52:$N52<=R$62),R$62-$C52:$N52) -> 0 | S52: =S$62*12-SUM($Q52:R52)-SUMPRODUCT(--($C52:$N52<=S$62),S$62-$C52:$N52) -> 0 | T52: =T$62*12-SUM($Q52:S52)-SUMPRODUCT(--($C52:$N52<=T$62),T$62-$C52:$N52) -> 0 | U52: =U$62*12-SUM($Q52:T52)-SUMPRODUCT(--($C52:$N52<=U$62),U$62-$C52:$N52) -> 0
O53: 0 | Q53: =Q$62*12-SUMPRODUCT(--($C53:$N53<=Q$62),Q$62-$C53:$N53) -> 0 | R53: =R$62*12-SUM($Q53:Q53)-SUMPRODUCT(--($C53:$N53<=R$62),R$62-$C53:$N53) -> 0 | S53: =S$62*12-SUM($Q53:R53)-SUMPRODUCT(--($C53:$N53<=S$62),S$62-$C53:$N53) -> 0 | T53: =T$62*12-SUM($Q53:S53)-SUMPRODUCT(--($C53:$N53<=T$62),T$62-$C53:$N53) -> 0 | U53: =U$62*12-SUM($Q53:T53)-SUMPRODUCT(--($C53:$N53<=U$62),U$62-$C53:$N53) -> 0
C54: =C20 -> 44792 | D54: =D20 -> 39914 | E54: 34764 | F54: 36526 | G54: 33777 | H54: 18580 | I54: 47345 | J54: 30809 | K54: 39863 | L54: 27897 | O54: 354267 | Q54: =Q$62*12-SUMPRODUCT(--($C54:$N54<=Q$62),Q$62-$C54:$N54) -> 5000 | R54: =R$62*12-SUM($Q54:Q54)-SUMPRODUCT(--($C54:$N54<=R$62),R$62-$C54:$N54) -> 5000 | S54: =S$62*12-SUM($Q54:R54)-SUMPRODUCT(--($C54:$N54<=S$62),S$62-$C54:$N54) -> 90000 | T54: =T$62*12-SUM($Q54:S54)-SUMPRODUCT(--($C54:$N54<=T$62),T$62-$C54:$N54) -> 143580 | U54: =U$62*12-SUM($Q54:T54)-SUMPRODUCT(--($C54:$N54<=U$62),U$62-$C54:$N54) -> 110687
O55: 0 | Q55: =Q$62*12-SUMPRODUCT(--($C55:$N55<=Q$62),Q$62-$C55:$N55) -> 0 | R55: =R$62*12-SUM($Q55:Q55)-SUMPRODUCT(--($C55:$N55<=R$62),R$62-$C55:$N55) -> 0 | S55: =S$62*12-SUM($Q55:R55)-SUMPRODUCT(--($C55:$N55<=S$62),S$62-$C55:$N55) -> 0 | Y55: =COUNT(O5:P46) -> 40
O56: =SUM(C56:N56) -> 0 | Q56: =SUM(Q52:Q55) -> 5000 | R56: =SUM(R52:R55) -> 5000 | S56: =SUM(S52:S55) -> 90000 | T56: =SUM(T52:T55) -> 143580 | U56: =SUM(U52:U55) -> 110687
O57: =SUM(C57:N57) -> 0 | Q57: =Q$51*12-SUMPRODUCT(--($C57:$N57<=Q$51),Q$51-$C57:$N57) -> 0 | R57: =R$51*12-SUM($Q57:Q57)-SUMPRODUCT(--($C57:$N57<=R$51),R$51-$C57:$N57) -> 0 | S57: =S$51*12-SUM($Q57:R57)-SUMPRODUCT(--($C57:$N57<=S$51),S$51-$C57:$N57) -> 0
O58: 0
B59: Total Sch 146 | C59: =SUM(C50:C58) -> 3378182 | D59: =SUM(D50:D58) -> 3399233 | E59: =SUM(E50:E58) -> 2972422 | F59: 2854611 | G59: 2379723 | H59: 2367233 | I59: 2209080 | J59: 1966059 | K59: 2007520 | L59: 1938915 | M59: 2521958 | N59: 2724593 | O59: =SUM(O50:O58) -> 30719529 | Q59: =SUM(Q52:Q55) -> 5000 | R59: =SUM(R52:R55) -> 5000 | S59: =SUM(S52:S55) -> 90000 | T59: =SUM(T52:T55) -> 143580 | U59: =SUM(U52:U55) -> 110687 | V59: =SUM(Q59:U59) -> 354267
C60: =C48-C59 -> 0 | D60: 0 | E60: =E48-E59 -> 0 | F60: 0 | G60: 0 | H60: 0 | I60: 0 | J60: 0 | K60: 0 | L60: 0 | M60: 0 | N60: 0 | O60: 0 | Q60: =SUM(Q56:Q57) -> 5000 | R60: =SUM(R56:R57) -> 5000 | S60: =SUM(S56:S57) -> 90000
C61: =COUNT(C5:C44) -> 40 | D61: =COUNT(D5:D44) -> 40 | E61: 40 | F61: 40 | G61: 40 | H61: 40 | I61: 40 | J61: 40 | K61: 40 | L61: 40 | M61: =COUNT(M5:M44) -> 40 | N61: =COUNT(N5:N44) -> 40 | Q61: 1st | R61: =Q62 -> 500 | S61: =R62 -> 1000 | T61: =S62 -> 10000 | U61: =T62 -> 25000
B62: ANNUAL USAGE, Sch 121/122 | Q62: 500 | R62: 1000 | S62: 10000 | T62: 25000 | U62: 99999999
B63: Washington | C63: =C4 -> 2016-01-01 | D63: =D4 -> 2016-02-01 | E63: 2016-03-01 | F63: 2016-04-01 | G63: 2016-05-01 | H63: 2016-06-01 | I63: 2016-07-01 | J63: 2016-08-01 | K63: 2016-09-01 | L63: 2016-10-01 | M63: 2016-11-01 | N63: 2016-12-01 | O63: Total | Q63: thms/mo | R63: thms/mo | S63: thms/mo | T63: thms/mo | U63: thms/mo | X63: 2014-10-01 | AE63: 2014-11-01 | AK63: 2014-12-01 | AQ63: 2015-01-01
B64: AIRWAY HEIGHTS CORRECTION CENTER (122) | O64: =SUM(C64:N64) -> 0 | Q64: =Q$62*12-SUMPRODUCT(--($C64:$N64<=Q$62),Q$62-$C64:$N64) -> 0 | R64: =R$62*12-SUM($Q64:Q64)-SUMPRODUCT(--($C64:$N64<=R$62),R$62-$C64:$N64) -> 0 | S64: =S$62*12-SUM($Q64:R64)-SUMPRODUCT(--($C64:$N64<=S$62),S$62-$C64:$N64) -> 0 | T64: =T$62*12-SUM($Q64:S64)-SUMPRODUCT(--($C64:$N64<=T$62),T$62-$C64:$N64) -> 0 | U64: =U$62*12-SUM($Q64:T64)-SUMPRODUCT(--($C64:$N64<=U$62),U$62-$C64:$N64) -> 0 | X64: =Q$62-SUMPRODUCT(--($C64<=Q$62),Q$62-$C64) -> 0 | Y64: =R$62-X64-SUMPRODUCT(--($C64<=R$62),R$62-$C64) -> 0 | Z64: =S$62-SUM(X64:Y64)-SUMPRODUCT(--($C64<=S$62),S$62-$C64) -> 0 | AB64: =T$62-SUM(X64:Z64)-SUMPRODUCT(--($C64<=T$62),T$62-$C64) -> 0 | AC64: =U$62-SUM($X64:AB64)-SUMPRODUCT(--($C64<=U$62),U$62-$C64) -> 0 | AE64: =Q$62-SUMPRODUCT(--($D64<=Q$62),Q$62-$D64) -> 0 | AF64: =R$62-AE64-SUMPRODUCT(--($D64<=R$62),R$62-$D64) -> 0 | AG64: =S$62-SUM(AE64:AF64)-SUMPRODUCT(--($D64<=S$62),S$62-$D64) -> 0 | AH64: =T$62-SUM(AE64:AG64)-SUMPRODUCT(--($D64<=T$62),T$62-$D64) -> 0 | AI64: =U$62-SUM($AE64:AH64)-SUMPRODUCT(--($D64<=U$62),U$62-$D64) -> 0 | AK64: =Q$62-SUMPRODUCT(--($E64<=Q$62),Q$62-$E64) -> 0 | AL64: =R$62-AK64-SUMPRODUCT(--($E64<=R$62),R$62-$E64) -> 0 | AM64: =S$62-SUM(AK64:AL64)-SUMPRODUCT(--($E64<=S$62),S$62-$E64) -> 0 | AN64: =T$62-SUM(AK64:AM64)-SUMPRODUCT(--($E64<=T$62),T$62-$E64) -> 0 | AO64: =U$62-SUM($AK64:AN64)-SUMPRODUCT(--($E64<=U$62),U$62-$E64) -> 0 | AQ64: =Q$62-SUMPRODUCT(--($F64<=Q$62),Q$62-$F64) -> 0 | AR64: =R$62-AQ64-SUMPRODUCT(--($F64<=R$62),R$62-$F64) -> 0 | AS64: =S$62-SUM(AQ64:AR64)-SUMPRODUCT(--($F64<=S$62),S$62-$F64) -> 0 | AT64: =T$62-SUM(AQ64:AS64)-SUMPRODUCT(--($F64<=T$62),T$62-$F64) -> 0 | AU64: =U$62-SUM($AQ64:AT64)-SUMPRODUCT(--($F64<=U$62),U$62-$F64) -> 0
B65: CAMELBACK HOTEL CORP | O65: 0 | Q65: 0 | R65: =R$62*12-SUM($Q65:Q65)-SUMPRODUCT(--($C65:$N65<=R$62),R$62-$C65:$N65) -> 0 | S65: =S$62*12-SUM($Q65:R65)-SUMPRODUCT(--($C65:$N65<=S$62),S$62-$C65:$N65) -> 0 | T65: =T$62*12-SUM($Q65:S65)-SUMPRODUCT(--($C65:$N65<=T$62),T$62-$C65:$N65) -> 0 | U65: =U$62*12-SUM($Q65:T65)-SUMPRODUCT(--($C65:$N65<=U$62),U$62-$C65:$N65) -> 0 | X65: =Q$62-SUMPRODUCT(--($C65<=Q$62),Q$62-$C65) -> 0 | Y65: =R$62-X65-SUMPRODUCT(--($C65<=R$62),R$62-$C65) -> 0 | Z65: =S$62-SUM(X65:Y65)-SUMPRODUCT(--($C65<=S$62),S$62-$C65) -> 0 | AB65: =T$62-SUM(X65:Z65)-SUMPRODUCT(--($C65<=T$62),T$62-$C65) -> 0 | AC65: =U$62-SUM($X65:AB65)-SUMPRODUCT(--($C65<=U$62),U$62-$C65) -> 0 | AE65: =Q$62-SUMPRODUCT(--($D65<=Q$62),Q$62-$D65) -> 0 | AF65: =R$62-AE65-SUMPRODUCT(--($D65<=R$62),R$62-$D65) -> 0 | AG65: =S$62-SUM(AE65:AF65)-SUMPRODUCT(--($D65<=S$62),S$62-$D65) -> 0 | AH65: =T$62-SUM(AE65:AG65)-SUMPRODUCT(--($D65<=T$62),T$62-$D65) -> 0 | AI65: =U$62-SUM($AE65:AH65)-SUMPRODUCT(--($D65<=U$62),U$62-$D65) -> 0 | AK65: =Q$62-SUMPRODUCT(--($E65<=Q$62),Q$62-$E65) -> 0 | AL65: =R$62-AK65-SUMPRODUCT(--($E65<=R$62),R$62-$E65) -> 0 | AM65: =S$62-SUM(AK65:AL65)-SUMPRODUCT(--($E65<=S$62),S$62-$E65) -> 0 | AN65: =T$62-SUM(AK65:AM65)-SUMPRODUCT(--($E65<=T$62),T$62-$E65) -> 0 | AO65: =U$62-SUM($AK65:AN65)-SUMPRODUCT(--($E65<=U$62),U$62-$E65) -> 0 | AQ65: =Q$62-SUMPRODUCT(--($F65<=Q$62),Q$62-$F65) -> 0 | AR65: =R$62-AQ65-SUMPRODUCT(--($F65<=R$62),R$62-$F65) -> 0 | AS65: =S$62-SUM(AQ65:AR65)-SUMPRODUCT(--($F65<=S$62),S$62-$F65) -> 0 | AT65: =T$62-SUM(AQ65:AS65)-SUMPRODUCT(--($F65<=T$62),T$62-$F65) -> 0 | AU65: =U$62-SUM($AQ65:AT65)-SUMPRODUCT(--($F65<=U$62),U$62-$F65) -> 0
B66: COYOTE RIDGE CORRECTION | O66: 0 | Q66: 0 | R66: =R$62*12-SUM($Q66:Q66)-SUMPRODUCT(--($C66:$N66<=R$62),R$62-$C66:$N66) -> 0 | S66: =S$62*12-SUM($Q66:R66)-SUMPRODUCT(--($C66:$N66<=S$62),S$62-$C66:$N66) -> 0 | T66: =T$62*12-SUM($Q66:S66)-SUMPRODUCT(--($C66:$N66<=T$62),T$62-$C66:$N66) -> 0 | U66: =U$62*12-SUM($Q66:T66)-SUMPRODUCT(--($C66:$N66<=U$62),U$62-$C66:$N66) -> 0 | X66: 0 | Y66: 0 | Z66: 0 | AB66: 0 | AC66: =U$62-SUM($X66:AB66)-SUMPRODUCT(--($C66<=U$62),U$62-$C66) -> 0 | AE66: 0 | AF66: 0 | AG66: 0 | AH66: 0 | AI66: =U$62-SUM($AE66:AH66)-SUMPRODUCT(--($D66<=U$62),U$62-$D66) -> 0 | AK66: 0 | AL66: 0 | AM66: 0 | AN66: 0 | AO66: =U$62-SUM($AK66:AN66)-SUMPRODUCT(--($E66<=U$62),U$62-$E66) -> 0 | AQ66: 0 | AR66: 0 | AS66: 0 | AT66: 0 | AU66: =U$62-SUM($AQ66:AT66)-SUMPRODUCT(--($F66<=U$62),U$62-$F66) -> 0
B67: DAVENPORT 2000 LLC | O67: 0 | Q67: 0 | R67: =R$62*12-SUM($Q67:Q67)-SUMPRODUCT(--($C67:$N67<=R$62),R$62-$C67:$N67) -> 0 | S67: =S$62*12-SUM($Q67:R67)-SUMPRODUCT(--($C67:$N67<=S$62),S$62-$C67:$N67) -> 0 | T67: =T$62*12-SUM($Q67:S67)-SUMPRODUCT(--($C67:$N67<=T$62),T$62-$C67:$N67) -> 0 | U67: =U$62*12-SUM($Q67:T67)-SUMPRODUCT(--($C67:$N67<=U$62),U$62-$C67:$N67) -> 0 | X67: 0 | Y67: 0 | Z67: 0 | AB67: 0 | AC67: =U$62-SUM($X67:AB67)-SUMPRODUCT(--($C67<=U$62),U$62-$C67) -> 0 | AE67: 0 | AF67: 0 | AG67: 0 | AH67: 0 | AI67: =U$62-SUM($AE67:AH67)-SUMPRODUCT(--($D67<=U$62),U$62-$D67) -> 0 | AK67: 0 | AL67: 0 | AM67: 0 | AN67: 0 | AO67: =U$62-SUM($AK67:AN67)-SUMPRODUCT(--($E67<=U$62),U$62-$E67) -> 0 | AQ67: 0 | AR67: 0 | AS67: 0 | AT67: 0 | AU67: =U$62-SUM($AQ67:AT67)-SUMPRODUCT(--($F67<=U$62),U$62-$F67) -> 0
B68: DOUBLETREE HOTEL | O68: 0 | Q68: 0 | R68: =R$62*12-SUM($Q68:Q68)-SUMPRODUCT(--($C68:$N68<=R$62),R$62-$C68:$N68) -> 0 | S68: =S$62*12-SUM($Q68:R68)-SUMPRODUCT(--($C68:$N68<=S$62),S$62-$C68:$N68) -> 0 | T68: =T$62*12-SUM($Q68:S68)-SUMPRODUCT(--($C68:$N68<=T$62),T$62-$C68:$N68) -> 0 | U68: =U$62*12-SUM($Q68:T68)-SUMPRODUCT(--($C68:$N68<=U$62),U$62-$C68:$N68) -> 0 | X68: 0 | Y68: 0 | Z68: 0 | AB68: 0 | AC68: =U$62-SUM($X68:AB68)-SUMPRODUCT(--($C68<=U$62),U$62-$C68) -> 0 | AE68: 0 | AF68: 0 | AG68: 0 | AH68: 0 | AI68: =U$62-SUM($AE68:AH68)-SUMPRODUCT(--($D68<=U$62),U$62-$D68) -> 0 | AK68: 0 | AL68: 0 | AM68: 0 | AN68: 0 | AO68: =U$62-SUM($AK68:AN68)-SUMPRODUCT(--($E68<=U$62),U$62-$E68) -> 0 | AQ68: 0 | AR68: 0 | AS68: 0 | AT68: 0 | AU68: =U$62-SUM($AQ68:AT68)-SUMPRODUCT(--($F68<=U$62),U$62-$F68) -> 0
B69: ECOLITE | O69: 0 | Q69: 0 | R69: =R$62*12-SUM($Q69:Q69)-SUMPRODUCT(--($C69:$N69<=R$62),R$62-$C69:$N69) -> 0 | S69: =S$62*12-SUM($Q69:R69)-SUMPRODUCT(--($C69:$N69<=S$62),S$62-$C69:$N69) -> 0 | T69: =T$62*12-SUM($Q69:S69)-SUMPRODUCT(--($C69:$N69<=T$62),T$62-$C69:$N69) -> 0 | U69: =U$62*12-SUM($Q69:T69)-SUMPRODUCT(--($C69:$N69<=U$62),U$62-$C69:$N69) -> 0 | X69: 0 | Y69: 0 | Z69: 0 | AB69: 0 | AC69: =U$62-SUM($X69:AB69)-SUMPRODUCT(--($C69<=U$62),U$62-$C69) -> 0 | AE69: 0 | AF69: 0 | AG69: 0 | AH69: 0 | AI69: =U$62-SUM($AE69:AH69)-SUMPRODUCT(--($D69<=U$62),U$62-$D69) -> 0 | AK69: 0 | AL69: 0 | AM69: 0 | AN69: 0 | AO69: =U$62-SUM($AK69:AN69)-SUMPRODUCT(--($E69<=U$62),U$62-$E69) -> 0 | AQ69: 0 | AR69: 0 | AS69: 0 | AT69: 0 | AU69: =U$62-SUM($AQ69:AT69)-SUMPRODUCT(--($F69<=U$62),U$62-$F69) -> 0
B70: GOOD SAMARITAN VILLAGE | O70: 0 | Q70: 0 | R70: =R$62*12-SUM($Q70:Q70)-SUMPRODUCT(--($C70:$N70<=R$62),R$62-$C70:$N70) -> 0 | S70: =S$62*12-SUM($Q70:R70)-SUMPRODUCT(--($C70:$N70<=S$62),S$62-$C70:$N70) -> 0 | T70: =T$62*12-SUM($Q70:S70)-SUMPRODUCT(--($C70:$N70<=T$62),T$62-$C70:$N70) -> 0 | U70: =U$62*12-SUM($Q70:T70)-SUMPRODUCT(--($C70:$N70<=U$62),U$62-$C70:$N70) -> 0 | X70: 0 | Y70: 0 | Z70: 0 | AB70: 0 | AC70: =U$62-SUM($X70:AB70)-SUMPRODUCT(--($C70<=U$62),U$62-$C70) -> 0 | AE70: 0 | AF70: 0 | AG70: 0 | AH70: 0 | AI70: =U$62-SUM($AE70:AH70)-SUMPRODUCT(--($D70<=U$62),U$62-$D70) -> 0 | AK70: 0 | AL70: 0 | AM70: 0 | AN70: 0 | AO70: =U$62-SUM($AK70:AN70)-SUMPRODUCT(--($E70<=U$62),U$62-$E70) -> 0 | AQ70: 0 | AR70: 0 | AS70: 0 | AT70: 0 | AU70: =U$62-SUM($AQ70:AT70)-SUMPRODUCT(--($F70<=U$62),U$62-$F70) -> 0
B71: GREENACRES GYPSUM & LIME CO | O71: 0 | Q71: 0 | R71: =R$62*12-SUM($Q71:Q71)-SUMPRODUCT(--($C71:$N71<=R$62),R$62-$C71:$N71) -> 0 | S71: =S$62*12-SUM($Q71:R71)-SUMPRODUCT(--($C71:$N71<=S$62),S$62-$C71:$N71) -> 0 | T71: =T$62*12-SUM($Q71:S71)-SUMPRODUCT(--($C71:$N71<=T$62),T$62-$C71:$N71) -> 0 | U71: =U$62*12-SUM($Q71:T71)-SUMPRODUCT(--($C71:$N71<=U$62),U$62-$C71:$N71) -> 0 | X71: 0 | Y71: 0 | Z71: 0 | AB71: 0 | AC71: =U$62-SUM($X71:AB71)-SUMPRODUCT(--($C71<=U$62),U$62-$C71) -> 0 | AE71: 0 | AF71: 0 | AG71: 0 | AH71: 0 | AI71: =U$62-SUM($AE71:AH71)-SUMPRODUCT(--($D71<=U$62),U$62-$D71) -> 0 | AK71: 0 | AL71: 0 | AM71: 0 | AN71: 0 | AO71: =U$62-SUM($AK71:AN71)-SUMPRODUCT(--($E71<=U$62),U$62-$E71) -> 0 | AQ71: 0 | AR71: 0 | AS71: 0 | AT71: 0 | AU71: =U$62-SUM($AQ71:AT71)-SUMPRODUCT(--($F71<=U$62),U$62-$F71) -> 0
B72: HOLLISTER-STIER LABORATORIES | O72: 0 | Q72: 0 | R72: =R$62*12-SUM($Q72:Q72)-SUMPRODUCT(--($C72:$N72<=R$62),R$62-$C72:$N72) -> 0 | S72: =S$62*12-SUM($Q72:R72)-SUMPRODUCT(--($C72:$N72<=S$62),S$62-$C72:$N72) -> 0 | T72: =T$62*12-SUM($Q72:S72)-SUMPRODUCT(--($C72:$N72<=T$62),T$62-$C72:$N72) -> 0 | U72: =U$62*12-SUM($Q72:T72)-SUMPRODUCT(--($C72:$N72<=U$62),U$62-$C72:$N72) -> 0 | X72: 0 | Y72: 0 | Z72: 0 | AB72: 0 | AC72: =U$62-SUM($X72:AB72)-SUMPRODUCT(--($C72<=U$62),U$62-$C72) -> 0 | AE72: 0 | AF72: 0 | AG72: 0 | AH72: 0 | AI72: =U$62-SUM($AE72:AH72)-SUMPRODUCT(--($D72<=U$62),U$62-$D72) -> 0 | AK72: 0 | AL72: 0 | AM72: 0 | AN72: 0 | AO72: =U$62-SUM($AK72:AN72)-SUMPRODUCT(--($E72<=U$62),U$62-$E72) -> 0 | AQ72: 0 | AR72: 0 | AS72: 0 | AT72: 0 | AU72: =U$62-SUM($AQ72:AT72)-SUMPRODUCT(--($F72<=U$62),U$62-$F72) -> 0
B73: JOHANNA BEVERAGE CO | O73: 0 | Q73: 0 | R73: =R$62*12-SUM($Q73:Q73)-SUMPRODUCT(--($C73:$N73<=R$62),R$62-$C73:$N73) -> 0 | S73: =S$62*12-SUM($Q73:R73)-SUMPRODUCT(--($C73:$N73<=S$62),S$62-$C73:$N73) -> 0 | T73: =T$62*12-SUM($Q73:S73)-SUMPRODUCT(--($C73:$N73<=T$62),T$62-$C73:$N73) -> 0 | U73: =U$62*12-SUM($Q73:T73)-SUMPRODUCT(--($C73:$N73<=U$62),U$62-$C73:$N73) -> 0 | X73: 0 | Y73: 0 | Z73: 0 | AB73: 0 | AC73: =U$62-SUM($X73:AB73)-SUMPRODUCT(--($C73<=U$62),U$62-$C73) -> 0 | AE73: 0 | AF73: 0 | AG73: 0 | AH73: 0 | AI73: =U$62-SUM($AE73:AH73)-SUMPRODUCT(--($D73<=U$62),U$62-$D73) -> 0 | AK73: 0 | AL73: 0 | AM73: 0 | AN73: 0 | AO73: =U$62-SUM($AK73:AN73)-SUMPRODUCT(--($E73<=U$62),U$62-$E73) -> 0 | AQ73: 0 | AR73: 0 | AS73: 0 | AT73: 0 | AU73: =U$62-SUM($AQ73:AT73)-SUMPRODUCT(--($F73<=U$62),U$62-$F73) -> 0
B74: KALISPEL TRIBAL ECONOMIC AUTHOR | O74: 0 | Q74: 0 | R74: =R$62*12-SUM($Q74:Q74)-SUMPRODUCT(--($C74:$N74<=R$62),R$62-$C74:$N74) -> 0 | S74: =S$62*12-SUM($Q74:R74)-SUMPRODUCT(--($C74:$N74<=S$62),S$62-$C74:$N74) -> 0 | T74: =T$62*12-SUM($Q74:S74)-SUMPRODUCT(--($C74:$N74<=T$62),T$62-$C74:$N74) -> 0 | U74: =U$62*12-SUM($Q74:T74)-SUMPRODUCT(--($C74:$N74<=U$62),U$62-$C74:$N74) -> 0 | X74: 0 | Y74: 0 | Z74: 0 | AB74: 0 | AC74: =U$62-SUM($X74:AB74)-SUMPRODUCT(--($C74<=U$62),U$62-$C74) -> 0 | AE74: 0 | AF74: 0 | AG74: 0 | AH74: 0 | AI74: =U$62-SUM($AE74:AH74)-SUMPRODUCT(--($D74<=U$62),U$62-$D74) -> 0 | AK74: 0 | AL74: 0 | AM74: 0 | AN74: 0 | AO74: =U$62-SUM($AK74:AN74)-SUMPRODUCT(--($E74<=U$62),U$62-$E74) -> 0 | AQ74: 0 | AR74: 0 | AS74: 0 | AT74: 0 | AU74: =U$62-SUM($AQ74:AT74)-SUMPRODUCT(--($F74<=U$62),U$62-$F74) -> 0
B75: MIRABEAU PARK HOTEL | O75: 0 | Q75: 0 | R75: =R$62*12-SUM($Q75:Q75)-SUMPRODUCT(--($C75:$N75<=R$62),R$62-$C75:$N75) -> 0 | S75: =S$62*12-SUM($Q75:R75)-SUMPRODUCT(--($C75:$N75<=S$62),S$62-$C75:$N75) -> 0 | T75: =T$62*12-SUM($Q75:S75)-SUMPRODUCT(--($C75:$N75<=T$62),T$62-$C75:$N75) -> 0 | U75: =U$62*12-SUM($Q75:T75)-SUMPRODUCT(--($C75:$N75<=U$62),U$62-$C75:$N75) -> 0 | X75: 0 | Y75: 0 | Z75: 0 | AB75: 0 | AC75: =U$62-SUM($X75:AB75)-SUMPRODUCT(--($C75<=U$62),U$62-$C75) -> 0 | AE75: 0 | AF75: 0 | AG75: 0 | AH75: 0 | AI75: =U$62-SUM($AE75:AH75)-SUMPRODUCT(--($D75<=U$62),U$62-$D75) -> 0 | AK75: 0 | AL75: 0 | AM75: 0 | AN75: 0 | AO75: =U$62-SUM($AK75:AN75)-SUMPRODUCT(--($E75<=U$62),U$62-$E75) -> 0 | AQ75: 0 | AR75: 0 | AS75: 0 | AT75: 0 | AU75: =U$62-SUM($AQ75:AT75)-SUMPRODUCT(--($F75<=U$62),U$62-$F75) -> 0
B76: MOUNT CARMEL HOSPITAL | O76: 0 | Q76: 0 | R76: =R$62*12-SUM($Q76:Q76)-SUMPRODUCT(--($C76:$N76<=R$62),R$62-$C76:$N76) -> 0 | S76: =S$62*12-SUM($Q76:R76)-SUMPRODUCT(--($C76:$N76<=S$62),S$62-$C76:$N76) -> 0 | T76: =T$62*12-SUM($Q76:S76)-SUMPRODUCT(--($C76:$N76<=T$62),T$62-$C76:$N76) -> 0 | U76: =U$62*12-SUM($Q76:T76)-SUMPRODUCT(--($C76:$N76<=U$62),U$62-$C76:$N76) -> 0 | X76: 0 | Y76: 0 | Z76: 0 | AB76: 0 | AC76: =U$62-SUM($X76:AB76)-SUMPRODUCT(--($C76<=U$62),U$62-$C76) -> 0 | AE76: 0 | AF76: 0 | AG76: 0 | AH76: 0 | AI76: =U$62-SUM($AE76:AH76)-SUMPRODUCT(--($D76<=U$62),U$62-$D76) -> 0 | AK76: 0 | AL76: 0 | AM76: 0 | AN76: 0 | AO76: =U$62-SUM($AK76:AN76)-SUMPRODUCT(--($E76<=U$62),U$62-$E76) -> 0 | AQ76: 0 | AR76: 0 | AS76: 0 | AT76: 0 | AU76: =U$62-SUM($AQ76:AT76)-SUMPRODUCT(--($F76<=U$62),U$62-$F76) -> 0
B77: NORTHERN QUEST CASINO | O77: 0 | Q77: 0 | R77: =R$62*12-SUM($Q77:Q77)-SUMPRODUCT(--($C77:$N77<=R$62),R$62-$C77:$N77) -> 0 | S77: =S$62*12-SUM($Q77:R77)-SUMPRODUCT(--($C77:$N77<=S$62),S$62-$C77:$N77) -> 0 | T77: =T$62*12-SUM($Q77:S77)-SUMPRODUCT(--($C77:$N77<=T$62),T$62-$C77:$N77) -> 0 | U77: =U$62*12-SUM($Q77:T77)-SUMPRODUCT(--($C77:$N77<=U$62),U$62-$C77:$N77) -> 0 | X77: 0 | Y77: 0 | Z77: 0 | AB77: 0 | AC77: =U$62-SUM($X77:AB77)-SUMPRODUCT(--($C77<=U$62),U$62-$C77) -> 0 | AE77: 0 | AF77: 0 | AG77: 0 | AH77: 0 | AI77: =U$62-SUM($AE77:AH77)-SUMPRODUCT(--($D77<=U$62),U$62-$D77) -> 0 | AK77: 0 | AL77: 0 | AM77: 0 | AN77: 0 | AO77: =U$62-SUM($AK77:AN77)-SUMPRODUCT(--($E77<=U$62),U$62-$E77) -> 0 | AQ77: 0 | AR77: 0 | AS77: 0 | AT77: 0 | AU77: =U$62-SUM($AQ77:AT77)-SUMPRODUCT(--($F77<=U$62),U$62-$F77) -> 0
B78: NORTHERN QUEST CASINO | O78: 0 | Q78: 0 | R78: =R$62*12-SUM($Q78:Q78)-SUMPRODUCT(--($C78:$N78<=R$62),R$62-$C78:$N78) -> 0 | S78: =S$62*12-SUM($Q78:R78)-SUMPRODUCT(--($C78:$N78<=S$62),S$62-$C78:$N78) -> 0 | T78: =T$62*12-SUM($Q78:S78)-SUMPRODUCT(--($C78:$N78<=T$62),T$62-$C78:$N78) -> 0 | U78: =U$62*12-SUM($Q78:T78)-SUMPRODUCT(--($C78:$N78<=U$62),U$62-$C78:$N78) -> 0 | X78: 0 | Y78: 0 | Z78: 0 | AB78: 0 | AC78: =U$62-SUM($X78:AB78)-SUMPRODUCT(--($C78<=U$62),U$62-$C78) -> 0 | AE78: 0 | AF78: 0 | AG78: 0 | AH78: 0 | AI78: =U$62-SUM($AE78:AH78)-SUMPRODUCT(--($D78<=U$62),U$62-$D78) -> 0 | AK78: 0 | AL78: 0 | AM78: 0 | AN78: 0 | AO78: =U$62-SUM($AK78:AN78)-SUMPRODUCT(--($E78<=U$62),U$62-$E78) -> 0 | AQ78: 0 | AR78: 0 | AS78: 0 | AT78: 0 | AU78: =U$62-SUM($AQ78:AT78)-SUMPRODUCT(--($F78<=U$62),U$62-$F78) -> 0
B79: PHILADELPHIA MACARONI CO | O79: 0 | Q79: 0 | R79: =R$62*12-SUM($Q79:Q79)-SUMPRODUCT(--($C79:$N79<=R$62),R$62-$C79:$N79) -> 0 | S79: =S$62*12-SUM($Q79:R79)-SUMPRODUCT(--($C79:$N79<=S$62),S$62-$C79:$N79) -> 0 | T79: =T$62*12-SUM($Q79:S79)-SUMPRODUCT(--($C79:$N79<=T$62),T$62-$C79:$N79) -> 0 | U79: =U$62*12-SUM($Q79:T79)-SUMPRODUCT(--($C79:$N79<=U$62),U$62-$C79:$N79) -> 0 | X79: 0 | Y79: 0 | Z79: 0 | AB79: 0 | AC79: =U$62-SUM($X79:AB79)-SUMPRODUCT(--($C79<=U$62),U$62-$C79) -> 0 | AE79: 0 | AF79: 0 | AG79: 0 | AH79: 0 | AI79: =U$62-SUM($AE79:AH79)-SUMPRODUCT(--($D79<=U$62),U$62-$D79) -> 0 | AK79: 0 | AL79: 0 | AM79: 0 | AN79: 0 | AO79: =U$62-SUM($AK79:AN79)-SUMPRODUCT(--($E79<=U$62),U$62-$E79) -> 0 | AQ79: 0 | AR79: 0 | AS79: 0 | AT79: 0 | AU79: =U$62-SUM($AQ79:AT79)-SUMPRODUCT(--($F79<=U$62),U$62-$F79) -> 0
B80: PIZZA CRUST INC | O80: 0 | Q80: 0 | R80: =R$62*12-SUM($Q80:Q80)-SUMPRODUCT(--($C80:$N80<=R$62),R$62-$C80:$N80) -> 0 | S80: =S$62*12-SUM($Q80:R80)-SUMPRODUCT(--($C80:$N80<=S$62),S$62-$C80:$N80) -> 0 | T80: =T$62*12-SUM($Q80:S80)-SUMPRODUCT(--($C80:$N80<=T$62),T$62-$C80:$N80) -> 0 | U80: =U$62*12-SUM($Q80:T80)-SUMPRODUCT(--($C80:$N80<=U$62),U$62-$C80:$N80) -> 0 | X80: 0 | Y80: 0 | Z80: 0 | AB80: 0 | AC80: =U$62-SUM($X80:AB80)-SUMPRODUCT(--($C80<=U$62),U$62-$C80) -> 0 | AE80: 0 | AF80: 0 | AG80: 0 | AH80: 0 | AI80: =U$62-SUM($AE80:AH80)-SUMPRODUCT(--($D80<=U$62),U$62-$D80) -> 0 | AK80: 0 | AL80: 0 | AM80: 0 | AN80: 0 | AO80: =U$62-SUM($AK80:AN80)-SUMPRODUCT(--($E80<=U$62),U$62-$E80) -> 0 | AQ80: 0 | AR80: 0 | AS80: 0 | AT80: 0 | AU80: =U$62-SUM($AQ80:AT80)-SUMPRODUCT(--($F80<=U$62),U$62-$F80) -> 0
B81: PULLMAN REGIONAL HOSPITAL | O81: 0 | Q81: 0 | R81: =R$62*12-SUM($Q81:Q81)-SUMPRODUCT(--($C81:$N81<=R$62),R$62-$C81:$N81) -> 0 | S81: =S$62*12-SUM($Q81:R81)-SUMPRODUCT(--($C81:$N81<=S$62),S$62-$C81:$N81) -> 0 | T81: =T$62*12-SUM($Q81:S81)-SUMPRODUCT(--($C81:$N81<=T$62),T$62-$C81:$N81) -> 0 | U81: =U$62*12-SUM($Q81:T81)-SUMPRODUCT(--($C81:$N81<=U$62),U$62-$C81:$N81) -> 0 | X81: 0 | Y81: 0 | Z81: 0 | AB81: 0 | AC81: =U$62-SUM($X81:AB81)-SUMPRODUCT(--($C81<=U$62),U$62-$C81) -> 0 | AE81: 0 | AF81: 0 | AG81: 0 | AH81: 0 | AI81: =U$62-SUM($AE81:AH81)-SUMPRODUCT(--($D81<=U$62),U$62-$D81) -> 0 | AK81: 0 | AL81: 0 | AM81: 0 | AN81: 0 | AO81: =U$62-SUM($AK81:AN81)-SUMPRODUCT(--($E81<=U$62),U$62-$E81) -> 0 | AQ81: 0 | AR81: 0 | AS81: 0 | AT81: 0 | AU81: =U$62-SUM($AQ81:AT81)-SUMPRODUCT(--($F81<=U$62),U$62-$F81) -> 0
B82: RED LION HOTEL AT THE PARK | O82: 0 | Q82: 0 | R82: =R$62*12-SUM($Q82:Q82)-SUMPRODUCT(--($C82:$N82<=R$62),R$62-$C82:$N82) -> 0 | S82: =S$62*12-SUM($Q82:R82)-SUMPRODUCT(--($C82:$N82<=S$62),S$62-$C82:$N82) -> 0 | T82: =T$62*12-SUM($Q82:S82)-SUMPRODUCT(--($C82:$N82<=T$62),T$62-$C82:$N82) -> 0 | U82: =U$62*12-SUM($Q82:T82)-SUMPRODUCT(--($C82:$N82<=U$62),U$62-$C82:$N82) -> 0 | X82: 0 | Y82: 0 | Z82: 0 | AB82: 0 | AC82: =U$62-SUM($X82:AB82)-SUMPRODUCT(--($C82<=U$62),U$62-$C82) -> 0 | AE82: 0 | AF82: 0 | AG82: 0 | AH82: 0 | AI82: =U$62-SUM($AE82:AH82)-SUMPRODUCT(--($D82<=U$62),U$62-$D82) -> 0 | AK82: 0 | AL82: 0 | AM82: 0 | AN82: 0 | AO82: =U$62-SUM($AK82:AN82)-SUMPRODUCT(--($E82<=U$62),U$62-$E82) -> 0 | AQ82: 0 | AR82: 0 | AS82: 0 | AT82: 0 | AU82: =U$62-SUM($AQ82:AT82)-SUMPRODUCT(--($F82<=U$62),U$62-$F82) -> 0
B83: SACRED HEART MED CENTER | O83: 0 | Q83: 0 | R83: =R$62*12-SUM($Q83:Q83)-SUMPRODUCT(--($C83:$N83<=R$62),R$62-$C83:$N83) -> 0 | S83: =S$62*12-SUM($Q83:R83)-SUMPRODUCT(--($C83:$N83<=S$62),S$62-$C83:$N83) -> 0 | T83: =T$62*12-SUM($Q83:S83)-SUMPRODUCT(--($C83:$N83<=T$62),T$62-$C83:$N83) -> 0 | U83: =U$62*12-SUM($Q83:T83)-SUMPRODUCT(--($C83:$N83<=U$62),U$62-$C83:$N83) -> 0 | X83: 0 | Y83: 0 | Z83: 0 | AB83: 0 | AC83: =U$62-SUM($X83:AB83)-SUMPRODUCT(--($C83<=U$62),U$62-$C83) -> 0 | AE83: 0 | AF83: 0 | AG83: 0 | AH83: 0 | AI83: =U$62-SUM($AE83:AH83)-SUMPRODUCT(--($D83<=U$62),U$62-$D83) -> 0 | AK83: 0 | AL83: 0 | AM83: 0 | AN83: 0 | AO83: =U$62-SUM($AK83:AN83)-SUMPRODUCT(--($E83<=U$62),U$62-$E83) -> 0 | AQ83: 0 | AR83: 0 | AS83: 0 | AT83: 0 | AU83: =U$62-SUM($AQ83:AT83)-SUMPRODUCT(--($F83<=U$62),U$62-$F83) -> 0
B84: SAINT LUKES REHAB INSTITUTE (122) | O84: =SUM(C84:N84) -> 0 | Q84: 0 | R84: =R$62*12-SUM($Q84:Q84)-SUMPRODUCT(--($C84:$N84<=R$62),R$62-$C84:$N84) -> 0 | S84: =S$62*12-SUM($Q84:R84)-SUMPRODUCT(--($C84:$N84<=S$62),S$62-$C84:$N84) -> 0 | T84: =T$62*12-SUM($Q84:S84)-SUMPRODUCT(--($C84:$N84<=T$62),T$62-$C84:$N84) -> 0 | U84: =U$62*12-SUM($Q84:T84)-SUMPRODUCT(--($C84:$N84<=U$62),U$62-$C84:$N84) -> 0 | X84: 0 | Y84: 0 | Z84: 0 | AB84: 0 | AC84: =U$62-SUM($X84:AB84)-SUMPRODUCT(--($C84<=U$62),U$62-$C84) -> 0 | AE84: 0 | AF84: 0 | AG84: 0 | AH84: 0 | AI84: =U$62-SUM($AE84:AH84)-SUMPRODUCT(--($D84<=U$62),U$62-$D84) -> 0 | AK84: 0 | AL84: 0 | AM84: 0 | AN84: 0 | AO84: =U$62-SUM($AK84:AN84)-SUMPRODUCT(--($E84<=U$62),U$62-$E84) -> 0 | AQ84: 0 | AR84: 0 | AS84: 0 | AT84: 0 | AU84: =U$62-SUM($AQ84:AT84)-SUMPRODUCT(--($F84<=U$62),U$62-$F84) -> 0
B85: SHRINERS HOSPITAL | O85: 0 | Q85: 0 | R85: =R$62*12-SUM($Q85:Q85)-SUMPRODUCT(--($C85:$N85<=R$62),R$62-$C85:$N85) -> 0 | S85: =S$62*12-SUM($Q85:R85)-SUMPRODUCT(--($C85:$N85<=S$62),S$62-$C85:$N85) -> 0 | T85: =T$62*12-SUM($Q85:S85)-SUMPRODUCT(--($C85:$N85<=T$62),T$62-$C85:$N85) -> 0 | U85: =U$62*12-SUM($Q85:T85)-SUMPRODUCT(--($C85:$N85<=U$62),U$62-$C85:$N85) -> 0 | X85: 0 | Y85: 0 | Z85: 0 | AB85: 0 | AC85: =U$62-SUM($X85:AB85)-SUMPRODUCT(--($C85<=U$62),U$62-$C85) -> 0 | AE85: 0 | AF85: 0 | AG85: 0 | AH85: 0 | AI85: =U$62-SUM($AE85:AH85)-SUMPRODUCT(--($D85<=U$62),U$62-$D85) -> 0 | AK85: 0 | AL85: 0 | AM85: 0 | AN85: 0 | AO85: =U$62-SUM($AK85:AN85)-SUMPRODUCT(--($E85<=U$62),U$62-$E85) -> 0 | AQ85: 0 | AR85: 0 | AS85: 0 | AT85: 0 | AU85: =U$62-SUM($AQ85:AT85)-SUMPRODUCT(--($F85<=U$62),U$62-$F85) -> 0
B86: SKAMANIA LODGE | O86: 0 | Q86: 0 | R86: =R$62*12-SUM($Q86:Q86)-SUMPRODUCT(--($C86:$N86<=R$62),R$62-$C86:$N86) -> 0 | S86: =S$62*12-SUM($Q86:R86)-SUMPRODUCT(--($C86:$N86<=S$62),S$62-$C86:$N86) -> 0 | T86: =T$62*12-SUM($Q86:S86)-SUMPRODUCT(--($C86:$N86<=T$62),T$62-$C86:$N86) -> 0 | U86: =U$62*12-SUM($Q86:T86)-SUMPRODUCT(--($C86:$N86<=U$62),U$62-$C86:$N86) -> 0 | X86: 0 | Y86: 0 | Z86: 0 | AB86: 0 | AC86: =U$62-SUM($X86:AB86)-SUMPRODUCT(--($C86<=U$62),U$62-$C86) -> 0 | AE86: 0 | AF86: 0 | AG86: 0 | AH86: 0 | AI86: =U$62-SUM($AE86:AH86)-SUMPRODUCT(--($D86<=U$62),U$62-$D86) -> 0 | AK86: 0 | AL86: 0 | AM86: 0 | AN86: 0 | AO86: =U$62-SUM($AK86:AN86)-SUMPRODUCT(--($E86<=U$62),U$62-$E86) -> 0 | AQ86: 0 | AR86: 0 | AS86: 0 | AT86: 0 | AU86: =U$62-SUM($AQ86:AT86)-SUMPRODUCT(--($F86<=U$62),U$62-$F86) -> 0
B87: SPOKANE CLUB | O87: 0 | Q87: 0 | R87: =R$62*12-SUM($Q87:Q87)-SUMPRODUCT(--($C87:$N87<=R$62),R$62-$C87:$N87) -> 0 | S87: =S$62*12-SUM($Q87:R87)-SUMPRODUCT(--($C87:$N87<=S$62),S$62-$C87:$N87) -> 0 | T87: =T$62*12-SUM($Q87:S87)-SUMPRODUCT(--($C87:$N87<=T$62),T$62-$C87:$N87) -> 0 | U87: =U$62*12-SUM($Q87:T87)-SUMPRODUCT(--($C87:$N87<=U$62),U$62-$C87:$N87) -> 0 | X87: 0 | Y87: 0 | Z87: 0 | AB87: 0 | AC87: =U$62-SUM($X87:AB87)-SUMPRODUCT(--($C87<=U$62),U$62-$C87) -> 0 | AE87: 0 | AF87: 0 | AG87: 0 | AH87: 0 | AI87: =U$62-SUM($AE87:AH87)-SUMPRODUCT(--($D87<=U$62),U$62-$D87) -> 0 | AK87: 0 | AL87: 0 | AM87: 0 | AN87: 0 | AO87: =U$62-SUM($AK87:AN87)-SUMPRODUCT(--($E87<=U$62),U$62-$E87) -> 0 | AQ87: 0 | AR87: 0 | AS87: 0 | AT87: 0 | AU87: =U$62-SUM($AQ87:AT87)-SUMPRODUCT(--($F87<=U$62),U$62-$F87) -> 0
B88: SPOKANE GALVANIZING INC | O88: 0 | Q88: 0 | R88: =R$62*12-SUM($Q88:Q88)-SUMPRODUCT(--($C88:$N88<=R$62),R$62-$C88:$N88) -> 0 | S88: =S$62*12-SUM($Q88:R88)-SUMPRODUCT(--($C88:$N88<=S$62),S$62-$C88:$N88) -> 0 | T88: =T$62*12-SUM($Q88:S88)-SUMPRODUCT(--($C88:$N88<=T$62),T$62-$C88:$N88) -> 0 | U88: =U$62*12-SUM($Q88:T88)-SUMPRODUCT(--($C88:$N88<=U$62),U$62-$C88:$N88) -> 0 | X88: 0 | Y88: 0 | Z88: 0 | AB88: 0 | AC88: =U$62-SUM($X88:AB88)-SUMPRODUCT(--($C88<=U$62),U$62-$C88) -> 0 | AE88: 0 | AF88: 0 | AG88: 0 | AH88: 0 | AI88: =U$62-SUM($AE88:AH88)-SUMPRODUCT(--($D88<=U$62),U$62-$D88) -> 0 | AK88: 0 | AL88: 0 | AM88: 0 | AN88: 0 | AO88: =U$62-SUM($AK88:AN88)-SUMPRODUCT(--($E88<=U$62),U$62-$E88) -> 0 | AQ88: 0 | AR88: 0 | AS88: 0 | AT88: 0 | AU88: =U$62-SUM($AQ88:AT88)-SUMPRODUCT(--($F88<=U$62),U$62-$F88) -> 0
B89: TRI STATE MEMORIAL HOSPITAL | O89: 0 | Q89: 0 | R89: =R$62*12-SUM($Q89:Q89)-SUMPRODUCT(--($C89:$N89<=R$62),R$62-$C89:$N89) -> 0 | S89: =S$62*12-SUM($Q89:R89)-SUMPRODUCT(--($C89:$N89<=S$62),S$62-$C89:$N89) -> 0 | T89: =T$62*12-SUM($Q89:S89)-SUMPRODUCT(--($C89:$N89<=T$62),T$62-$C89:$N89) -> 0 | U89: =U$62*12-SUM($Q89:T89)-SUMPRODUCT(--($C89:$N89<=U$62),U$62-$C89:$N89) -> 0 | X89: 0 | Y89: 0 | Z89: 0 | AB89: 0 | AC89: =U$62-SUM($X89:AB89)-SUMPRODUCT(--($C89<=U$62),U$62-$C89) -> 0 | AE89: 0 | AF89: 0 | AG89: 0 | AH89: 0 | AI89: =U$62-SUM($AE89:AH89)-SUMPRODUCT(--($D89<=U$62),U$62-$D89) -> 0 | AK89: 0 | AL89: 0 | AM89: 0 | AN89: 0 | AO89: =U$62-SUM($AK89:AN89)-SUMPRODUCT(--($E89<=U$62),U$62-$E89) -> 0 | AQ89: 0 | AR89: 0 | AS89: 0 | AT89: 0 | AU89: =U$62-SUM($AQ89:AT89)-SUMPRODUCT(--($F89<=U$62),U$62-$F89) -> 0
B90: WAGSTAFF INC | O90: 0 | Q90: 0 | R90: =R$62*12-SUM($Q90:Q90)-SUMPRODUCT(--($C90:$N90<=R$62),R$62-$C90:$N90) -> 0 | S90: =S$62*12-SUM($Q90:R90)-SUMPRODUCT(--($C90:$N90<=S$62),S$62-$C90:$N90) -> 0 | T90: =T$62*12-SUM($Q90:S90)-SUMPRODUCT(--($C90:$N90<=T$62),T$62-$C90:$N90) -> 0 | U90: =U$62*12-SUM($Q90:T90)-SUMPRODUCT(--($C90:$N90<=U$62),U$62-$C90:$N90) -> 0 | X90: 0 | Y90: 0 | Z90: 0 | AB90: 0 | AC90: =U$62-SUM($X90:AB90)-SUMPRODUCT(--($C90<=U$62),U$62-$C90) -> 0 | AE90: 0 | AF90: 0 | AG90: 0 | AH90: 0 | AI90: =U$62-SUM($AE90:AH90)-SUMPRODUCT(--($D90<=U$62),U$62-$D90) -> 0 | AK90: 0 | AL90: 0 | AM90: 0 | AN90: 0 | AO90: =U$62-SUM($AK90:AN90)-SUMPRODUCT(--($E90<=U$62),U$62-$E90) -> 0 | AQ90: 0 | AR90: 0 | AS90: 0 | AT90: 0 | AU90: =U$62-SUM($AQ90:AT90)-SUMPRODUCT(--($F90<=U$62),U$62-$F90) -> 0
B91: WSU HOUSING | O91: 0 | Q91: 0 | R91: =R$62*12-SUM($Q91:Q91)-SUMPRODUCT(--($C91:$N91<=R$62),R$62-$C91:$N91) -> 0 | S91: =S$62*12-SUM($Q91:R91)-SUMPRODUCT(--($C91:$N91<=S$62),S$62-$C91:$N91) -> 0 | T91: =T$62*12-SUM($Q91:S91)-SUMPRODUCT(--($C91:$N91<=T$62),T$62-$C91:$N91) -> 0 | U91: =U$62*12-SUM($Q91:T91)-SUMPRODUCT(--($C91:$N91<=U$62),U$62-$C91:$N91) -> 0 | X91: 0 | Y91: 0 | Z91: 0 | AB91: 0 | AC91: =U$62-SUM($X91:AB91)-SUMPRODUCT(--($C91<=U$62),U$62-$C91) -> 0 | AE91: 0 | AF91: 0 | AG91: 0 | AH91: 0 | AI91: =U$62-SUM($AE91:AH91)-SUMPRODUCT(--($D91<=U$62),U$62-$D91) -> 0 | AK91: 0 | AL91: 0 | AM91: 0 | AN91: 0 | AO91: =U$62-SUM($AK91:AN91)-SUMPRODUCT(--($E91<=U$62),U$62-$E91) -> 0 | AQ91: 0 | AR91: 0 | AS91: 0 | AT91: 0 | AU91: =U$62-SUM($AQ91:AT91)-SUMPRODUCT(--($F91<=U$62),U$62-$F91) -> 0
O92: 0 | Q92: 0 | R92: =R$62*12-SUM($Q92:Q92)-SUMPRODUCT(--($C92:$N92<=R$62),R$62-$C92:$N92) -> 0 | S92: =S$62*12-SUM($Q92:R92)-SUMPRODUCT(--($C92:$N92<=S$62),S$62-$C92:$N92) -> 0 | T92: =T$62*12-SUM($Q92:S92)-SUMPRODUCT(--($C92:$N92<=T$62),T$62-$C92:$N92) -> 0 | U92: =U$62*12-SUM($Q92:T92)-SUMPRODUCT(--($C92:$N92<=U$62),U$62-$C92:$N92) -> 0
O93: =SUM(C93:N93) -> 0 | Q93: 0 | R93: =R$62*12-SUM($Q93:Q93)-SUMPRODUCT(--($C93:$N93<=R$62),R$62-$C93:$N93) -> 0 | S93: =S$62*12-SUM($Q93:R93)-SUMPRODUCT(--($C93:$N93<=S$62),S$62-$C93:$N93) -> 0 | T93: =T$62*12-SUM($Q93:S93)-SUMPRODUCT(--($C93:$N93<=T$62),T$62-$C93:$N93) -> 0 | U93: =U$62*12-SUM($Q93:T93)-SUMPRODUCT(--($C93:$N93<=U$62),U$62-$C93:$N93) -> 0
B94: Total WA Sch 121/122 | C94: =SUM(C64:C92) -> 0 | D94: =SUM(D64:D93) -> 0 | E94: =SUM(E64:E93) -> 0 | F94: =SUM(F64:F93) -> 0 | G94: =SUM(G64:G93) -> 0 | H94: =SUM(H64:H93) -> 0 | I94: =SUM(I64:I93) -> 0 | J94: 0 | K94: 0 | L94: 0 | M94: 0 | N94: 0 | O94: =IF(ROUND(SUM(O64:O93),3)<>ROUND(SUM(C94:N94),3),#VALUE!,SUM(C94:N94)) -> 0 | Q94: =SUM(Q64:Q93) -> 0 | R94: =SUM(R64:R93) -> 0 | S94: =SUM(S64:S93) -> 0 | T94: =SUM(T64:T93) -> 0 | U94: =SUM(U64:U93) -> 0 | X94: =SUM(X64:X93) -> 0 | Y94: =SUM(Y64:Y93) -> 0 | Z94: =SUM(Z64:Z93) -> 0 | AB94: =SUM(AB64:AB93) -> 0 | AC94: =SUM(AC64:AC93) -> 0 | AE94: =SUM(AE64:AE93) -> 0 | AF94: =SUM(AF64:AF93) -> 0 | AG94: =SUM(AG64:AG93) -> 0 | AH94: =SUM(AH64:AH93) -> 0 | AI94: =SUM(AI64:AI93) -> 0 | AK94: =SUM(AK64:AK93) -> 0 | AL94: =SUM(AL64:AL93) -> 0 | AM94: =SUM(AM64:AM93) -> 0 | AN94: =SUM(AN64:AN93) -> 0 | AO94: =SUM(AO64:AO93) -> 0 | AQ94: =SUM(AQ64:AQ93) -> 0 | AR94: =SUM(AR64:AR93) -> 0 | AS94: =SUM(AS64:AS93) -> 0 | AT94: =SUM(AT64:AT93) -> 0 | AU94: =SUM(AU64:AU93) -> 0
U95: =SUM(Q94:U94) -> 0
B96: Revenue Runs | C96: ='12MEDEC16'!D151 -> 529872.274 | D96: ='12MEDEC16'!E151 -> 496446.667 | E96: ='12MEDEC16'!F151 -> 424341.823 | F96: ='12MEDEC16'!G151 -> 376139.536 | G96: ='12MEDEC16'!H151 -> 326907.356 | H96: ='12MEDEC16'!I151 -> 281788.148 | I96: ='12MEDEC16'!J151 -> 286040.729 | J96: ='12MEDEC16'!K151 -> 254173.852 | K96: ='12MEDEC16'!L151 -> 281344.333 | L96: ='12MEDEC16'!M151 -> 321747.036 | M96: ='12MEDEC16'!N151 -> 361916.569 | N96: ='12MEDEC16'!O151 -> 351829.428 | O96: =SUM(C96:N96) -> 4292547.751
B97: Johanna Beverage Co | C97: 26922 | D97: 27843 | E97: 30552 | F97: 31759 | G97: 25318 | H97: 28411 | I97: 26106 | J97: 0 | K97: 20184 | O97: =SUM(C97:N97) -> 217095 | Q97: =Q$62*12-SUMPRODUCT(--($C97:$N97<=Q$62),Q$62-$C97:$N97) -> 4000 | R97: =R$62*12-SUM($Q97:Q97)-SUMPRODUCT(--($C97:$N97<=R$62),R$62-$C97:$N97) -> 4000 | S97: =S$62*12-SUM($Q97:R97)-SUMPRODUCT(--($C97:$N97<=S$62),S$62-$C97:$N97) -> 72000 | T97: =T$62*12-SUM($Q97:S97)-SUMPRODUCT(--($C97:$N97<=T$62),T$62-$C97:$N97) -> 115184 | U97: =U$62*12-SUM($Q97:T97)-SUMPRODUCT(--($C97:$N97<=U$62),U$62-$C97:$N97) -> 21911
O98: =SUM(C98:N98) -> 0 | Y98: =COUNT(O64:O91) -> 28
O99: =SUM(C99:N99) -> 0
B100: Total WA Sch 121/122 | C100: =C96-SUM(C97:C99) -> 502950.274 | D100: =D96-SUM(D97:D99) -> 468603.667 | E100: 393789.823 | F100: 344380.536 | G100: 301589.356 | H100: 253377.148 | I100: 259934.729 | J100: 254173.852 | K100: 261160.333 | L100: 321747.036 | M100: 361916.569 | N100: 351829.428 | O100: =IF(ROUND(O96-SUM(O97:O99),3)<>ROUND(SUM(C100:N100),3),#VALUE!,SUM(C100:N100)) -> 4075452.751
C101: =C94-C100 -> -502950.274 | D101: -468603.667 | E101: -393789.823 | F101: -344380.536 | G101: -301589.356 | H101: -253377.148 | I101: -259934.729 | J101: -254173.852 | K101: -261160.333 | L101: =L94-L100 -> -321747.036 | M101: -361916.569 | N101: -351829.428 | O101: -4075452.751
L102: =COUNT(L64:L91) -> 0 | M102: =COUNT(M64:M91) -> 0 | N102: =COUNT(N64:N91) -> 0
B103: ANNUAL USAGE, Sch 132 | O103: 12-mo ended | Q103: 10000 | R103: 25000 | S103: 50000 | T103: 99999999
B104: Washington | C104: =C4 -> 2016-01-01 | D104: =D4 -> 2016-02-01 | E104: 2016-03-01 | F104: 2016-04-01 | G104: 2016-05-01 | H104: 2016-06-01 | I104: 2016-07-01 | J104: 2016-08-01 | K104: 2016-09-01 | L104: 2016-10-01 | M104: 2016-11-01 | N104: 2016-12-01 | O104: Total | Q104: thms/mo | R104: thms/mo | S104: thms/mo | T104: thms/mo
C105: 65029 | D105: 47338 | E105: 41055 | F105: 37997 | G105: 24637 | H105: 18337 | I105: 13008 | J105: 10665 | K105: 9134 | L105: 17772 | M105: 30147 | N105: 40146 | O105: =SUM(C105:N105) -> 355265 | Q105: =Q$103*12-SUMPRODUCT(--($C105:$N105<=Q$103),Q$103-$C105:$N105) -> 119134 | R105: =R$103*12-SUM($Q105:Q105)-SUMPRODUCT(--($C105:$N105<=R$103),R$103-$C105:$N105) -> 124419 | S105: =S$103*12-SUM($Q105:R105)-SUMPRODUCT(--($C105:$N105<=S$103),S$103-$C105:$N105) -> 96683 | T105: =T$103*12-SUM($Q105:S105)-SUMPRODUCT(--($C105:$N105<=T$103),T$103-$C105:$N105) -> 15029
C106: 65775 | D106: 54984 | E106: =48887 -> 48887 | F106: 44076 | G106: 33048 | H106: 33376 | I106: 32559 | J106: 27298 | K106: 37566 | L106: 41838 | M106: 54953 | N106: 71642 | O106: =SUM(C106:N106) -> 546002 | Q106: =Q$103*12-SUMPRODUCT(--($C106:$N106<=Q$103),Q$103-$C106:$N106) -> 120000 | R106: =R$103*12-SUM($Q106:Q106)-SUMPRODUCT(--($C106:$N106<=R$103),R$103-$C106:$N106) -> 180000 | S106: =S$103*12-SUM($Q106:R106)-SUMPRODUCT(--($C106:$N106<=S$103),S$103-$C106:$N106) -> 198648 | T106: =T$103*12-SUM($Q106:S106)-SUMPRODUCT(--($C106:$N106<=T$103),T$103-$C106:$N106) -> 47354
C108: =SUM(C105:C107) -> 130804 | D108: =SUM(D105:D107) -> 102322 | E108: 89942 | F108: 82073 | G108: 57685 | H108: 51713 | I108: 45567 | J108: 37963 | K108: 46700 | L108: 59610 | M108: 85100 | N108: 111788 | O108: =IF(ROUND(SUM(O105:O107),3)<>ROUND(SUM(C108:N108),3),#VALUE!,SUM(C108:N108)) -> 901267 | Q108: =SUM(Q105:Q107) -> 239134 | R108: =SUM(R105:R107) -> 304419 | S108: =SUM(S105:S107) -> 295331 | T108: =SUM(T105:T107) -> 62383
B110: Revenue Runs | C110: ='12MEDEC16'!D152 -> 203731.024 | D110: ='12MEDEC16'!E152 -> 102322.409 | E110: ='12MEDEC16'!F152 -> 89942.1 | F110: ='12MEDEC16'!G152 -> 82073.012 | G110: ='12MEDEC16'!H152 -> 57685.224 | H110: ='12MEDEC16'!I152 -> 51713.393 | I110: ='12MEDEC16'!J152 -> 45567.493 | J110: ='12MEDEC16'!K152 -> 37962.688 | K110: ='12MEDEC16'!L152 -> 46700.234 | L110: ='12MEDEC16'!M152 -> 59609.65 | M110: ='12MEDEC16'!N152 -> 85099.777 | N110: ='12MEDEC16'!O152 -> 111787.641 | O110: =SUM(C110:N110) -> 974194.645
B111: SPOKANE COUNTY COURTHOUSE (122 to 132) | C111: 0 | D111: 0 | E111: 0 | F111: 0 | G111: 0 | O111: =SUM(C111:N111) -> 0
B112: Total WA Sch 132 | C112: =SUM(C110:C111) -> 203731.024 | D112: =SUM(D110:D111) -> 102322.409 | E112: 89942.1 | F112: 82073.012 | G112: 57685.224 | H112: 51713.393 | I112: 45567.493 | J112: 37962.688 | K112: 46700.234 | L112: 59609.65 | M112: 85099.777 | N112: 111787.641 | O112: 974194.645 | T112: =SUM(Q108:T108) -> 901267
C113: =C108-C112 -> -72927.024 | D113: =D108-D112 -> -0.409 | E113: -0.1 | F113: -0.012 | G113: -0.224 | H113: -0.393 | I113: -0.493 | J113: 0.312 | K113: -0.234 | L113: 0.35 | M113: =M108-M112 -> 0.223 | N113: 0.359 | O113: -72927.645
B114: ANNUAL USAGE, Sch 148 | O114: 12-mo ended
B115: Washington | C115: =C4 -> 2016-01-01 | D115: =D4 -> 2016-02-01 | E115: 2016-03-01 | F115: 2016-04-01 | G115: 2016-05-01 | H115: 2016-06-01 | I115: 2016-07-01 | J115: 2016-08-01 | K115: 2016-09-01 | L115: 2016-10-01 | M115: 2016-11-01 | N115: 2016-12-01 | O115: Total
C116: 2141771 | D116: 2122276 | E116: 1921613 | F116: 2055052 | G116: 1838247 | H116: 1867802 | I116: 1806467 | J116: 1816478 | K116: 1826303 | L116: 1685182 | M116: 1930664 | N116: 1938153 | O116: =SUM(C116:N116) -> 22950008
C117: 551210 | D117: 613776 | E117: 584554 | F117: 315291 | G117: 579680 | H117: 557274 | I117: 592842 | J117: 573855 | K117: 562152 | L117: 572409 | M117: 588690 | N117: 523972 | O117: =SUM(C117:N117) -> 6615705
C118: 180021 | D118: 166960 | E118: 163504 | F118: 166335 | G118: 162998 | H118: 158744 | I118: 159229 | J118: 165047 | K118: 158667 | L118: 165231 | M118: 181084 | N118: 168301 | O118: =SUM(C118:N118) -> 1996121
C119: 550948 | D119: 537744 | E119: 496984 | F119: 509065 | G119: 498365 | H119: 469648 | I119: 347594 | J119: 446589 | K119: 446822 | L119: 450287 | M119: 471287 | N119: 498507 | O119: =SUM(C119:N119) -> 5723840
C120: 1365479 | D120: 1316488 | E120: 1010302 | F120: 1023735 | G120: 704276 | H120: 615468 | I120: 486517 | J120: 427870 | K120: 418141 | L120: 554465 | M120: 793654 | N120: 903903 | O120: =SUM(C120:N120) -> 9620298
B122: Total WA Sch 148 | C122: =SUM(C116:C121) -> 4789429 | D122: 4757244 | E122: 4176957 | F122: 4069478 | G122: 3783566 | H122: 3668936 | I122: 3392649 | J122: 3429839 | K122: 3412085 | L122: 3427574 | M122: 3965379 | N122: 4032836 | O122: =IF(ROUND(SUM(O116:O121),3)<>ROUND(SUM(C122:N122),3),#VALUE!,SUM(C122:N122)) -> 46905972
B124: Revenue Runs | C124: ='12MEDEC16'!D155 -> 4789429 | D124: ='12MEDEC16'!E155 -> 4757244 | E124: ='12MEDEC16'!F155 -> 4176957 | F124: ='12MEDEC16'!G155 -> 4069478 | G124: ='12MEDEC16'!H155 -> 3783566 | H124: ='12MEDEC16'!I155 -> 3668936 | I124: ='12MEDEC16'!J155 -> 3392649 | J124: ='12MEDEC16'!K155 -> 3429839 | K124: ='12MEDEC16'!L155 -> 3412085 | L124: ='12MEDEC16'!M155 -> 3427574 | M124: ='12MEDEC16'!N155 -> 3965379 | N124: ='12MEDEC16'!O155 -> 4032836 | O124: =SUM(C124:N124) -> 46905972
C125: =C122-C124 -> 0 | D125: =D122-D124 -> 0 | E125: 0 | F125: 0 | G125: 0 | H125: 0 | I125: 0 | J125: 0 | K125: 0 | L125: 0 | M125: 0 | N125: 0 | O125: 0
B127: ANNUAL USAGE, Sch 147 | O127: 12-mo ended
B128: Washington | C128: =C4 -> 2016-01-01 | D128: =D4 -> 2016-02-01 | E128: 2016-03-01 | F128: 2016-04-01 | G128: 2016-05-01 | H128: 2016-06-01 | I128: 2016-07-01 | J128: 2016-08-01 | K128: 2016-09-01 | L128: 2016-10-01 | M128: 2016-11-01 | N128: 2016-12-01 | O128: Total
C129: 57646 | D129: 133277 | E129: 23877 | F129: 27193 | G129: 102657 | H129: 209548 | I129: 58338 | J129: 156690 | K129: 594033 | L129: 221885 | M129: 19478 | N129: 47436 | O129: =SUM(C129:N129) -> 1652058
C130: =5128+15266 -> 20394 | D130: =39889+19719 -> 59608 | E130: 301 | F130: =24553+3580 -> 28133 | G130: =2103+8292 -> 10395 | H130: =13101+5148 -> 18249 | I130: =73+42148 -> 42221 | J130: =59256+180 -> 59436 | K130: =71+179382 -> 179453 | L130: =3635+15368 -> 19003 | M130: =148+9861 -> 10009 | N130: =1875+112 -> 1987 | O130: =SUM(C130:N130) -> 449189
B132: Total WA Sch 147 | C132: =SUM(C129:C131) -> 78040 | D132: 192885 | E132: =SUM(E129:E131) -> 24178 | F132: 55326 | G132: 113052 | H132: 227797 | I132: 100559 | J132: 216126 | K132: 773486 | L132: 240888 | M132: 29487 | N132: 49423 | O132: =IF(ROUND(SUM(O129:O131),3)<>ROUND(SUM(C132:N132),3),#VALUE!,SUM(C132:N132)) -> 2101247
B134: Revenue Runs | C134: ='12MEDEC16'!D154 -> 78040 | D134: ='12MEDEC16'!E154 -> 192885 | E134: ='12MEDEC16'!F154 -> 24178 | F134: ='12MEDEC16'!G154 -> 55326 | G134: ='12MEDEC16'!H154 -> 113052 | H134: ='12MEDEC16'!I154 -> 227797 | I134: ='12MEDEC16'!J154 -> 100559 | J134: ='12MEDEC16'!K154 -> 216126 | K134: ='12MEDEC16'!L154 -> 773486 | L134: ='12MEDEC16'!M154 -> 240888 | M134: ='12MEDEC16'!N154 -> 29487 | N134: ='12MEDEC16'!O154 -> 49423 | O134: =SUM(C134:N134) -> 2101247
C135: =C132-C134 -> 0 | D135: 0 | E135: 0 | F135: 0 | G135: 0 | H135: 0 | I135: 0 | J135: 0 | K135: 0 | L135: 0 | M135: 0 | N135: 0 | O135: 0
B137: Sch 147 Revenue from Rev. Runs | C137: 1632 | D137: 4033 | E137: 506 | F137: 1157 | G137: 2364 | H137: 4763 | I137: 2103 | J137: 4519 | K137: 16174 | L137: 5037 | M137: 617 | N137: 1033 | O137: =SUM(C137:N137) -> 43938
B138: check | C138: =C132*0.02091 -> 1631.8164 | D138: =D132*0.02091 -> 4033.22535 | E138: 505.56198 | F138: 1156.86666 | G138: 2363.91732 | H138: 4763.23527 | I138: 2102.68869 | J138: 4519.19466 | K138: 16173.59226 | L138: 5036.96808 | M138: =M132*0.02091 -> 616.57317 | N138: 1033.43493 | O138: =SUM(C138:N138) -> 43937.07477

Sheet 12MEDEC16
A3: Gas Revenue Meters Report by Location Twelve Months Ended for Report Date : '12/31/2016'
A5: State Cde:WA
C7: Meters
B8: Period | C8: 201601 | D8: 201602 | E8: 201603 | F8: 201604 | G8: 201605 | H8: 201606 | I8: 201607 | J8: 201608 | K8: 201609 | L8: 201610 | M8: 201611 | N8: 201612 | O8: 12 Month Average
A9: Rate Schedule Num
A10: 0101 | C10: 152821 | D10: 153750 | E10: 153321 | F10: 153114 | G10: 153138 | H10: 152971 | I10: 153203 | J10: 153486 | K10: 153911 | L10: 154438 | M10: 155110 | N10: 155552 | O10: 153734.5833
A11: 0102 | C11: 91 | D11: 132 | E11: 190 | F11: 246 | G11: 251 | H11: 253 | I11: 256 | J11: 254 | K11: 245 | L11: 246 | M11: 243 | N11: 240 | O11: 220.5833333
A12: 0111 | C12: 2642 | D12: 2680 | E12: 2684 | F12: 2773 | G12: 2745 | H12: 2769 | I12: 2770 | J12: 2751 | K12: 2770 | L12: 2775 | M12: 2789 | N12: 2835 | O12: 2748.583333
A13: 0121 | C13: 22 | D13: 25 | E13: 24 | F13: 24 | G13: 24 | H13: 24 | I13: 24 | J13: 24 | K13: 24 | L13: 23 | M13: 23 | N13: -2 | O13: 21.58333333
A14: 0122 | C14: 2 | D14: 2 | E14: 2 | F14: 2 | G14: 2 | H14: 2 | I14: 2 | J14: 2 | K14: 2 | L14: 2 | M14: 2 | N14: 2 | O14: 2
A15: 0132 | C15: 3 | D15: 2 | E15: 2 | F15: 2 | G15: 2 | H15: 2 | I15: 2 | J15: 2 | K15: 2 | L15: 2 | M15: 2 | N15: 2 | O15: 2.083333333
A16: 0146 | C16: 39 | D16: 39 | E16: 39 | F16: 39 | G16: 39 | H16: 39 | I16: 39 | J16: 39 | K16: 39 | L16: 39 | M16: 40 | N16: 40 | O16: 39.16666667
A17: 0147 | C17: 3 | D17: 3 | E17: 2 | F17: 3 | G17: 3 | H17: 3 | I17: 3 | J17: 3 | K17: 3 | L17: 3 | M17: 3 | N17: 3 | O17: 2.916666667
A18: 0148 | C18: 5 | D18: 5 | E18: 5 | F18: 5 | G18: 5 | H18: 5 | I18: 5 | J18: 5 | K18: 5 | L18: 5 | M18: 5 | N18: 5 | O18: 5
A19: 0158 | C19: 0 | D19: 0 | E19: 0 | F19: 0 | G19: 0 | H19: 0 | I19: 0 | J19: 0 | K19: 0 | L19: 0 | M19: 0 | N19: 0 | O19: 0
A20: 0158A | C20: 0 | D20: 0 | E20: 0 | F20: 0 | G20: 0 | H20: 0 | I20: 0 | J20: 0 | K20: 0 | L20: 0 | M20: 0 | N20: 0 | O20: 0
A21: 0199 | C21: 0 | D21: 0 | E21: 0 | F21: 0 | G21: 0 | H21: 0 | I21: 0 | J21: 0 | K21: 0 | L21: 0 | M21: 0 | N21: 0 | O21: 0
A22: Total for WA | C22: 155628 | D22: 156638 | E22: 156269 | F22: 156208 | G22: 156209 | H22: 156068 | I22: 156304 | J22: 156566 | K22: 157001 | L22: 157533 | M22: 158217 | N22: 158677
O24: Total | P24: Avg
B25: 101/102 | C25: =C10+C11 -> 152912 | D25: =D10+D11 -> 153882 | E25: 153511 | F25: 153360 | G25: 153389 | H25: 153224 | I25: 153459 | J25: 153740 | K25: 154156 | L25: 154684 | M25: 155353 | N25: 155792 | O25: =SUM(C25:N25) -> 1847462 | P25: =AVERAGE(C25:N25) -> 153955.1667
B26: 111 | C26: =C12 -> 2642 | D26: =D12 -> 2680 | E26: 2684 | F26: 2773 | G26: 2745 | H26: 2769 | I26: 2770 | J26: 2751 | K26: 2770 | L26: 2775 | M26: 2789 | N26: 2835 | O26: =SUM(C26:N26) -> 32983 | P26: =AVERAGE(C26:N26) -> 2748.583333
B27: 121/122 | C27: =C13+C14 -> 24 | D27: =D13+D14 -> 27 | E27: 26 | F27: 26 | G27: 26 | H27: 26 | I27: 26 | J27: 26 | K27: 26 | L27: 25 | M27: 25 | N27: 0 | O27: 283 | P27: 23.58333333
B28: 132 | C28: =C15 -> 3 | D28: =D15 -> 2 | E28: 2 | F28: 2 | G28: 2 | H28: 2 | I28: 2 | J28: 2 | K28: 2 | L28: 2 | M28: 2 | N28: 2 | O28: 25 | P28: 2.083333333
B29: 146 | C29: =C16 -> 39 | D29: =D16 -> 39 | E29: 39 | F29: 39 | G29: 39 | H29: 39 | I29: 39 | J29: 39 | K29: 39 | L29: 39 | M29: 40 | N29: 40 | O29: 470 | P29: 39.16666667
B30: 147 | C30: =C17 -> 3 | D30: =D17 -> 3 | E30: 2 | F30: 3 | G30: 3 | H30: 3 | I30: 3 | J30: 3 | K30: 3 | L30: 3 | M30: 3 | N30: 3 | O30: 35 | P30: 2.916666667
B31: 148 | C31: =C18 -> 5 | D31: =D18 -> 5 | E31: 5 | F31: 5 | G31: 5 | H31: 5 | I31: 5 | J31: 5 | K31: 5 | L31: 5 | M31: 5 | N31: 5 | O31: 60 | P31: 5
B32: Total | C32: =SUM(C25:C31) -> 155628 | D32: =SUM(D25:D31) -> 156638 | E32: 156269 | F32: 156208 | G32: 156209 | H32: 156068 | I32: 156304 | J32: 156566 | K32: 157001 | L32: 157533 | M32: 158217 | N32: 158677 | O32: 1881318
C34: =C22-C32 -> 0 | D34: =D22-D32 -> 0 | E34: 0 | F34: 0 | G34: 0 | H34: 0 | I34: 0 | J34: 0 | K34: 0 | L34: 0 | M34: 0 | N34: 0
A36: Gas Revenue Meters Report by Location Twelve Months Ended for Report Date : '12/31/2016'
A38: State Cde:WA
D40: Usage
C41: Period | D41: 201601 | E41: 201602 | F41: 201603 | G41: 201604 | H41: 201605 | I41: 201606 | J41: 201607 | K41: 201608 | L41: 201609 | M41: 201610 | N41: 201611 | O41: 201612 | P41: 12 Month Total
A42: Rate Schedule Num | B42: Billing Determinant
A43: 0101 | B43: BASIC CHARGE GAS | D43: 0 | E43: 0 | F43: 0 | G43: 0 | H43: 0 | I43: 0 | J43: 0 | K43: 0 | L43: 0 | M43: 0 | N43: 0 | O43: 0 | P43: 0
B44: NA | D44: -217089 | E44: 0 | F44: 0 | G44: 0 | H44: 0 | I44: 0 | J44: 0 | K44: 0 | L44: 0 | M44: 0 | N44: 0 | O44: 0 | P44: -217089
B45: RIDER 150 | D45: 0 | E45: 0 | F45: 0 | G45: 0 | H45: 0 | I45: 0 | J45: 0 | K45: 0 | L45: 0 | M45: 0 | N45: 0 | O45: 0 | P45: 0
B46: RIDER 155 | D46: 0 | E46: 0 | F46: 0 | G46: 0 | H46: 0 | I46: 0 | J46: 0 | K46: 0 | L46: 0 | M46: 0 | N46: 0 | O46: 0 | P46: 0
B47: RIDER 156 | D47: 0 | E47: 0 | F47: 0 | G47: 0 | H47: 0 | I47: 0 | J47: 0 | K47: 0 | L47: 0 | M47: 0 | N47: 0 | O47: 0 | P47: 0
B48: RIDER 159 | D48: 0 | E48: 0 | F48: 0 | G48: 0 | H48: 0 | I48: 0 | J48: 0 | K48: 0 | L48: 0 | M48: 0 | N48: 0 | O48: 0 | P48: 0
B49: RIDER 175 | M49: 0 | N49: 0 | O49: 0 | P49: 0
B50: RIDER 191 | D50: 0 | E50: 0 | F50: 0 | G50: 0 | H50: 0 | I50: 0 | J50: 0 | K50: 0 | L50: 0 | M50: 0 | N50: 0 | O50: 0 | P50: 0
B51: RIDER 192 | D51: 0 | E51: 0 | F51: 0 | G51: 0 | H51: 0 | I51: 0 | J51: 0 | K51: 0 | L51: 0 | M51: 0 | N51: 0 | O51: 0 | P51: 0
B52: RIDER 197 | M52: 0 | N52: 0 | O52: 0 | P52: 0
B53: THERMS BLOCK 1 | D53: 10073512.93 | E53: 9631970.584 | F53: 8889001.615 | G53: 7409280.355 | H53: 3961567.26 | I53: 3059244.605 | J53: 2291503.235 | K53: 1913415.386 | L53: 2331109.111 | M53: 4084185.053 | N53: 6979200.652 | O53: 9613433.429 | P53: 70237424.21
B54: THERMS BLOCK 2 | D54: 12045560.06 | E54: 7141564.399 | F54: 3954473.071 | G54: 1690099.466 | H54: 300281.0063 | I54: 216908.393 | J54: 242229.5633 | K54: 214406.135 | L54: 269815.191 | M54: 361671.5507 | N54: 1316885.207 | O54: 8010387.183 | P54: 35764281.22
B55: Total for 0101 | D55: 21901983.99 | E55: 16773534.98 | F55: 12843474.69 | G55: 9099379.821 | H55: 4261848.266 | I55: 3276152.998 | J55: 2533732.798 | K55: 2127821.521 | L55: 2600924.302 | M55: 4445856.604 | N55: 8296085.859 | O55: 17623820.61 | P55: 105784616.4
A56: 0102 | B56: BASIC CHARGE GAS | D56: 0 | E56: 0 | F56: 0 | G56: 0 | H56: 0 | I56: 0 | J56: 0 | K56: 0 | L56: 0 | M56: 0 | N56: 0 | O56: 0 | P56: 0
B57: NA | D57: 0 | E57: 0 | F57: 0 | G57: 0 | H57: 0 | I57: 0 | J57: 0 | K57: 0 | L57: 0 | M57: 0 | N57: 0 | O57: 0 | P57: 0
B58: RIDER 150 | D58: 0 | E58: 0 | F58: 0 | G58: 0 | H58: 0 | I58: 0 | J58: 0 | K58: 0 | L58: 0 | M58: 0 | N58: 0 | O58: 0 | P58: 0
B59: RIDER 155 | D59: 0 | E59: 0 | F59: 0 | G59: 0 | H59: 0 | I59: 0 | J59: 0 | K59: 0 | L59: 0 | M59: 0 | N59: 0 | O59: 0 | P59: 0
B60: RIDER 156 | D60: 0 | E60: 0 | F60: 0 | G60: 0 | H60: 0 | I60: 0 | J60: 0 | K60: 0 | L60: 0 | M60: 0 | N60: 0 | O60: 0 | P60: 0
B61: RIDER 159 | D61: 0 | E61: 0 | F61: 0 | G61: 0 | H61: 0 | I61: 0 | J61: 0 | K61: 0 | L61: 0 | M61: 0 | N61: 0 | O61: 0 | P61: 0
B62: RIDER 175 | N62: 0 | O62: 0 | P62: 0
B63: RIDER 189 | D63: 0 | E63: 0 | F63: 0 | G63: 0 | H63: 0 | I63: 0 | J63: 0 | K63: 0 | L63: 0 | M63: 0 | N63: 0 | O63: 0 | P63: 0
B64: RIDER 191 | D64: 0 | E64: 0 | F64: 0 | G64: 0 | H64: 0 | I64: 0 | J64: 0 | K64: 0 | L64: 0 | M64: 0 | N64: 0 | O64: 0 | P64: 0
B65: RIDER 192 | D65: 0 | E65: 0 | F65: 0 | G65: 0 | H65: 0 | I65: 0 | J65: 0 | K65: 0 | L65: 0 | M65: 0 | N65: 0 | O65: 0 | P65: 0
B66: THERMS BLOCK 1 | D66: 6160.311 | E66: 8663.202 | F66: 12005.497 | G66: 13028.479 | H66: 6882.977 | I66: 5270.704 | J66: 3617.023 | K66: 2668.454 | L66: 3536.437 | M66: 7210.898 | N66: 12245.798 | O66: 16031.17867 | P66: 97320.95867
B67: THERMS BLOCK 2 | D67: 6584.94302 | E67: 5251.58102 | F67: 4265.046 | G67: 2521.134 | H67: 336.877 | I67: 280.537 | J67: 415.873 | K67: 151.715 | L67: 252.841 | M67: 450.851 | N67: 2053.197 | O67: 10769.33933 | P67: 33333.93437
B68: Total for 0102 | D68: 12745.25402 | E68: 13914.78302 | F68: 16270.543 | G68: 15549.613 | H68: 7219.854 | I68: 5551.241 | J68: 4032.896 | K68: 2820.169 | L68: 3789.278 | M68: 7661.749 | N68: 14298.995 | O68: 26800.518 | P68: 130654.893
A69: 0111 | B69: BASIC CHARGE GAS | D69: 0 | E69: 0 | F69: 0 | G69: 0 | H69: 0 | I69: 0 | J69: 0 | K69: 0 | L69: 0 | M69: 0 | N69: 0 | O69: 0 | P69: 0
B70: NA | D70: -112330 | E70: 0 | F70: 0 | G70: 0 | H70: 0 | I70: 0 | J70: 0 | K70: 0 | L70: 0 | M70: 0 | N70: 0 | O70: 0 | P70: -112330
B71: RIDER 150 | D71: 0 | E71: 0 | F71: 0 | G71: 0 | H71: 0 | I71: 0 | J71: 0 | K71: 0 | L71: 0 | M71: 0 | N71: 0 | O71: 0 | P71: 0
B72: RIDER 155 | D72: 0 | E72: 0 | F72: 0 | G72: 0 | H72: 0 | I72: 0 | J72: 0 | K72: 0 | L72: 0 | M72: 0 | N72: 0 | O72: 0 | P72: 0
B73: RIDER 156 | D73: 0 | E73: 0 | F73: 0 | G73: 0 | H73: 0 | I73: 0 | J73: 0 | K73: 0 | L73: 0 | M73: 0 | N73: 0 | O73: 0 | P73: 0
B74: RIDER 175 | M74: 0 | N74: 0 | O74: 0 | P74: 0
B75: RIDER 191 | D75: 0 | E75: 0 | F75: 0 | G75: 0 | H75: 0 | I75: 0 | J75: 0 | K75: 0 | L75: 0 | M75: 0 | N75: 0 | O75: 0 | P75: 0
B76: RIDER 192 | D76: 0 | E76: 0 | F76: 0 | G76: 0 | H76: 0 | I76: 0 | J76: 0 | K76: 0 | L76: 0 | M76: 0 | N76: 0 | O76: 0 | P76: 0
B77: THERMS BLOCK 1 | D77: 530508.2063 | E77: 530403.092 | F77: 531422.9723 | G77: 540454.392 | H77: 488827.9807 | I77: 449904.4127 | J77: 395227.5837 | K77: 360305.426 | L77: 390905.3503 | M77: 483629.2113 | N77: 536148.7077 | O77: 555772.7027 | P77: 5793510.038
B78: THERMS BLOCK 2 | D78: 1881093.176 | E78: 1767621.291 | F78: 1640138.509 | G78: 1451749.436 | H78: 934467.887 | I78: 765049.4243 | J78: 615919.1773 | K78: 543152.331 | L78: 636578.9923 | M78: 912958.7783 | N78: 1338992.914 | O78: 1840386.229 | P78: 14328108.15
B79: THERMS BLOCK 3 | D79: 4951021.331 | E79: 3565736.413 | F79: 2662853.689 | G79: 1911398.177 | H79: 935124.7163 | I79: 696192.527 | J79: 576385.292 | K79: 511030.633 | L79: 720533.5613 | M79: 1009988.891 | N79: 1562906.642 | O79: 4143599.426 | P79: 23246771.3
B80: Total for 0111 | D80: 7250292.714 | E80: 5863760.796 | F80: 4834415.17 | G80: 3903602.005 | H80: 2358420.584 | I80: 1911146.364 | J80: 1587532.053 | K80: 1414488.39 | L80: 1748017.904 | M80: 2406576.881 | N80: 3438048.264 | O80: 6539758.358 | P80: 43256059.48
A81: 0121 | B81: BASIC CHARGE GAS | L81: 0 | M81: 0 | N81: 0 | O81: 0 | P81: 0
B82: NA | D82: -13960 | E82: 0 | F82: 0 | G82: 0 | H82: 0 | I82: 0 | J82: 0 | K82: 0 | L82: 0 | M82: 0 | N82: -1351 | O82: 0 | P82: -15311
B83: RIDER 150 | D83: 0 | E83: 0 | F83: 0 | G83: 0 | H83: 0 | I83: 0 | J83: 0 | K83: 0 | L83: 54.65 | M83: 91.392 | N83: 304.604 | O83: 0 | P83: 450.646
B84: RIDER 155 | D84: 0 | E84: 0 | F84: 0 | G84: 0 | H84: 0 | I84: 0 | J84: 0 | K84: 0 | L84: 0 | M84: 0 | N84: 0 | O84: 0 | P84: 0
B85: RIDER 156 | D85: 0 | E85: 0 | F85: 0 | G85: 0 | H85: 0 | I85: 0 | J85: 0 | K85: 0 | L85: 0 | M85: 0 | N85: 0 | O85: 0 | P85: 0
B86: RIDER 175 | N86: 0 | O86: 0 | P86: 0
B87: RIDER 191 | D87: 0 | E87: 0 | F87: 0 | G87: 0 | H87: 0 | I87: 0 | J87: 0 | K87: 0 | L87: 54.65 | M87: 91.392 | N87: 304.604 | O87: 0 | P87: 450.646
B88: RIDER 192 | D88: 0 | E88: 0 | F88: 0 | G88: 0 | H88: 0 | I88: 0 | J88: 0 | K88: 0 | L88: 54.65 | M88: 91.392 | N88: 304.604 | O88: 0 | P88: 450.646
B89: THERMS BLOCK 1 | D89: 12000 | E89: 12500 | F89: 12000 | G89: 12000 | H89: 12000 | I89: 12000 | J89: 12000 | K89: 12000 | L89: 11054.65 | M89: 10974.72533 | N89: 10804.604 | O89: -450.646 | P89: 128883.3333
B90: THERMS BLOCK 2 | D90: 12000 | E90: 12500 | F90: 12000 | G90: 12000 | H90: 12000 | I90: 12000 | J90: 12000 | K90: 11871.62 | L90: 11000 | M90: 10883.33334 | N90: 10500 | O90: 128.38 | P90: 128883.3333
B91: THERMS BLOCK 3 | D91: 196688.002 | E91: 202939.251 | F91: 196591.073 | G91: 186082.146 | H91: 181868.493 | I91: 175420.401 | J91: 162374.864 | K91: 152005.646 | L91: 161134.44 | M91: 163109.278 | N91: 170567.386 | O91: 81625.127 | P91: 2030406.107
B92: THERMS BLOCK 4 | D92: 147386.967 | E92: 133794.647 | F92: 102854.315 | G92: 81279.283 | H92: 60927.445 | I92: 44132.903 | J92: 49424.616 | K92: 46158.11 | L92: 53795.221 | M92: 55493.06 | N92: 55648.939 | O92: 71735.119 | P92: 902630.625
B93: THERMS BLOCK 5 | D93: 91904.67 | E93: 67533.342 | F93: 41313.21 | G93: 30255.082 | H93: 17513.017 | I93: 3095.6 | J93: 22636.738 | K93: 6614.308 | L93: 17433.538 | M93: 43781.71333 | N93: 63401.765 | O93: 128833.473 | P93: 534316.4563
B94: Total for 0121 | D94: 446019.639 | E94: 429267.24 | F94: 364758.598 | G94: 321616.511 | H94: 284308.955 | I94: 246648.904 | J94: 258436.218 | K94: 228649.684 | L94: 254581.799 | M94: 284516.286 | N94: 310485.506 | O94: 281871.453 | P94: 3711160.793
A95: 0122 | B95: BASIC CHARGE GAS | N95: 0 | O95: 0 | P95: 0
B96: NA | D96: 0 | E96: 0 | F96: 0 | G96: 0 | H96: 0 | I96: 0 | J96: 0 | K96: 0 | L96: 0 | M96: 0 | N96: 0 | O96: 0 | P96: 0
B97: RIDER 150 | D97: 0 | E97: 0 | F97: 0 | G97: 0 | H97: 0 | I97: 0 | J97: 0 | K97: 0 | L97: 0 | M97: 0 | N97: 0 | O97: 0 | P97: 0
B98: RIDER 155 | D98: 0 | E98: 0 | F98: 0 | G98: 0 | H98: 0 | I98: 0 | J98: 0 | K98: 0 | L98: 0 | M98: 0 | N98: 0 | O98: 0 | P98: 0
B99: RIDER 156 | D99: 0 | E99: 0 | F99: 0 | G99: 0 | H99: 0 | I99: 0 | J99: 0 | K99: 0 | L99: 0 | M99: 0 | N99: 0 | O99: 0 | P99: 0
B100: RIDER 175 | N100: 0 | O100: 0 | P100: 0
B101: RIDER 191 | D101: 0 | E101: 0 | F101: 0 | G101: 0 | H101: 0 | I101: 0 | J101: 0 | K101: 0 | L101: 0 | M101: 0 | N101: 0 | O101: 0 | P101: 0
B102: RIDER 192 | D102: 0 | E102: 0 | F102: 0 | G102: 0 | H102: 0 | I102: 0 | J102: 0 | K102: 0 | L102: 0 | M102: 0 | N102: 0 | O102: 0 | P102: 0
B103: THERMS BLOCK 1 | D103: 1000 | E103: 1000 | F103: 1000 | G103: 1000 | H103: 1000 | I103: 1000 | J103: 1000 | K103: 1000 | L103: 1000 | M103: 1000 | N103: 1000 | O103: 1000 | P103: 12000
B104: THERMS BLOCK 2 | D104: 1000 | E104: 1000 | F104: 1000 | G104: 1000 | H104: 1000 | I104: 1000 | J104: 1000 | K104: 1000 | L104: 1000 | M104: 1000 | N104: 1000 | O104: 1000 | P104: 12000
B105: THERMS BLOCK 3 | D105: 18000 | E105: 18000 | F105: 18000 | G105: 17143.732 | H105: 14601.037 | I105: 13331.31 | J105: 13179.761 | K105: 12154.868 | L105: 15055.51 | M105: 17069.75 | N105: 18000 | O105: 18000 | P105: 192535.968
B106: THERMS BLOCK 4 | D106: 22412.52 | E106: 18506.262 | F106: 17033.66 | G106: 15000 | H106: 15000 | I106: 15000 | J106: 12424.75 | K106: 11369.3 | L106: 9707.024 | M106: 15000 | N106: 17303.342 | O106: 29685.527 | P106: 198442.385
B107: THERMS BLOCK 5 | D107: 41440.115 | E107: 28673.165 | F107: 22549.565 | G107: 20379.293 | H107: 10997.364 | I107: 4807.934 | J107: 0 | K107: 0 | L107: 0 | M107: 3161 | N107: 14127.721 | O107: 20272.448 | P107: 166408.605
B108: Total for 0122 | D108: 83852.635 | E108: 67179.427 | F108: 59583.225 | G108: 54523.025 | H108: 42598.401 | I108: 35139.244 | J108: 27604.511 | K108: 25524.168 | L108: 26762.534 | M108: 37230.75 | N108: 51431.063 | O108: 69957.975 | P108: 581386.958
A109: 0132 | B109: NA | D109: 0 | E109: 0 | F109: 0 | G109: 0 | H109: 0 | I109: 0 | J109: 0 | K109: 0 | L109: 0 | M109: 0 | N109: 0 | O109: 0 | P109: 0
B110: RIDER 150 | D110: 0 | E110: 0 | F110: 0 | G110: 0 | H110: 0 | I110: 0 | J110: 0 | K110: 0 | L110: 0 | M110: 0 | N110: 0 | O110: 0 | P110: 0
B111: RIDER 155 | D111: 0 | E111: 0 | F111: 0 | G111: 0 | H111: 0 | I111: 0 | J111: 0 | K111: 0 | L111: 0 | M111: 0 | N111: 0 | O111: 0 | P111: 0
B112: RIDER 156 | D112: 0 | E112: 0 | F112: 0 | G112: 0 | H112: 0 | I112: 0 | J112: 0 | K112: 0 | L112: 0 | M112: 0 | N112: 0 | O112: 0 | P112: 0
B113: RIDER 175 | N113: 0 | O113: 0 | P113: 0
B114: RIDER 191 | D114: 0 | E114: 0 | F114: 0 | G114: 0 | H114: 0 | I114: 0 | J114: 0 | K114: 0 | L114: 0 | M114: 0 | N114: 0 | O114: 0 | P114: 0
B115: RIDER 192 | D115: 0 | E115: 0 | F115: 0 | G115: 0 | H115: 0 | I115: 0 | J115: 0 | K115: 0 | L115: 0 | M115: 0 | N115: 0 | O115: 0 | P115: 0
B116: THERMS BLOCK 1 | D116: 30000 | E116: 20000 | F116: 20000 | G116: 20000 | H116: 20000 | I116: 20000 | J116: 20000 | K116: 20000 | L116: 19133.98 | M116: 20000 | N116: 20000 | O116: 20000 | P116: 249133.98
B117: THERMS BLOCK 2 | D117: 45000 | E117: 30000 | F117: 30000 | G117: 30000 | H117: 29637.152 | I117: 23336.673 | J117: 18008.35 | K117: 15664.7 | L117: 15000 | M117: 22771.67 | N117: 30000 | O117: 30000 | P117: 319418.545
B118: THERMS BLOCK 3 | D118: 75000 | E118: 47337.885 | F118: 39942.1 | G118: 32073.012 | H118: 8048.072 | I118: 8376.72 | J118: 7559.143 | K118: 2297.988 | L118: 12566.254 | M118: 16837.98 | N118: 30146.817 | O118: 40145.976 | P118: 320331.947
B119: THERMS BLOCK 4 | D119: 53731.024 | E119: 4984.524 | F119: 0 | G119: 0 | H119: 0 | I119: 0 | J119: 0 | K119: 0 | L119: 0 | M119: 0 | N119: 4952.96 | O119: 21641.665 | P119: 85310.173
B120: Total for 0132 | D120: 203731.024 | E120: 102322.409 | F120: 89942.1 | G120: 82073.012 | H120: 57685.224 | I120: 51713.393 | J120: 45567.493 | K120: 37962.688 | L120: 46700.234 | M120: 59609.65 | N120: 85099.777 | O120: 111787.641 | P120: 974194.645
A121: 0146 | B121: BASIC CHARGE GAS | D121: 0 | E121: 0 | F121: 0 | G121: 0 | H121: 0 | I121: 0 | J121: 0 | K121: 0 | L121: 0 | M121: 0 | N121: 0 | O121: 0 | P121: 0
B122: NA | D122: 0 | E122: 0 | F122: 0 | G122: 0 | H122: 0 | I122: 0 | J122: 0 | K122: 0 | L122: 0 | M122: 0 | N122: 0 | O122: 0 | P122: 0
B123: RIDER 150 | D123: 0 | E123: 0 | F123: 0 | G123: 0 | H123: 0 | I123: 0 | J123: 0 | K123: 0 | L123: 0 | M123: 0 | N123: 0 | O123: 0 | P123: 0
B124: RIDER 155 | D124: 0 | E124: 0 | F124: 0 | G124: 0 | H124: 0 | I124: 0 | J124: 0 | K124: 0 | L124: 0 | M124: 0 | N124: 0 | O124: 0 | P124: 0
B125: RIDER 192 | D125: 0 | E125: 0 | F125: 0 | G125: 0 | H125: 0 | I125: 0 | J125: 0 | K125: 0 | L125: 0 | M125: 0 | N125: 0 | O125: 0 | P125: 0
B126: THERMS BLOCK 1 | D126: 673770 | E126: 651701 | F126: 670940 | G126: 677611 | H126: 699742 | I126: 706875 | J126: 666021 | K126: 614953 | L126: 612893 | M126: 679807 | N126: 742964 | O126: 727568 | P126: 8124845
B127: THERMS BLOCK 2 | D127: 730946 | E127: 739342 | F127: 724910 | G127: 705303 | H127: 495839 | I127: 500307 | J127: 469923 | K127: 383536 | L127: 435697 | M127: 436320 | N127: 631368 | O127: 696952 | P127: 6950443
B128: THERMS BLOCK 3 | D128: 1376405 | E128: 1410977 | F128: 1165424 | G128: 1068151 | H128: 739802 | I128: 720465 | J128: 625903 | K128: 582484 | L128: 594113 | M128: 581444 | N128: 836264 | O128: 973449 | P128: 10674881
B129: THERMS BLOCK 4 | D129: 376617 | E129: 356779 | F129: 200178 | G129: 200000 | H129: 200000 | I129: 200000 | J129: 200000 | K129: 200000 | L129: 200000 | M129: 200000 | N129: 200000 | O129: 200000 | P129: 2733574
B130: THERMS BLOCK 5 | D130: 175652 | E130: 200520 | F130: 176206 | G130: 167020 | H130: 210563 | I130: 221006 | J130: 199888 | K130: 154277 | L130: 124954 | M130: 13447 | N130: 111362 | O130: 126624 | P130: 1881519
B131: Total for 0146 | D131: 3333390 | E131: 3359319 | F131: 2937658 | G131: 2818085 | H131: 2345946 | I131: 2348653 | J131: 2161735 | K131: 1935250 | L131: 1967657 | M131: 1911018 | N131: 2521958 | O131: 2724593 | P131: 30365262
A132: 0147 | B132: NA | D132: 0 | E132: 0 | F132: 0 | G132: 0 | H132: 0 | I132: 0 | J132: 0 | K132: 0 | L132: 0 | M132: 0 | N132: 0 | O132: 0 | P132: 0
B133: THERMS BLOCK 1 | D133: 78040 | E133: 192885 | F133: 24178 | G133: 55326 | H133: 113052 | I133: 227797 | J133: 100559 | K133: 216126 | L133: 773486 | M133: 240888 | N133: 29487 | O133: 49423 | P133: 2101247
B134: Total for 0147 | D134: 78040 | E134: 192885 | F134: 24178 | G134: 55326 | H134: 113052 | I134: 227797 | J134: 100559 | K134: 216126 | L134: 773486 | M134: 240888 | N134: 29487 | O134: 49423 | P134: 2101247
A135: 0148 | B135: BASIC CHARGE GAS | D135: 0 | E135: 0 | F135: 0 | G135: 0 | H135: 0 | I135: 0 | J135: 0 | K135: 0 | L135: 0 | M135: 0 | N135: 0 | O135: 0 | P135: 0
B136: NA | D136: 0 | E136: 0 | F136: 0 | G136: 0 | H136: 0 | I136: 0 | J136: 0 | K136: 0 | L136: 0 | M136: 0 | N136: 0 | O136: 0 | P136: 0
B137: THERMS BLOCK 1 | D137: 4789429 | E137: 4757244 | F137: 4176957 | G137: 4069478 | H137: 3783566 | I137: 3668936 | J137: 3392649 | K137: 3429839 | L137: 3412085 | M137: 3427574 | N137: 3965379 | O137: 4032836 | P137: 46905972
B138: Total for 0148 | D138: 4789429 | E138: 4757244 | F138: 4176957 | G138: 4069478 | H138: 3783566 | I138: 3668936 | J138: 3392649 | K138: 3429839 | L138: 3412085 | M138: 3427574 | N138: 3965379 | O138: 4032836 | P138: 46905972
A139: 0158 | B139: NA | D139: 0 | E139: 0 | F139: 0 | G139: 0 | H139: 0 | I139: 0 | J139: 0 | K139: 0 | L139: 0 | M139: 0 | N139: 0 | O139: 0 | P139: 0
B140: RIDER 158 | D140: 0 | E140: 0 | F140: 0 | G140: 0 | H140: 0 | I140: 0 | J140: 0 | K140: 0 | L140: 0 | M140: 0 | N140: 0 | O140: 0 | P140: 0
B141: Total for 0158 | D141: 0 | E141: 0 | F141: 0 | G141: 0 | H141: 0 | I141: 0 | J141: 0 | K141: 0 | L141: 0 | M141: 0 | N141: 0 | O141: 0 | P141: 0
A142: 0158A | B142: RIDER 158 | D142: 0 | E142: 0 | F142: 0 | G142: 0 | H142: 0 | I142: 0 | J142: 0 | K142: 0 | L142: 0 | M142: 0 | N142: 0 | O142: 0 | P142: 0
B143: Total for 0158A | D143: 0 | E143: 0 | F143: 0 | G143: 0 | H143: 0 | I143: 0 | J143: 0 | K143: 0 | L143: 0 | M143: 0 | N143: 0 | O143: 0 | P143: 0
A144: 0199 | B144: NA | D144: 0 | E144: 0 | F144: 0 | G144: 0 | H144: 0 | I144: 0 | J144: 0 | K144: 0 | L144: 0 | M144: 0 | N144: 0 | O144: 0 | P144: 0
B145: Total for 0199 | D145: 0 | E145: 0 | F145: 0 | G145: 0 | H145: 0 | I145: 0 | J145: 0 | K145: 0 | L145: 0 | M145: 0 | N145: 0 | O145: 0 | P145: 0
A146: Total for WA | D146: 38099484.25 | E146: 31559427.64 | F146: 25347237.32 | G146: 20419632.99 | H146: 13254645.28 | I146: 11771738.14 | J146: 10111848.97 | K146: 9418481.62 | L146: 10834004.05 | M146: 12820931.92 | N146: 18712273.46 | O146: 31460848.56 | P146: 233810554.2
D148: 201601 | E148: 201602 | F148: 201603 | G148: 201604 | H148: 201605 | I148: 201606 | J148: 201607 | K148: 201608 | L148: 201609 | M148: 201610 | N148: 201611 | O148: 201612 | P148: 12 Month Total
C149: 101/102 | D149: =D55+D68 -> 21914729.24 | E149: =E55+E68 -> 16787449.77 | F149: 12859745.23 | G149: 9114929.434 | H149: 4269068.12 | I149: 3281704.239 | J149: 2537765.694 | K149: 2130641.69 | L149: 2604713.58 | M149: 4453518.353 | N149: 8310384.854 | O149: 17650621.13 | P149: 105915271.3
C150: 111 | D150: =D80 -> 7250292.714 | E150: =E80 -> 5863760.796 | F150: 4834415.17 | G150: 3903602.005 | H150: 2358420.584 | I150: 1911146.364 | J150: 1587532.053 | K150: 1414488.39 | L150: 1748017.904 | M150: 2406576.881 | N150: 3438048.264 | O150: 6539758.358 | P150: 43256059.48
C151: 121/122 | D151: =D94+D108 -> 529872.274 | E151: =E94+E108 -> 496446.667 | F151: 424341.823 | G151: 376139.536 | H151: 326907.356 | I151: 281788.148 | J151: 286040.729 | K151: 254173.852 | L151: 281344.333 | M151: 321747.036 | N151: 361916.569 | O151: 351829.428 | P151: 4292547.751
C152: 132 | D152: =D120 -> 203731.024 | E152: =E120 -> 102322.409 | F152: 89942.1 | G152: 82073.012 | H152: 57685.224 | I152: 51713.393 | J152: 45567.493 | K152: 37962.688 | L152: 46700.234 | M152: 59609.65 | N152: 85099.777 | O152: 111787.641 | P152: 974194.645
C153: 146 | D153: =D131 -> 3333390 | E153: =E131 -> 3359319 | F153: 2937658 | G153: 2818085 | H153: 2345946 | I153: 2348653 | J153: 2161735 | K153: 1935250 | L153: 1967657 | M153: 1911018 | N153: 2521958 | O153: 2724593 | P153: 30365262
C154: 147 | D154: =D134 -> 78040 | E154: =E134 -> 192885 | F154: 24178 | G154: 55326 | H154: 113052 | I154: 227797 | J154: 100559 | K154: 216126 | L154: 773486 | M154: 240888 | N154: 29487 | O154: 49423 | P154: 2101247
C155: 148 | D155: =D138 -> 4789429 | E155: =E138 -> 4757244 | F155: 4176957 | G155: 4069478 | H155: 3783566 | I155: 3668936 | J155: 3392649 | K155: 3429839 | L155: 3412085 | M155: 3427574 | N155: 3965379 | O155: 4032836 | P155: 46905972
C156: Total | D156: =SUM(D149:D155) -> 38099484.25 | E156: =SUM(E149:E155) -> 31559427.64 | F156: 25347237.32 | G156: 20419632.99 | H156: 13254645.28 | I156: 11771738.14 | J156: 10111848.97 | K156: 9418481.62 | L156: 10834004.05 | M156: 12820931.92 | N156: 18712273.46 | O156: 31460848.56 | P156: 233810554.2
D158: =D146-D156 -> 0 | E158: =E146-E156 -> 0 | F158: 0 | G158: 0 | H158: 0 | I158: 0 | J158: 0 | K158: 0 | L158: 0 | M158: 0 | N158: 0 | O158: 0 | P158: 0
A162: Gas Revenue Usage Report by Location Twelve Months Ended for Report Date : '12/31/2016'
A164: Revenue Class:<All> | B164: Jurisdiction:WA
D166: Usage
C167: Period | D167: 201601 | E167: 201602 | F167: 201603 | G167: 201604 | H167: 201605 | I167: 201606 | J167: 201607 | K167: 201608 | L167: 201609 | M167: 201610 | N167: 201611 | O167: 201612 | P167: 12 Month Total
A168: Source Id | B168: Rate Schedule Num
A169: REVUNBL-G | B169: 101 | D169: 9597886 | E169: 7122072 | F169: 6519124 | G169: 2765167 | H169: 1886561 | I169: 1374387 | J169: 1132814 | K169: 1359706 | L169: 1757756 | M169: 4579398 | N169: 7640991 | O169: 14234668 | P169: 59970530
B170: 111 | D170: 3052586 | E170: 2389559 | F170: 2350402 | G170: 1115783 | H170: 978904 | I170: 742792 | J170: 665274 | K170: 834257 | L170: 1066893 | M170: 2323169 | N170: 3001230 | O170: 5038009 | P170: 23558858
B171: 121 | D171: 218777 | E171: 198078 | F171: 194885 | G171: 101145 | H171: 128126 | I171: 106749 | J171: 115129 | K171: 145882 | L171: 171016 | M171: 300543 | N171: 305013 | O171: 257367 | P171: 2242710
B172: 146 | D172: 3270057 | E172: 2867033 | F172: 2752119 | G172: 2313849 | H172: 2327164 | I172: 2128391 | J172: 1923034 | K172: 1953901 | L172: 1901550 | M172: 2496165 | N172: 2724593 | O172: 3806098 | P172: 30463954
B173: 148 | D173: 4757244 | E173: 4176957 | F173: 4069478 | G173: 3783566 | H173: 3668936 | I173: 3392649 | J173: 3429839 | K173: 3412094 | L173: 3437042 | M173: 3991172 | N173: 4032836 | O173: 5112851 | P173: 47264664
B174: Total for REVUNBL-G | D174: 20896550 | E174: 16753699 | F174: 15886008 | G174: 10079510 | H174: 8989691 | I174: 7744968 | J174: 7266090 | K174: 7705840 | L174: 8334257 | M174: 13690447 | N174: 17704663 | O174: 28448993 | P174: 163500716
A175: REVUNBL-GR | B175: 101 | D175: -11353753 | E175: -9597886 | F175: -7122072 | G175: -6519124 | H175: -2765167 | I175: -1886561 | J175: -1374387 | K175: -1132814 | L175: -1359706 | M175: -1757756 | N175: -4579398 | O175: -7640991 | P175: -57089615
B176: 111 | D176: -3734767 | E176: -3052586 | F176: -2389559 | G176: -2350402 | H176: -1115783 | I176: -978904 | J176: -742792 | K176: -665274 | L176: -834257 | M176: -1066893 | N176: -2323169 | O176: -3001230 | P176: -22255616
B177: 121 | D177: -318934 | E177: -218777 | F177: -198078 | G177: -194885 | H177: -101145 | I177: -128126 | J177: -106749 | K177: -115129 | L177: -145882 | M177: -171016 | N177: -300543 | O177: -305013 | P177: -2304277
B178: 146 | D178: -3256760 | E178: -3270057 | F178: -2867033 | G178: -2752119 | H178: -2313849 | I178: -2327164 | J178: -2128391 | K178: -1923034 | L178: -1953901 | M178: -1901550 | N178: -2496165 | O178: -2724593 | P178: -29914616
B179: 148 | D179: -4789429 | E179: -4757244 | F179: -4176957 | G179: -4069478 | H179: -3783566 | I179: -3668936 | J179: -3392649 | K179: -3429839 | L179: -3412094 | M179: -3437042 | N179: -3991172 | O179: -4032836 | P179: -46941242
B180: Total for REVUNBL-GR | D180: -23453643 | E180: -20896550 | F180: -16753699 | G180: -15886008 | H180: -10079510 | I180: -8989691 | J180: -7744968 | K180: -7266090 | L180: -7705840 | M180: -8334257 | N180: -13690447 | O180: -17704663 | P180: -158505366
A181: Total for WA | D181: -2557093 | E181: -4142851 | F181: -867691 | G181: -5806498 | H181: -1089819 | I181: -1244723 | J181: -478878 | K181: 439750 | L181: 628417 | M181: 5356190 | N181: 4014216 | O181: 10744330 | P181: 4995350
C185: 101 | D185: =D169+D175 -> -1755867 | E185: =E169+E175 -> -2475814 | F185: -602948 | G185: -3753957 | H185: -878606 | I185: -512174 | J185: -241573 | K185: 226892 | L185: 398050 | M185: 2821642 | N185: 3061593 | O185: 6593677 | P185: 2880915
C186: 111 | D186: =D170+D176 -> -682181 | E186: -663027 | F186: -39157 | G186: -1234619 | H186: -136879 | I186: -236112 | J186: -77518 | K186: 168983 | L186: 232636 | M186: 1256276 | N186: 678061 | O186: 2036779 | P186: 1303242
C187: 121 | D187: -100157 | E187: -20699 | F187: -3193 | G187: -93740 | H187: 26981 | I187: -21377 | J187: 8380 | K187: 30753 | L187: 25134 | M187: 129527 | N187: 4470 | O187: -47646 | P187: -61567
C188: 146 | D188: 13297 | E188: -403024 | F188: -114914 | G188: -438270 | H188: 13315 | I188: -198773 | J188: -205357 | K188: 30867 | L188: -52351 | M188: 594615 | N188: 228428 | O188: 1081505 | P188: 549338
C189: 148 | D189: -32185 | E189: -580287 | F189: -107479 | G189: -285912 | H189: -114630 | I189: -276287 | J189: 37190 | K189: -17745 | L189: 24948 | M189: 554130 | N189: 41664 | O189: 1080015 | P189: 323422
C190: Total | D190: =SUM(D185:D189) -> -2557093 | E190: =SUM(E185:E189) -> -4142851 | F190: -867691 | G190: -5806498 | H190: -1089819 | I190: -1244723 | J190: -478878 | K190: 439750 | L190: 628417 | M190: 5356190 | N190: 4014216 | O190: 10744330 | P190: 4995350
D192: =D181-D190 -> 0 | E192: =E181-E190 -> 0 | F192: 0 | G192: 0 | H192: 0 | I192: 0 | J192: 0 | K192: 0 | L192: 0 | M192: 0 | N192: 0 | O192: 0 | P192: 0
O194: 101-121 | P194: =P185+P186+P187 -> 4122590
